Workbook

Sheet Main
B10: 2019-05-28
B12: Sheet No. | C12: Template Name | D12: Summary
B13: 1 | C13: Future Intra | D13: For Intraday trading in F&O segment
B14: 2 | C14: Cash Intra | D14: For Intraday trading in cash market segment
B15: 3 | C15: Mid-cap Intra | D15: For Intraday trading in Mid-cap stocks
B16: 4 | C16: Bulk Deals | D16: Reveals Bulk Deals carried on NSE & BSE
B17: 5 | C17: Call Tracker
K27: `

Sheet Future Intra
M5: Back to Main Page
A6: FOR INTRA DAY TRADING | L6: =Main!B10 -> 2019-05-28
A9: Sr.no | B9: Sector | C9: Scrip | D9: CLOSE RATE | E9: Pivot Point | F9: Supports | I9: Resistances
B10: Sector | D10: Point | E10: Point | F10: S1 | G10: S2 | H10: S3 | I10: R1 | J10: R2 | K10: R3 | L10: HIGH | M10: LOW | N10: OI | O10: % Change in OI
A11: 1 | B11: Index | C11: BANKNIFTY | D11: 31595.25 | E11: 31473.43 | F11: 31296.92 | G11: 30998.58 | H11: 30822.07 | I11: 31771.77 | J11: 31948.28 | K11: 32246.62 | L11: 31649.95 | M11: 31175.1 | N11: 2275300 | O11: 11.01%
A12: 2 | B12: Index | C12: NIFTY | D12: 11918.50 | E12: 11903.88 | F12: 11847.77 | G12: 11777.03 | H12: 11720.92 | I12: 11974.62 | J12: 12030.73 | K12: 12101.47 | L12: 11960 | M12: 11833.15 | N12: 23586675 | O12: 3.65%
A13: 3 | B13: Index | C13: NIFTYIT | D13: 15554.00 | E13: 15575.67 | F13: 15514.33 | G13: 15474.67 | H13: 15413.33 | I13: 15615.33 | J13: 15676.67 | K13: 15716.33 | L13: 15637 | M13: 15536 | N13: 25550 | O13: 2.00%
A14: 4 | B14: Cement | C14: ACC | D14: 1760.45 | E14: 1736.12 | F14: 1705.83 | G14: 1651.22 | H14: 1620.93 | I14: 1790.73 | J14: 1821.02 | K14: 1875.63 | L14: 1766.4 | M14: 1681.5 | N14: 2687600 | O14: -3.81%
A15: 5 | B15: Others | C15: ADANIENT | D15: 157.25 | E15: 157.73 | F15: 154.67 | G15: 152.08 | H15: 149.02 | I15: 160.32 | J15: 163.38 | K15: 165.97 | L15: 160.8 | M15: 155.15 | N15: 34040000 | O15: 7.35%
A16: 6 | B16: Others | C16: ADANIPORTS | D16: 413.55 | E16: 412.88 | F16: 407.77 | G16: 401.98 | H16: 396.87 | I16: 418.67 | J16: 423.78 | K16: 429.57 | L16: 418 | M16: 407.1 | N16: 20602500 | O16: 4.81%
A17: 7 | B17: Power | C17: ADANIPOWER | D17: 48.65 | E17: 48.20 | F17: 47.00 | G17: 45.35 | H17: 44.15 | I17: 49.85 | J17: 51.05 | K17: 52.70 | L17: 49.4 | M17: 46.55 | N17: 164160000 | O17: -1.46%
A18: 8 | B18: Pharma | C18: AJANTPHARM | D18: 1055.30 | E18: 1050.63 | F18: 1042.02 | G18: 1028.73 | H18: 1020.12 | I18: 1063.92 | J18: 1072.53 | K18: 1085.82 | L18: 1059.25 | M18: 1037.35 | N18: 584500 | O18: 3.54%
A19: 9 | B19: Banking | C19: ALBK | D19: 47.85 | E19: 47.83 | F19: 47.02 | G19: 46.18 | H19: 45.37 | I19: 48.67 | J19: 49.48 | K19: 50.32 | L19: 48.65 | M19: 47 | N19: 18850000 | O19: 5.99%
A20: 10 | B20: Automobile | C20: AMARAJABAT | D20: 642.90 | E20: 643.07 | F20: 636.33 | G20: 629.77 | H20: 623.03 | I20: 649.63 | J20: 656.37 | K20: 662.93 | L20: 649.8 | M20: 636.5 | N20: 1684200 | O20: 13.49%
A21: 11 | B21: Cement | C21: AMBUJACEM | D21: 238.95 | E21: 236.65 | F21: 233.65 | G21: 228.35 | H21: 225.35 | I21: 241.95 | J21: 244.95 | K21: 250.25 | L21: 239.65 | M21: 231.35 | N21: 22197500 | O21: 1.77%
A22: 12 | B22: Others | C22: APOLLOHOSP | D22: 1199.10 | E22: 1196.10 | F22: 1175.45 | G22: 1151.80 | H22: 1131.15 | I22: 1219.75 | J22: 1240.40 | K22: 1264.05 | L22: 1216.75 | M22: 1172.45 | N22: 1074500 | O22: 2.68%
A23: 13 | B23: Automobile | C23: APOLLOTYRE | D23: 198.05 | E23: 197.37 | F23: 194.53 | G23: 191.02 | H23: 188.18 | I23: 200.88 | J23: 203.72 | K23: 207.23 | L23: 200.2 | M23: 193.85 | N23: 10116000 | O23: 0.15%
A24: 14 | B24: Textile | C24: ARVIND | D24: 78.75 | E24: 78.23 | F24: 77.17 | G24: 75.58 | H24: 74.52 | I24: 79.82 | J24: 80.88 | K24: 82.47 | L24: 79.3 | M24: 76.65 | N24: 7636000 | O24: 2.88%
A25: 15 | B25: Automobile | C25: ASHOKLEY | D25: 91.00 | E25: 90.87 | F25: 89.73 | G25: 88.47 | H25: 87.33 | I25: 92.13 | J25: 93.27 | K25: 94.53 | L25: 92 | M25: 89.6 | N25: 69678000 | O25: -5.13%
A26: 16 | B26: FMCG | C26: ASIANPAINT | D26: 1369.25 | E26: 1375.42 | F26: 1358.18 | G26: 1347.12 | H26: 1329.88 | I26: 1386.48 | J26: 1403.72 | K26: 1414.78 | L26: 1392.65 | M26: 1364.35 | N26: 5958000 | O26: 2.57%
A27: 17 | B27: Pharma | C27: AUROPHARMA | D27: 681.20 | E27: 680.22 | F27: 674.43 | G27: 667.67 | H27: 661.88 | I27: 686.98 | J27: 692.77 | K27: 699.53 | L27: 686 | M27: 673.45 | N27: 18070000 | O27: 0.22%
A28: 18 | B28: Banking | C28: AXISBANK | D28: 813.05 | E28: 805.65 | F28: 796.05 | G28: 779.05 | H28: 769.45 | I28: 822.65 | J28: 832.25 | K28: 849.25 | L28: 815.25 | M28: 788.65 | N28: 38166000 | O28: 0.76%
A29: 19 | B29: Automobile | C29: BAJAJ-AUTO | D29: 3077.15 | E29: 3071.17 | F29: 3044.48 | G29: 3011.82 | H29: 2985.13 | I29: 3103.83 | J29: 3130.52 | K29: 3163.18 | L29: 3097.85 | M29: 3038.5 | N29: 3239750 | O29: -6.11%
A30: 20 | B30: Others | C30: BAJAJFINSV | D30: 8226.45 | E30: 8208.37 | F30: 8148.08 | G30: 8069.72 | H30: 8009.43 | I30: 8286.73 | J30: 8347.02 | K30: 8425.38 | L30: 8268.65 | M30: 8130 | N30: 806875 | O30: 0.00%
A31: 21 | B31: Finance | C31: BAJFINANCE | D31: 3453.45 | E31: 3463.35 | F31: 3433.85 | G31: 3414.25 | H31: 3384.75 | I31: 3482.95 | J31: 3512.45 | K31: 3532.05 | L31: 3492.85 | M31: 3443.75 | N31: 5661250 | O31: -0.04%
A32: 22 | B32: Others | C32: BALKRISIND | D32: 840.35 | E32: 830.55 | F32: 815.30 | G32: 790.25 | H32: 775.00 | I32: 855.60 | J32: 870.85 | K32: 895.90 | L32: 845.8 | M32: 805.5 | N32: 2416000 | O32: -6.99%
A33: 23 | B33: Banking | C33: BANKBARODA | D33: 140.85 | E33: 139.77 | F33: 137.88 | G33: 134.92 | H33: 133.03 | I33: 142.73 | J33: 144.62 | K33: 147.58 | L33: 141.65 | M33: 136.8 | N33: 55222000 | O33: -0.61%
A34: 24 | B34: Banking | C34: BANKINDIA | D34: 98.60 | E34: 98.15 | F34: 96.75 | G34: 94.90 | H34: 93.50 | I34: 100.00 | J34: 101.40 | K34: 103.25 | L34: 99.55 | M34: 96.3 | N34: 23142000 | O34: 1.00%
A35: 25 | B35: FMCG | C35: BATAINDIA | D35: 1339.95 | E35: 1339.88 | F35: 1309.97 | G35: 1279.98 | H35: 1250.07 | I35: 1369.87 | J35: 1399.78 | K35: 1429.77 | L35: 1369.8 | M35: 1309.9 | N35: 2334750 | O35: 8.29%
A36: 26 | B36: Capital_Goods | C36: BEL | D36: 112.95 | E36: 113.33 | F36: 109.37 | G36: 105.78 | H36: 101.82 | I36: 116.92 | J36: 120.88 | K36: 124.47 | L36: 117.3 | M36: 109.75 | N36: 25218000 | O36: -5.47%
A37: 27 | B37: Infrastructure | C37: BEML | D37: 1005.85 | E37: 993.68 | F37: 964.37 | G37: 922.88 | H37: 893.57 | I37: 1035.17 | J37: 1064.48 | K37: 1105.97 | L37: 1023 | M37: 952.2 | N37: 1529500 | O37: 13.45%
A38: 28 | B38: Others | C38: BERGEPAINT | D38: 310.40 | E38: 311.95 | F38: 307.30 | G38: 304.20 | H38: 299.55 | I38: 315.05 | J38: 319.70 | K38: 322.80 | L38: 316.6 | M38: 308.85 | N38: 1999800 | O38: 11.40%
A39: 29 | B39: Finance | C39: BHARATFIN | D39: 1013.70 | E39: 1017.32 | F39: 1001.38 | G39: 989.07 | H39: 973.13 | I39: 1029.63 | J39: 1045.57 | K39: 1057.88 | L39: 1033.25 | M39: 1005 | N39: 6315000 | O39: -1.11%
A40: 30 | B40: Automobile | C40: BHARATFORG | D40: 482.85 | E40: 481.92 | F40: 475.93 | G40: 469.02 | H40: 463.03 | I40: 488.83 | J40: 494.82 | K40: 501.73 | L40: 487.9 | M40: 475 | N40: 9604800 | O40: -3.62%
A41: 31 | B41: Telecom | C41: BHARTIARTL | D41: 350.20 | E41: 349.73 | F41: 346.97 | G41: 343.73 | H41: 340.97 | I41: 352.97 | J41: 355.73 | K41: 358.97 | L41: 352.5 | M41: 346.5 | N41: 39603996 | O41: -0.34%
A42: 32 | B42: Capital_Goods | C42: BHEL | D42: 72.75 | E42: 71.65 | F42: 70.05 | G42: 67.35 | H42: 65.75 | I42: 74.35 | J42: 75.95 | K42: 78.65 | L42: 73.25 | M42: 68.95 | N42: 51195000 | O42: 8.44%
A43: 33 | B43: Pharma | C43: BIOCON | D43: 550.30 | E43: 545.87 | F43: 538.38 | G43: 526.47 | H43: 518.98 | I43: 557.78 | J43: 565.27 | K43: 577.18 | L43: 553.35 | M43: 533.95 | N43: 7728300 | O43: -5.15%
A44: 34 | B44: Automobile | C44: BOSCHLTD | D44: 16963.80 | E44: 17036.88 | F44: 16846.02 | G44: 16728.23 | H44: 16537.37 | I44: 17154.67 | J44: 17345.53 | K44: 17463.32 | L44: 17227.75 | M44: 16919.1 | N44: 163380 | O44: -2.14%
A45: 35 | B45: Oil_Gas | C45: BPCL | D45: 402.45 | E45: 398.90 | F45: 393.80 | G45: 385.15 | H45: 380.05 | I45: 407.55 | J45: 412.65 | K45: 421.30 | L45: 404 | M45: 390.25 | N45: 16464600 | O45: 4.45%
A46: 36 | B46: FMCG | C46: BRITANNIA | D46: 2892.50 | E46: 2883.87 | F46: 2866.08 | G46: 2839.67 | H46: 2821.88 | I46: 2910.28 | J46: 2928.07 | K46: 2954.48 | L46: 2901.65 | M46: 2857.45 | N46: 2230600 | O46: -2.41%
A47: 37 | B47: Pharma | C47: CADILAHC | D47: 254.75 | E47: 256.10 | F47: 251.95 | G47: 249.15 | H47: 245.00 | I47: 258.90 | J47: 263.05 | K47: 265.85 | L47: 260.25 | M47: 253.3 | N47: 18462400 | O47: 14.34%
A48: 38 | B48: Banking | C48: CANBK | D48: 281.65 | E48: 280.78 | F48: 275.57 | G48: 269.48 | H48: 264.27 | I48: 286.87 | J48: 292.08 | K48: 298.17 | L48: 286 | M48: 274.7 | N48: 9242000 | O48: -1.95%
A49: 39 | B49: Others | C49: CANFINHOME | D49: 355.40 | E49: 354.20 | F49: 350.20 | G49: 345.00 | H49: 341.00 | I49: 359.40 | J49: 363.40 | K49: 368.60 | L49: 358.2 | M49: 349 | N49: 3796200 | O49: -1.63%
A50: 40 | B50: Oil_Gas | C50: CASTROLIND | D50: 149.75 | E50: 149.33 | F50: 147.42 | G50: 145.08 | H50: 143.17 | I50: 151.67 | J50: 153.58 | K50: 155.92 | L50: 151.25 | M50: 147 | N50: 6942800 | O50: 0.64%
A51: 41 | B51: Automobile | C51: CEATLTD | D51: 1023.40 | E51: 1033.52 | F51: 1009.13 | G51: 994.87 | H51: 970.48 | I51: 1047.78 | J51: 1072.17 | K51: 1086.43 | L51: 1057.9 | M51: 1019.25 | N51: 974400 | O51: 7.03%
A52: 42 | B52: Textile | C52: CENTURYTEX | D52: 1055.50 | E52: 1047.90 | F52: 1035.20 | G52: 1014.90 | H52: 1002.20 | I52: 1068.20 | J52: 1080.90 | K52: 1101.20 | L52: 1060.6 | M52: 1027.6 | N52: 3659400 | O52: 0.05%
A53: 43 | B53: Power | C53: CESC | D53: 749.10 | E53: 749.20 | F53: 739.95 | G53: 730.80 | H53: 721.55 | I53: 758.35 | J53: 767.60 | K53: 776.75 | L53: 758.45 | M53: 740.05 | N53: 1371650 | O53: 2.63%
A54: 44 | B54: Power | C54: CGPOWER | D54: 38.15 | E54: 38.60 | F54: 37.30 | G54: 36.45 | H54: 35.15 | I54: 39.45 | J54: 40.75 | K54: 41.60 | L54: 39.9 | M54: 37.75 | N54: 19992000 | O54: 2.90%
A55: 45 | B55: Others | C55: CHENNPETRO | D55: 223.60 | E55: 222.07 | F55: 218.43 | G55: 213.27 | H55: 209.63 | I55: 227.23 | J55: 230.87 | K55: 236.03 | L55: 225.7 | M55: 216.9 | N55: 1153800 | O55: 6.13%
A56: 46 | B56: Others | C56: CHOLAFIN | D56: 1514.75 | E56: 1507.12 | F56: 1493.63 | G56: 1472.52 | H56: 1459.03 | I56: 1528.23 | J56: 1541.72 | K56: 1562.83 | L56: 1520.6 | M56: 1486 | N56: 851000 | O56: 11.17%
A57: 47 | B57: Pharma | C57: CIPLA | D57: 577.70 | E57: 577.80 | F57: 569.05 | G57: 560.40 | H57: 551.65 | I57: 586.45 | J57: 595.20 | K57: 603.85 | L57: 586.55 | M57: 569.15 | N57: 11273000 | O57: 0.86%
A58: 48 | B58: Others | C58: COALINDIA | D58: 244.70 | E58: 245.02 | F58: 243.18 | G58: 241.67 | H58: 239.83 | I58: 246.53 | J58: 248.37 | K58: 249.88 | L58: 246.85 | M58: 243.5 | N58: 30646000 | O58: 3.85%
A59: 49 | B59: FMCG | C59: COLPAL | D59: 1179.35 | E59: 1178.28 | F59: 1161.82 | G59: 1144.28 | H59: 1127.82 | I59: 1195.82 | J59: 1212.28 | K59: 1229.82 | L59: 1194.75 | M59: 1160.75 | N59: 2410100 | O59: 7.59%
A60: 50 | B60: Others | C60: CONCOR | D60: 523.55 | E60: 517.33 | F60: 507.57 | G60: 491.58 | H60: 481.82 | I60: 533.32 | J60: 543.08 | K60: 559.07 | L60: 527.1 | M60: 501.35 | N60: 2166318 | O60: -5.84%
A61: 51 | B61: Capital_Goods | C61: CUMMINSIND | D61: 784.25 | E61: 773.37 | F61: 758.38 | G61: 732.52 | H61: 717.53 | I61: 799.23 | J61: 814.22 | K61: 840.08 | L61: 788.35 | M61: 747.5 | N61: 1391600 | O61: 18.76%
A62: 52 | B62: FMCG | C62: DABUR | D62: 400.20 | E62: 402.08 | F62: 396.62 | G62: 393.03 | H62: 387.57 | I62: 405.67 | J62: 411.13 | K62: 414.72 | L62: 407.55 | M62: 398.5 | N62: 12445000 | O62: -1.62%
A63: 53 | B63: Banking | C63: DCBBANK | D63: 233.50 | E63: 233.18 | F63: 230.97 | G63: 228.43 | H63: 226.22 | I63: 235.72 | J63: 237.93 | K63: 240.47 | L63: 235.4 | M63: 230.65 | N63: 4801500 | O63: -2.20%
A64: 54 | B64: Finance | C64: DHFL | D64: 119.00 | E64: 119.22 | F64: 114.93 | G64: 110.87 | H64: 106.58 | I64: 123.28 | J64: 127.57 | K64: 131.63 | L64: 123.5 | M64: 115.15 | N64: 20464500 | O64: -1.53%
A65: 55 | B65: Media | C65: DISHTV | D65: 31.10 | E65: 31.08 | F65: 29.17 | G65: 27.23 | H65: 25.32 | I65: 33.02 | J65: 34.93 | K65: 36.87 | L65: 33 | M65: 29.15 | N65: 93256000 | O65: 7.54%
A66: 56 | B66: Pharma | C66: DIVISLAB | D66: 1596.15 | E66: 1637.00 | F66: 1534.05 | G66: 1471.95 | H66: 1369.00 | I66: 1699.10 | J66: 1802.05 | K66: 1864.15 | L66: 1739.95 | M66: 1574.9 | N66: 3134800 | O66: 4.06%
A67: 57 | B67: Realty | C67: DLF | D67: 196.90 | E67: 195.77 | F67: 191.33 | G67: 185.77 | H67: 181.33 | I67: 201.33 | J67: 205.77 | K67: 211.33 | L67: 200.2 | M67: 190.2 | N67: 48861200 | O67: 0.46%
A68: 58 | B68: Pharma | C68: DRREDDY | D68: 2661.20 | E68: 2655.07 | F68: 2638.13 | G68: 2615.07 | H68: 2598.13 | I68: 2678.13 | J68: 2695.07 | K68: 2718.13 | L68: 2672 | M68: 2632 | N68: 3865250 | O68: 0.43%
A69: 59 | B69: Automobile | C69: EICHERMOT | D69: 20954.50 | E69: 20998.28 | F69: 20768.07 | G69: 20581.63 | H69: 20351.42 | I69: 21184.72 | J69: 21414.93 | K69: 21601.37 | L69: 21228.5 | M69: 20811.85 | N69: 387875 | O69: -4.38%
A70: 60 | B70: Infrastructure | C70: ENGINERSIN | D70: 126.95 | E70: 125.27 | F70: 122.33 | G70: 117.72 | H70: 114.78 | I70: 129.88 | J70: 132.82 | K70: 137.43 | L70: 128.2 | M70: 120.65 | N70: 9253000 | O70: -5.04%
A71: 61 | B71: Finance | C71: EQUITAS | D71: 139.90 | E71: 139.03 | F71: 137.02 | G71: 134.13 | H71: 132.12 | I71: 141.92 | J71: 143.93 | K71: 146.82 | L71: 141.05 | M71: 136.15 | N71: 10112000 | O71: 8.73%
A72: 62 | B72: Automobile | C72: ESCORTS | D72: 637.90 | E72: 641.00 | F72: 632.45 | G72: 627.00 | H72: 618.45 | I72: 646.45 | J72: 655.00 | K72: 660.45 | L72: 649.55 | M72: 635.55 | N72: 5347100 | O72: 2.29%
A73: 63 | B73: Automobile | C73: EXIDEIND | D73: 216.95 | E73: 218.77 | F73: 214.63 | G73: 212.32 | H73: 208.18 | I73: 221.08 | J73: 225.22 | K73: 227.53 | L73: 222.9 | M73: 216.45 | N73: 9724800 | O73: 5.91%
A74: 64 | B74: Banking | C74: FEDERALBNK | D74: 108.15 | E74: 107.35 | F74: 106.25 | G74: 104.35 | H74: 103.25 | I74: 109.25 | J74: 110.35 | K74: 112.25 | L74: 108.45 | M74: 105.45 | N74: 55055000 | O74: 2.81%
A75: 65 | B75: Oil_Gas | C75: GAIL | D75: 348.50 | E75: 347.18 | F75: 343.52 | G75: 338.53 | H75: 334.87 | I75: 352.17 | J75: 355.83 | K75: 360.82 | L75: 350.85 | M75: 342.2 | N75: 15119223 | O75: 10.29%
A76: 66 | B76: Pharma | C76: GLENMARK | D76: 560.35 | E76: 560.83 | F76: 556.77 | G76: 553.18 | H76: 549.12 | I76: 564.42 | J76: 568.48 | K76: 572.07 | L76: 564.9 | M76: 557.25 | N76: 4326000 | O76: 4.49%
A77: 67 | B77: Infrastructure | C77: GMRINFRA | D77: 17.00 | E77: 17.12 | F77: 16.78 | G77: 16.57 | H77: 16.23 | I77: 17.33 | J77: 17.67 | K77: 17.88 | L77: 17.45 | M77: 16.9 | N77: 227925000 | O77: 14.13%
A78: 68 | B78: Others | C78: GODFRYPHLP | D78: 1032.05 | E78: 1041.23 | F78: 1013.67 | G78: 995.28 | H78: 967.72 | I78: 1059.62 | J78: 1087.18 | K78: 1105.57 | L78: 1068.8 | M78: 1022.85 | N78: 594300 | O78: -11.75%
A79: 69 | B79: FMCG | C79: GODREJCP | D79: 668.10 | E79: 669.82 | F79: 661.43 | G79: 654.77 | H79: 646.38 | I79: 676.48 | J79: 684.87 | K79: 691.53 | L79: 678.2 | M79: 663.15 | N79: 5810200 | O79: -1.15%
A80: 70 | B80: FMCG | C80: GODREJIND | D80: 496.20 | E80: 493.80 | F80: 489.10 | G80: 482.00 | H80: 477.30 | I80: 500.90 | J80: 505.60 | K80: 512.70 | L80: 498.5 | M80: 486.7 | N80: 1585500 | O80: 2.32%
A81: 71 | B81: Cement | C81: GRASIM | D81: 936.55 | E81: 932.13 | F81: 903.92 | G81: 871.28 | H81: 843.07 | I81: 964.77 | J81: 992.98 | K81: 1025.62 | L81: 960.35 | M81: 899.5 | N81: 12092250 | O81: -1.44%
A82: 72 | B82: Others | C82: GSFC | D82: 104.75 | E82: 104.45 | F82: 102.75 | G82: 100.75 | H82: 99.05 | I82: 106.45 | J82: 108.15 | K82: 110.15 | L82: 106.15 | M82: 102.45 | N82: 9221400 | O82: -2.19%
A83: 73 | B83: Others | C83: HAVELLS | D83: 732.10 | E83: 735.05 | F83: 726.00 | G83: 719.90 | H83: 710.85 | I83: 741.15 | J83: 750.20 | K83: 756.30 | L83: 744.1 | M83: 728.95 | N83: 5572000 | O83: 16.74%
A84: 74 | B84: Technology | C84: HCLTECH | D84: 1063.00 | E84: 1067.05 | F84: 1053.45 | G84: 1043.90 | H84: 1030.30 | I84: 1076.60 | J84: 1090.20 | K84: 1099.75 | L84: 1080.65 | M84: 1057.5 | N84: 9609600 | O84: -0.22%
A85: 75 | B85: Finance | C85: HDFC | D85: 2161.45 | E85: 2154.48 | F85: 2125.52 | G85: 2089.58 | H85: 2060.62 | I85: 2190.42 | J85: 2219.38 | K85: 2255.32 | L85: 2183.45 | M85: 2118.55 | N85: 26397500 | O85: -0.52%
A86: 76 | B86: Banking | C86: HDFCBANK | D86: 2408.65 | E86: 2402.15 | F86: 2381.40 | G86: 2354.15 | H86: 2333.40 | I86: 2429.40 | J86: 2450.15 | K86: 2477.40 | L86: 2422.9 | M86: 2374.9 | N86: 16403500 | O86: 0.33%
A87: 77 | B87: Automobile | C87: HEROMOTOCO | D87: 2827.25 | E87: 2825.80 | F87: 2803.00 | G87: 2778.75 | H87: 2755.95 | I87: 2850.05 | J87: 2872.85 | K87: 2897.10 | L87: 2848.6 | M87: 2801.55 | N87: 2457800 | O87: -1.06%
A88: 78 | B88: Technology | C88: HEXAWARE | D88: 350.85 | E88: 351.97 | F88: 348.63 | G88: 346.42 | H88: 343.08 | I88: 354.18 | J88: 357.52 | K88: 359.73 | L88: 355.3 | M88: 349.75 | N88: 1980000 | O88: 0.38%
A89: 79 | B89: Metals | C89: HINDALCO | D89: 200.75 | E89: 199.47 | F89: 196.63 | G89: 192.52 | H89: 189.68 | I89: 203.58 | J89: 206.42 | K89: 210.53 | L89: 202.3 | M89: 195.35 | N89: 36253000 | O89: -0.51%
A90: 80 | B90: Oil_Gas | C90: HINDPETRO | D90: 316.50 | E90: 311.48 | F90: 305.12 | G90: 293.73 | H90: 287.37 | I90: 322.87 | J90: 329.23 | K90: 340.62 | L90: 317.85 | M90: 300.1 | N90: 18238500 | O90: 1.35%
A91: 81 | B91: FMCG | C91: HINDUNILVR | D91: 1773.05 | E91: 1757.80 | F91: 1739.55 | G91: 1706.05 | H91: 1687.80 | I91: 1791.30 | J91: 1809.55 | K91: 1843.05 | L91: 1776.05 | M91: 1724.3 | N91: 10829100 | O91: 1.54%
A92: 82 | B92: Metals | C92: HINDZINC | D92: 254.75 | E92: 254.73 | F92: 253.02 | G92: 251.28 | H92: 249.57 | I92: 256.47 | J92: 258.18 | K92: 259.92 | L92: 256.45 | M92: 253 | N92: 5974400 | O92: 16.54%
A93: 83 | B93: Finance | C93: IBULHSGFIN | D93: 790.80 | E93: 795.53 | F93: 781.57 | G93: 772.33 | H93: 758.37 | I93: 804.77 | J93: 818.73 | K93: 827.97 | L93: 809.5 | M93: 786.3 | N93: 17759200 | O93: -0.70%
A94: 84 | B94: Banking | C94: ICICIBANK | D94: 433.95 | E94: 433.22 | F94: 429.98 | G94: 426.02 | H94: 422.78 | I94: 437.18 | J94: 440.42 | K94: 444.38 | L94: 436.45 | M94: 429.25 | N94: 101019875 | O94: 0.23%
A95: 85 | B95: Others | C95: ICICIPRULI | D95: 386.95 | E95: 382.50 | F95: 374.65 | G95: 362.35 | H95: 354.50 | I95: 394.80 | J95: 402.65 | K95: 414.95 | L95: 390.35 | M95: 370.2 | N95: 5064000 | O95: 5.17%
A96: 86 | B96: Banking | C96: IDBI | D96: 37.60 | E96: 37.73 | F96: 37.17 | G96: 36.73 | H96: 36.17 | I96: 38.17 | J96: 38.73 | K96: 39.17 | L96: 38.3 | M96: 37.3 | N96: 27390000 | O96: -2.35%
A97: 87 | B97: Telecom | C97: IDEA | D97: 13.10 | E97: 12.98 | F97: 12.72 | G97: 12.33 | H97: 12.07 | I97: 13.37 | J97: 13.63 | K97: 14.02 | L97: 13.25 | M97: 12.6 | N97: 548276032 | O97: -0.91%
A98: 88 | B98: Finance | C98: IDFC | D98: 39.55 | E98: 38.83 | F98: 37.87 | G98: 36.18 | H98: 35.22 | I98: 40.52 | J98: 41.48 | K98: 43.17 | L98: 39.8 | M98: 37.15 | N98: 74830800 | O98: 6.10%
A99: 89 | B99: Banking | C99: IDFCFIRSTB | D99: 46.00 | E99: 45.58 | F99: 45.07 | G99: 44.13 | H99: 43.62 | I99: 46.52 | J99: 47.03 | K99: 47.97 | L99: 46.1 | M99: 44.65 | N99: 130764000 | O99: -6.21%
A100: 90 | B100: Finance | C100: IFCI | D100: 11.10 | E100: 11.10 | F100: 10.80 | G100: 10.50 | H100: 10.20 | I100: 11.40 | J100: 11.70 | K100: 12.00 | L100: 11.4 | M100: 10.8 | N100: 54180000 | O100: 6.03%
A101: 91 | B101: Oil_Gas | C101: IGL | D101: 331.40 | E101: 330.12 | F101: 319.88 | G101: 308.37 | H101: 298.13 | I101: 341.63 | J101: 351.87 | K101: 363.38 | L101: 340.35 | M101: 318.6 | N101: 3569500 | O101: 49.71%
A102: 92 | B102: Cement | C102: INDIACEM | D102: 114.30 | E102: 113.20 | F102: 110.65 | G102: 107.00 | H102: 104.45 | I102: 116.85 | J102: 119.40 | K102: 123.05 | L102: 115.75 | M102: 109.55 | N102: 19156500 | O102: 5.71%
A103: 93 | B103: Banking | C103: INDIANB | D103: 271.35 | E103: 270.73 | F103: 266.32 | G103: 261.28 | H103: 256.87 | I103: 275.77 | J103: 280.18 | K103: 285.22 | L103: 275.15 | M103: 265.7 | N103: 4324000 | O103: 3.59%
A104: 94 | B104: Others | C104: INDIGO | D104: 1665.45 | E104: 1647.40 | F104: 1619.90 | G104: 1574.35 | H104: 1546.85 | I104: 1692.95 | J104: 1720.45 | K104: 1766.00 | L104: 1674.9 | M104: 1601.85 | N104: 3308400 | O104: 9.80%
A105: 95 | B105: Banking | C105: INDUSINDBK | D105: 1615.55 | E105: 1625.38 | F105: 1600.82 | G105: 1586.08 | H105: 1561.52 | I105: 1640.12 | J105: 1664.68 | K105: 1679.42 | L105: 1649.95 | M105: 1610.65 | N105: 11537900 | O105: 0.97%
A106: 96 | B106: Technology | C106: INFIBEAM | D106: 47.25 | E106: 46.93 | F106: 46.02 | G106: 44.78 | H106: 43.87 | I106: 48.17 | J106: 49.08 | K106: 50.32 | L106: 47.85 | M106: 45.7 | N106: 10456000 | O106: 1.36%
A107: 97 | B107: Telecom | C107: INFRATEL | D107: 279.35 | E107: 279.32 | F107: 276.03 | G107: 272.72 | H107: 269.43 | I107: 282.63 | J107: 285.92 | K107: 289.23 | L107: 282.6 | M107: 276 | N107: 8128000 | O107: -1.05%
A108: 98 | B108: Technology | C108: INFY | D108: 707.45 | E108: 708.55 | F108: 703.95 | G108: 700.45 | H108: 695.85 | I108: 712.05 | J108: 716.65 | K108: 720.15 | L108: 713.15 | M108: 705.05 | N108: 53214000 | O108: 1.24%
A109: 99 | B109: Oil_Gas | C109: IOC | D109: 162.25 | E109: 160.28 | F109: 157.67 | G109: 153.08 | H109: 150.47 | I109: 164.87 | J109: 167.48 | K109: 172.07 | L109: 162.9 | M109: 155.7 | N109: 45612000 | O109: 0.39%
A110: 100 | B110: Infrastructure | C110: IRB | D110: 136.50 | E110: 136.82 | F110: 134.13 | G110: 131.77 | H110: 129.08 | I110: 139.18 | J110: 141.87 | K110: 144.23 | L110: 139.5 | M110: 134.45 | N110: 8448000 | O110: -2.73%
A111: 101 | B111: FMCG | C111: ITC | D111: 291.00 | E111: 291.42 | F111: 289.18 | G111: 287.37 | H111: 285.13 | I111: 293.23 | J111: 295.47 | K111: 297.28 | L111: 293.65 | M111: 289.6 | N111: 94456800 | O111: 0.76%
A112: 102 | B112: Others | C112: JETAIRWAYS | D112: 142.00 | E112: 140.63 | F112: 135.42 | G112: 128.83 | H112: 123.62 | I112: 147.22 | J112: 152.43 | K112: 159.02 | L112: 145.85 | M112: 134.05 | N112: 4811400 | O112: -1.13%
A113: 103 | B113: Metals | C113: JINDALSTEL | D113: 167.90 | E113: 165.27 | F113: 162.28 | G113: 156.67 | H113: 153.68 | I113: 170.88 | J113: 173.87 | K113: 179.48 | L113: 168.25 | M113: 159.65 | N113: 24324700 | O113: -3.23%
A114: 104 | B114: Others | C114: JISLJALEQS | D114: 55.95 | E114: 55.90 | F114: 55.10 | G114: 54.25 | H114: 53.45 | I114: 56.75 | J114: 57.55 | K114: 58.40 | L114: 56.7 | M114: 55.05 | N114: 28413000 | O114: -2.17%
A115: 105 | B115: Metals | C115: JSWSTEEL | D115: 287.50 | E115: 284.85 | F115: 280.40 | G115: 273.30 | H115: 268.85 | I115: 291.95 | J115: 296.40 | K115: 303.50 | L115: 289.3 | M115: 277.75 | N115: 47443500 | O115: 1.36%
A116: 106 | B116: Others | C116: JUBLFOOD | D116: 1332.60 | E116: 1325.52 | F116: 1312.08 | G116: 1291.57 | H116: 1278.13 | I116: 1346.03 | J116: 1359.47 | K116: 1379.98 | L116: 1338.95 | M116: 1305 | N116: 2887000 | O116: -2.99%
A117: 107 | B117: Others | C117: JUSTDIAL | D117: 699.70 | E117: 692.92 | F117: 674.83 | G117: 649.97 | H117: 631.88 | I117: 717.78 | J117: 735.87 | K117: 760.73 | L117: 711 | M117: 668.05 | N117: 2888200 | O117: -3.64%
A118: 108 | B118: Others | C118: KAJARIACER | D118: 629.40 | E118: 621.62 | F118: 611.28 | G118: 593.17 | H118: 582.83 | I118: 639.73 | J118: 650.07 | K118: 668.18 | L118: 631.95 | M118: 603.5 | N118: 1942200 | O118: 9.61%
A119: 109 | B119: Banking | C119: KOTAKBANK | D119: 1523.65 | E119: 1516.40 | F119: 1504.35 | G119: 1485.05 | H119: 1473.00 | I119: 1535.70 | J119: 1547.75 | K119: 1567.05 | L119: 1528.45 | M119: 1497.1 | N119: 12878800 | O119: 7.37%
A120: 110 | B120: Technology | C120: BSOFT | D120: 92.00 | E120: 89.87 | F120: 85.43 | G120: 78.87 | H120: 74.43 | I120: 96.43 | J120: 100.87 | K120: 107.43 | L120: 94.3 | M120: 83.3 | N120: 3682650 | O120: 5.25%
A121: 111 | B121: Others | C121: KSCL | D121: 499.35 | E121: 498.28 | F121: 490.72 | G121: 482.08 | H121: 474.52 | I121: 506.92 | J121: 514.48 | K121: 523.12 | L121: 505.85 | M121: 489.65 | N121: 612000 | O121: 9.97%
A122: 112 | B122: Banking | C122: KTKBANK | D122: 118.50 | E122: 117.92 | F122: 115.78 | G122: 113.07 | H122: 110.93 | I122: 120.63 | J122: 122.77 | K122: 125.48 | L122: 120.05 | M122: 115.2 | N122: 11975600 | O122: -2.79%
A123: 113 | B123: Finance | C123: L&TFH | D123: 128.00 | E123: 128.63 | F123: 126.97 | G123: 125.93 | H123: 124.27 | I123: 129.67 | J123: 131.33 | K123: 132.37 | L123: 130.3 | M123: 127.6 | N123: 28656000 | O123: 0.25%
A124: 114 | B124: Finance | C124: LICHSGFIN | D124: 543.45 | E124: 541.13 | F124: 536.52 | G124: 529.58 | H124: 524.97 | I124: 548.07 | J124: 552.68 | K124: 559.62 | L124: 545.75 | M124: 534.2 | N124: 7660400 | O124: 3.91%
A125: 115 | B125: Capital_Goods | C125: LT | D125: 1593.45 | E125: 1575.80 | F125: 1554.00 | G125: 1514.55 | H125: 1492.75 | I125: 1615.25 | J125: 1637.05 | K125: 1676.50 | L125: 1597.6 | M125: 1536.35 | N125: 11394750 | O125: 0.63%
A126: 116 | B126: Pharma | C126: LUPIN | D126: 744.65 | E126: 740.75 | F126: 721.20 | G126: 697.75 | H126: 678.20 | I126: 764.20 | J126: 783.75 | K126: 807.20 | L126: 760.3 | M126: 717.3 | N126: 8632400 | O126: -2.94%
A127: 117 | B127: Automobile | C127: M&M | D127: 678.70 | E127: 675.77 | F127: 668.93 | G127: 659.17 | H127: 652.33 | I127: 685.53 | J127: 692.37 | K127: 702.13 | L127: 682.6 | M127: 666 | N127: 20745000 | O127: 1.21%
A128: 118 | B128: Finance | C128: M&MFIN | D128: 409.00 | E128: 410.63 | F128: 405.12 | G128: 401.23 | H128: 395.72 | I128: 414.52 | J128: 420.03 | K128: 423.92 | L128: 416.15 | M128: 406.75 | N128: 10721250 | O128: 2.40%
A129: 119 | B129: Others | C129: MANAPPURAM | D129: 135.75 | E129: 136.32 | F129: 134.28 | G129: 132.82 | H129: 130.78 | I129: 137.78 | J129: 139.82 | K129: 141.28 | L129: 138.35 | M129: 134.85 | N129: 11292000 | O129: 0.16%
A130: 120 | B130: FMCG | C130: MARICO | D130: 365.65 | E130: 365.32 | F130: 363.13 | G130: 360.62 | H130: 358.43 | I130: 367.83 | J130: 370.02 | K130: 372.53 | L130: 367.5 | M130: 362.8 | N130: 7989800 | O130: 2.03%
A131: 121 | B131: Automobile | C131: MARUTI | D131: 7062.50 | E131: 7063.08 | F131: 6916.17 | G131: 6769.83 | H131: 6622.92 | I131: 7209.42 | J131: 7356.33 | K131: 7502.67 | L131: 7210 | M131: 6916.75 | N131: 3155850 | O131: -3.04%
A132: 122 | B132: FMCG | C132: MCDOWELL-N | D132: 536.05 | E132: 536.05 | F132: 530.15 | G132: 524.25 | H132: 518.35 | I132: 541.95 | J132: 547.85 | K132: 553.75 | L132: 541.95 | M132: 530.15 | N132: 11472500 | O132: 1.24%
A133: 123 | B133: Others | C133: MCX | D133: 846.25 | E133: 848.35 | F133: 839.85 | G133: 833.45 | H133: 824.95 | I133: 854.75 | J133: 863.25 | K133: 869.65 | L133: 856.85 | M133: 841.95 | N133: 2041200 | O133: 1.85%
A134: 124 | B134: Finance | C134: MFSL | D134: 447.40 | E134: 443.28 | F134: 436.62 | G134: 425.83 | H134: 419.17 | I134: 454.07 | J134: 460.73 | K134: 471.52 | L134: 449.95 | M134: 432.5 | N134: 2064000 | O134: 1.18%
A135: 125 | B135: Others | C135: MGL | D135: 887.80 | E135: 890.82 | F135: 875.98 | G135: 864.17 | H135: 849.33 | I135: 902.63 | J135: 917.47 | K135: 929.28 | L135: 905.65 | M135: 879 | N135: 830400 | O135: 20.56%
A136: 126 | B136: Technology | C136: MINDTREE | D136: 977.30 | E136: 978.25 | F136: 975.60 | G136: 973.90 | H136: 971.25 | I136: 979.95 | J136: 982.60 | K136: 984.30 | L136: 980.9 | M136: 976.55 | N136: 1713000 | O136: -11.11%
A137: 127 | B137: Automobile | C137: MOTHERSUMI | D137: 116.30 | E137: 118.03 | F137: 113.92 | G137: 111.53 | H137: 107.42 | I137: 120.42 | J137: 124.53 | K137: 126.92 | L137: 122.15 | M137: 115.65 | N137: 43772100 | O137: 15.22%
A138: 128 | B138: Automobile | C138: MRF | D138: 56994.15 | E138: 57254.73 | F138: 56559.52 | G138: 56124.88 | H138: 55429.67 | I138: 57689.37 | J138: 58384.58 | K138: 58819.22 | L138: 57949.95 | M138: 56820.1 | N138: 32160 | O138: 0.59%
A139: 129 | B139: Others | C139: MRPL | D139: 62.00 | E139: 62.03 | F139: 61.22 | G139: 60.43 | H139: 59.62 | I139: 62.82 | J139: 63.63 | K139: 64.42 | L139: 62.85 | M139: 61.25 | N139: 6272000 | O139: 8.61%
A140: 130 | B140: Finance | C140: MUTHOOTFIN | D140: 648.30 | E140: 647.77 | F140: 642.73 | G140: 637.17 | H140: 632.13 | I140: 653.33 | J140: 658.37 | K140: 663.93 | L140: 652.8 | M140: 642.2 | N140: 3246000 | O140: -7.24%
A141: 131 | B141: Others | C141: NATIONALUM | D141: 51.20 | E141: 50.68 | F141: 49.92 | G141: 48.63 | H141: 47.87 | I141: 51.97 | J141: 52.73 | K141: 54.02 | L141: 51.45 | M141: 49.4 | N141: 44674000 | O141: 3.16%
A142: 132 | B142: Others | C142: NBCC | D142: 63.60 | E142: 63.12 | F142: 61.98 | G142: 60.37 | H142: 59.23 | I142: 64.73 | J142: 65.87 | K142: 67.48 | L142: 64.25 | M142: 61.5 | N142: 29691000 | O142: -4.82%
A143: 133 | B143: Infrastructure | C143: NCC | D143: 115.00 | E143: 115.77 | F143: 112.33 | G143: 109.67 | H143: 106.23 | I143: 118.43 | J143: 121.87 | K143: 124.53 | L143: 119.2 | M143: 113.1 | N143: 42768000 | O143: 9.77%
A144: 134 | B144: Others | C144: NESTLEIND | D144: 11020.60 | E144: 10938.88 | F144: 10806.77 | G144: 10592.93 | H144: 10460.82 | I144: 11152.72 | J144: 11284.83 | K144: 11498.67 | L144: 11071 | M144: 10725.05 | N144: 279650 | O144: -1.88%
A145: 135 | B145: Power | C145: NHPC | D145: 23.65 | E145: 23.47 | F145: 23.23 | G145: 22.82 | H145: 22.58 | I145: 23.88 | J145: 24.12 | K145: 24.53 | L145: 23.7 | M145: 23.05 | N145: 17388000 | O145: 11.61%
A146: 136 | B146: Technology | C146: NIITTECH | D146: 1279.95 | E146: 1276.15 | F146: 1269.80 | G146: 1259.65 | H146: 1253.30 | I146: 1286.30 | J146: 1292.65 | K146: 1302.80 | L146: 1282.5 | M146: 1266 | N146: 1671750 | O146: 1.41%
A147: 137 | B147: Metals | C147: NMDC | D147: 102.20 | E147: 101.17 | F147: 99.38 | G147: 96.57 | H147: 94.78 | I147: 103.98 | J147: 105.77 | K147: 108.58 | L147: 102.95 | M147: 98.35 | N147: 22890000 | O147: 5.74%
A148: 138 | B148: Power | C148: NTPC | D148: 133.45 | E148: 133.60 | F148: 130.40 | G148: 127.35 | H148: 124.15 | I148: 136.65 | J148: 139.85 | K148: 142.90 | L148: 136.8 | M148: 130.55 | N148: 57182400 | O148: 4.71%
A149: 139 | B149: Technology | C149: OFSS | D149: 3415.40 | E149: 3421.12 | F149: 3394.23 | G149: 3373.07 | H149: 3346.18 | I149: 3442.28 | J149: 3469.17 | K149: 3490.33 | L149: 3448 | M149: 3399.95 | N149: 261150 | O149: 1.58%
A150: 140 | B150: Oil_Gas | C150: OIL | D150: 185.65 | E150: 185.80 | F150: 184.25 | G150: 182.85 | H150: 181.30 | I150: 187.20 | J150: 188.75 | K150: 190.15 | L150: 187.35 | M150: 184.4 | N150: 6549873 | O150: 1.69%
A151: 141 | B151: Oil_Gas | C151: ONGC | D151: 174.05 | E151: 174.12 | F151: 172.73 | G151: 171.42 | H151: 170.03 | I151: 175.43 | J151: 176.82 | K151: 178.13 | L151: 175.5 | M151: 172.8 | N151: 62437500 | O151: 3.98%
A152: 142 | B152: Banking | C152: ORIENTBANK | D152: 105.65 | E152: 104.60 | F152: 102.40 | G152: 99.15 | H152: 96.95 | I152: 107.85 | J152: 110.05 | K152: 113.30 | L152: 106.8 | M152: 101.35 | N152: 9247000 | O152: -6.11%
A153: 143 | B153: Textile | C153: PAGEIND | D153: 19657.15 | E153: 19825.72 | F153: 18851.43 | G153: 18045.72 | H153: 17071.43 | I153: 20631.43 | J153: 21605.72 | K153: 22411.43 | L153: 20800 | M153: 19020 | N153: 157200 | O153: 4.19%
A154: 144 | B154: Others | C154: PCJEWELLER | D154: 86.85 | E154: 92.15 | F154: 81.10 | G154: 75.35 | H154: 64.30 | I154: 97.90 | J154: 108.95 | K154: 114.70 | L154: 103.2 | M154: 86.4 | N154: 14462500 | O154: 21.06%
A155: 145 | B155: Pharma | C155: PEL | D155: 2196.20 | E155: 2205.25 | F155: 2173.25 | G155: 2150.30 | H155: 2118.30 | I155: 2228.20 | J155: 2260.20 | K155: 2283.15 | L155: 2237.25 | M155: 2182.3 | N155: 3582022 | O155: -8.59%
A156: 146 | B156: Oil_Gas | C156: PETRONET | D156: 245.60 | E156: 244.93 | F156: 243.17 | G156: 240.73 | H156: 238.97 | I156: 247.37 | J156: 249.13 | K156: 251.57 | L156: 246.7 | M156: 242.5 | N156: 13173000 | O156: 11.56%
A157: 147 | B157: Finance | C157: PFC | D157: 119.20 | E157: 118.30 | F157: 115.90 | G157: 112.60 | H157: 110.20 | I157: 121.60 | J157: 124.00 | K157: 127.30 | L157: 120.7 | M157: 115 | N157: 25506800 | O157: 6.39%
A158: 148 | B158: FMCG | C158: PIDILITIND | D158: 1230.35 | E158: 1230.13 | F158: 1217.22 | G158: 1204.08 | H158: 1191.17 | I158: 1243.27 | J158: 1256.18 | K158: 1269.32 | L158: 1243.05 | M158: 1217 | N158: 2652000 | O158: -1.56%
A159: 149 | B159: Banking | C159: PNB | D159: 89.25 | E159: 89.42 | F159: 87.48 | G159: 85.72 | H159: 83.78 | I159: 91.18 | J159: 93.12 | K159: 94.88 | L159: 91.35 | M159: 87.65 | N159: 114576000 | O159: 9.07%
A160: 150 | B160: Power | C160: POWERGRID | D160: 187.40 | E160: 187.73 | F160: 185.72 | G160: 184.03 | H160: 182.02 | I160: 189.42 | J160: 191.43 | K160: 193.12 | L160: 189.75 | M160: 186.05 | N160: 25952000 | O160: 17.01%
A161: 151 | B161: Others | C161: PVR | D161: 1710.30 | E161: 1718.07 | F161: 1696.18 | G161: 1682.07 | H161: 1660.18 | I161: 1732.18 | J161: 1754.07 | K161: 1768.18 | L161: 1739.95 | M161: 1703.95 | N161: 783200 | O161: 5.50%
A162: 152 | B162: Cement | C162: RAMCOCEM | D162: 835.85 | E162: 831.15 | F162: 817.60 | G162: 799.35 | H162: 785.80 | I162: 849.40 | J162: 862.95 | K162: 881.20 | L162: 844.7 | M162: 812.9 | N162: 1337600 | O162: 14.91%
A163: 153 | B163: Others | C163: RAYMOND | D163: 856.15 | E163: 854.33 | F163: 847.42 | G163: 838.68 | H163: 831.77 | I163: 863.07 | J163: 869.98 | K163: 878.72 | L163: 861.25 | M163: 845.6 | N163: 3000000 | O163: 0.19%
A164: 154 | B164: Banking | C164: RBLBANK | D164: 700.95 | E164: 690.10 | F164: 676.80 | G164: 652.65 | H164: 639.35 | I164: 714.25 | J164: 727.55 | K164: 751.70 | L164: 703.4 | M164: 665.95 | N164: 6739200 | O164: 20.59%
A165: 155 | B165: Power | C165: RECLTD | D165: 147.60 | E165: 146.63 | F165: 143.92 | G165: 140.23 | H165: 137.52 | I165: 150.32 | J165: 153.03 | K165: 156.72 | L165: 149.35 | M165: 142.95 | N165: 27078000 | O165: 0.24%
A166: 156 | B166: Finance | C166: RELCAPITAL | D166: 133.85 | E166: 134.73 | F166: 130.97 | G166: 128.08 | H166: 124.32 | I166: 137.62 | J166: 141.38 | K166: 144.27 | L166: 138.5 | M166: 131.85 | N166: 11569500 | O166: -6.33%
A167: 157 | B167: Oil_Gas | C167: RELIANCE | D167: 1312.10 | E167: 1320.73 | F167: 1300.57 | G167: 1289.03 | H167: 1268.87 | I167: 1332.27 | J167: 1352.43 | K167: 1363.97 | L167: 1340.9 | M167: 1309.2 | N167: 48047000 | O167: -0.54%
A168: 158 | B168: Power | C168: RELINFRA | D168: 112.30 | E168: 112.80 | F168: 110.35 | G168: 108.40 | H168: 105.95 | I168: 114.75 | J168: 117.20 | K168: 119.15 | L168: 115.25 | M168: 110.85 | N168: 15567400 | O168: 8.42%
A169: 159 | B169: Others | C169: REPCOHOME | D169: 424.65 | E169: 424.03 | F169: 417.87 | G169: 411.08 | H169: 404.92 | I169: 430.82 | J169: 436.98 | K169: 443.77 | L169: 430.2 | M169: 417.25 | N169: 521400 | O169: 10.75%
A170: 160 | B170: Power | C170: RPOWER | D170: 7.50 | E170: 7.47 | F170: 7.38 | G170: 7.27 | H170: 7.18 | I170: 7.58 | J170: 7.67 | K170: 7.78 | L170: 7.55 | M170: 7.35 | N170: 101552000 | O170: 11.10%
A171: 161 | B171: Metals | C171: SAIL | D171: 53.65 | E171: 53.05 | F171: 52.20 | G171: 50.75 | H171: 49.90 | I171: 54.50 | J171: 55.35 | K171: 56.80 | L171: 53.9 | M171: 51.6 | N171: 88320000 | O171: 1.32%
A172: 162 | B172: Banking | C172: SBIN | D172: 361.05 | E172: 359.07 | F172: 356.23 | G172: 351.42 | H172: 348.58 | I172: 363.88 | J172: 366.72 | K172: 371.53 | L172: 361.9 | M172: 354.25 | N172: 82614000 | O172: 2.93%
A173: 163 | B173: Cement | C173: SHREECEM | D173: 21513.00 | E173: 21300.45 | F173: 20962.55 | G173: 20412.10 | H173: 20074.20 | I173: 21850.90 | J173: 22188.80 | K173: 22739.25 | L173: 21638.35 | M173: 20750 | N173: 111850 | O173: -8.24%
A174: 164 | B174: Capital_Goods | C174: SIEMENS | D174: 1273.40 | E174: 1260.10 | F174: 1238.30 | G174: 1203.20 | H174: 1181.40 | I174: 1295.20 | J174: 1317.00 | K174: 1352.10 | L174: 1281.9 | M174: 1225 | N174: 1315050 | O174: 5.70%
A175: 165 | B175: Banking | C175: SOUTHBANK | D175: 15.00 | E175: 14.85 | F175: 14.50 | G175: 14.00 | H175: 13.65 | I175: 15.35 | J175: 15.70 | K175: 16.20 | L175: 15.2 | M175: 14.35 | N175: 109564146 | O175: 11.43%
A176: 166 | B176: Textile | C176: SRF | D176: 2967.70 | E176: 2943.10 | F176: 2894.60 | G176: 2821.50 | H176: 2773.00 | I176: 3016.20 | J176: 3064.70 | K176: 3137.80 | L176: 2991.6 | M176: 2870 | N176: 985500 | O176: 8.48%
A177: 167 | B177: Finance | C177: SRTRANSFIN | D177: 1135.65 | E177: 1128.95 | F177: 1111.00 | G177: 1086.35 | H177: 1068.40 | I177: 1153.60 | J177: 1171.55 | K177: 1196.20 | L177: 1146.9 | M177: 1104.3 | N177: 3445800 | O177: -2.15%
A178: 168 | B178: Pharma | C178: STAR | D178: 423.75 | E178: 423.62 | F178: 418.13 | G178: 412.52 | H178: 407.03 | I178: 429.23 | J178: 434.72 | K178: 440.33 | L178: 429.1 | M178: 418 | N178: 2617400 | O178: 1.93%
A179: 169 | B179: Pharma | C179: SUNPHARMA | D179: 414.20 | E179: 415.80 | F179: 409.50 | G179: 404.80 | H179: 398.50 | I179: 420.50 | J179: 426.80 | K179: 431.50 | L179: 422.1 | M179: 411.1 | N179: 53245500 | O179: 1.44%
A180: 170 | B180: Media | C180: SUNTV | D180: 538.25 | E180: 536.75 | F180: 531.50 | G180: 524.75 | H180: 519.50 | I180: 543.50 | J180: 548.75 | K180: 555.50 | L180: 542 | M180: 530 | N180: 6761000 | O180: -6.73%
A181: 171 | B181: Power | C181: SUZLON | D181: 5.80 | E181: 5.82 | F181: 5.63 | G181: 5.47 | H181: 5.28 | I181: 5.98 | J181: 6.17 | K181: 6.33 | L181: 6 | M181: 5.65 | N181: 260604000 | O181: 3.56%
A182: 172 | B182: Banking | C182: SYNDIBANK | D182: 37.05 | E182: 36.83 | F182: 36.17 | G182: 35.28 | H182: 34.62 | I182: 37.72 | J182: 38.38 | K182: 39.27 | L182: 37.5 | M182: 35.95 | N182: 24495000 | O182: 0.55%
A183: 173 | B183: Fertilisers | C183: TATACHEM | D183: 637.50 | E183: 635.28 | F183: 631.22 | G183: 624.93 | H183: 620.87 | I183: 641.57 | J183: 645.63 | K183: 651.92 | L183: 639.35 | M183: 629 | N183: 4145550 | O183: 6.84%
A184: 174 | B184: Telecom | C184: TATACOMM | D184: 555.00 | E184: 554.53 | F184: 549.42 | G184: 543.83 | H184: 538.72 | I184: 560.12 | J184: 565.23 | K184: 570.82 | L184: 559.65 | M184: 548.95 | N184: 2090000 | O184: 0.87%
A185: 175 | B185: Technology | C185: TATAELXSI | D185: 875.30 | E185: 871.97 | F185: 864.33 | G185: 853.37 | H185: 845.73 | I185: 882.93 | J185: 890.57 | K185: 901.53 | L185: 879.6 | M185: 861 | N185: 2058000 | O185: 2.34%
A186: 176 | B186: FMCG | C186: TATAGLOBAL | D186: 233.95 | E186: 234.88 | F186: 231.67 | G186: 229.38 | H186: 226.17 | I186: 237.17 | J186: 240.38 | K186: 242.67 | L186: 238.1 | M186: 232.6 | N186: 17911800 | O186: -0.91%
A187: 177 | B187: Automobile | C187: TATAMOTORS | D187: 181.15 | E187: 181.37 | F187: 179.13 | G187: 177.12 | H187: 174.88 | I187: 183.38 | J187: 185.62 | K187: 187.63 | L187: 183.6 | M187: 179.35 | N187: 58798000 | O187: 0.01%
A188: 178 | B188: Automobile | C188: TATAMTRDVR | D188: 87.15 | E188: 87.20 | F188: 86.40 | G188: 85.65 | H188: 84.85 | I188: 87.95 | J188: 88.75 | K188: 89.50 | L188: 88 | M188: 86.45 | N188: 29802200 | O188: 0.28%
A189: 179 | B189: Power | C189: TATAPOWER | D189: 70.90 | E189: 69.77 | F189: 68.38 | G189: 65.87 | H189: 64.48 | I189: 72.28 | J189: 73.67 | K189: 76.18 | L189: 71.15 | M189: 67.25 | N189: 64665000 | O189: 4.45%
A190: 180 | B190: Metals | C190: TATASTEEL | D190: 511.60 | E190: 502.98 | F190: 492.52 | G190: 473.43 | H190: 462.97 | I190: 522.07 | J190: 532.53 | K190: 551.62 | L190: 513.45 | M190: 483.9 | N190: 29802429 | O190: -3.63%
A191: 181 | B191: Technology | C191: TCS | D191: 2054.80 | E191: 2053.92 | F191: 2039.78 | G191: 2024.77 | H191: 2010.63 | I191: 2068.93 | J191: 2083.07 | K191: 2098.08 | L191: 2068.05 | M191: 2038.9 | N191: 13981500 | O191: 4.49%
A192: 182 | B192: Technology | C192: TECHM | D192: 727.10 | E192: 729.20 | F192: 719.40 | G192: 711.70 | H192: 701.90 | I192: 736.90 | J192: 746.70 | K192: 754.40 | L192: 739 | M192: 721.5 | N192: 11676000 | O192: 1.95%
A193: 183 | B193: FMCG | C193: TITAN | D193: 1242.20 | E193: 1231.07 | F193: 1217.43 | G193: 1192.67 | H193: 1179.03 | I193: 1255.83 | J193: 1269.47 | K193: 1294.23 | L193: 1244.7 | M193: 1206.3 | N193: 8482500 | O193: 3.51%
A194: 184 | B194: Pharma | C194: TORNTPHARM | D194: 1514.75 | E194: 1519.15 | F194: 1504.40 | G194: 1494.05 | H194: 1479.30 | I194: 1529.50 | J194: 1544.25 | K194: 1554.60 | L194: 1533.9 | M194: 1508.8 | N194: 746000 | O194: 9.54%
A195: 185 | B195: Power | C195: TORNTPOWER | D195: 252.50 | E195: 249.62 | F195: 245.53 | G195: 238.57 | H195: 234.48 | I195: 256.58 | J195: 260.67 | K195: 267.63 | L195: 253.7 | M195: 242.65 | N195: 2967000 | O195: 6.00%
A196: 186 | B196: Media | C196: TV18BRDCST | D196: 30.35 | E196: 30.37 | F196: 29.98 | G196: 29.62 | H196: 29.23 | I196: 30.73 | J196: 31.12 | K196: 31.48 | L196: 30.75 | M196: 30 | N196: 54054000 | O196: 2.90%
A197: 187 | B197: Automobile | C197: TVSMOTOR | D197: 495.90 | E197: 495.92 | F197: 489.98 | G197: 484.07 | H197: 478.13 | I197: 501.83 | J197: 507.77 | K197: 513.68 | L197: 501.85 | M197: 490 | N197: 6157500 | O197: -2.65%
A198: 188 | B198: FMCG | C198: UBL | D198: 1373.60 | E198: 1385.87 | F198: 1356.73 | G198: 1339.87 | H198: 1310.73 | I198: 1402.73 | J198: 1431.87 | K198: 1448.73 | L198: 1415 | M198: 1369 | N198: 1824200 | O198: -0.61%
A199: 189 | B199: Finance | C199: UJJIVAN | D199: 353.60 | E199: 352.53 | F199: 347.37 | G199: 341.13 | H199: 335.97 | I199: 358.77 | J199: 363.93 | K199: 370.17 | L199: 357.7 | M199: 346.3 | N199: 2966400 | O199: 5.28%
A200: 190 | B200: Cement | C200: ULTRACEMCO | D200: 4848.15 | E200: 4842.43 | F200: 4775.57 | G200: 4702.98 | H200: 4636.12 | I200: 4915.02 | J200: 4981.88 | K200: 5054.47 | L200: 4909.3 | M200: 4769.85 | N200: 2497400 | O200: 0.69%
A201: 191 | B201: Banking | C201: UNIONBANK | D201: 77.50 | E201: 77.22 | F201: 75.78 | G201: 74.07 | H201: 72.63 | I201: 78.93 | J201: 80.37 | K201: 82.08 | L201: 78.65 | M201: 75.5 | N201: 41335000 | O201: -0.79%
A202: 192 | B202: Fertilisers | C202: UPL | D202: 1016.90 | E202: 1020.72 | F202: 1006.53 | G202: 996.17 | H202: 981.98 | I202: 1031.08 | J202: 1045.27 | K202: 1055.63 | L202: 1034.9 | M202: 1010.35 | N202: 12391200 | O202: 2.49%
A203: 193 | B203: Metals | C203: VEDL | D203: 166.70 | E203: 165.87 | F203: 163.73 | G203: 160.77 | H203: 158.63 | I203: 168.83 | J203: 170.97 | K203: 173.93 | L203: 168 | M203: 162.9 | N203: 33851800 | O203: -2.74%
A204: 194 | B204: Others | C204: VGUARD | D204: 219.65 | E204: 216.28 | F204: 208.87 | G204: 198.08 | H204: 190.67 | I204: 227.07 | J204: 234.48 | K204: 245.27 | L204: 223.7 | M204: 205.5 | N204: 2040000 | O204: -6.85%
A205: 195 | B205: Capital_Goods | C205: VOLTAS | D205: 593.60 | E205: 591.85 | F205: 584.75 | G205: 575.90 | H205: 568.80 | I205: 600.70 | J205: 607.80 | K205: 616.65 | L205: 598.95 | M205: 583 | N205: 5394000 | O205: 9.04%
A206: 196 | B206: Technology | C206: WIPRO | D206: 280.10 | E206: 281.07 | F206: 278.73 | G206: 277.37 | H206: 275.03 | I206: 282.43 | J206: 284.77 | K206: 286.13 | L206: 283.4 | M206: 279.7 | N206: 48796800 | O206: 11.92%
... 18 more rows

Sheet Cash Intra
M5: Back to Main Page
A6: FOR INTRA DAY TRADING | K6: =Main!B10 -> 2019-05-28
A8: Sr.no | B8: Scrip | C8: CLOSE RATE | D8: Pivot Point | E8: Supports | H8: Resistances
C9: Point | E9: S1 | F9: S2 | G9: S3 | H9: R1 | I9: R2 | J9: R3 | K9: HIGH | L9: LOW | M9: Total Trade Quanity in Lakhs
A10: 1 | B10: Nifty 50 | C10: 11924.75 | D10: 11898.10 | E10: 11839.05 | F10: 11753.35 | G10: 11694.30 | H10: 11983.80 | I10: 12042.85 | J10: 12128.55 | K10: 11957.15 | L10: 11812.4
A11: 2 | B11: Nifty Bank | C11: 31647.65 | D11: 31496.97 | E11: 31293.18 | F11: 30938.72 | G11: 30734.93 | H11: 31851.43 | I11: 32055.22 | J11: 32409.68 | K11: 31700.75 | L11: 31142.5
A12: 3 | B12: Nifty CPSE | C12: 2324.2 | D12: 2313.30 | E12: 2295.80 | F12: 2267.40 | G12: 2249.90 | H12: 2341.70 | I12: 2359.20 | J12: 2387.60 | K12: 2330.8 | L12: 2284.9
A13: 4 | B13: Nifty Infra | C13: 3380.05 | D13: 3352.93 | E13: 3321.72 | F13: 3263.38 | G13: 3232.17 | H13: 3411.27 | I13: 3442.48 | J13: 3500.82 | K13: 3384.15 | L13: 3294.6
A14: 5 | B14: Nifty IT | C14: 15556.65 | D14: 15570.88 | E14: 15512.17 | F14: 15467.68 | G14: 15408.97 | H14: 15615.37 | I14: 15674.08 | J14: 15718.57 | K14: 15629.6 | L14: 15526.4
A15: 6 | B15: Nifty PSE | C15: 3618.45 | D15: 3596.10 | E15: 3568.20 | F15: 3517.95 | G15: 3490.05 | H15: 3646.35 | I15: 3674.25 | J15: 3724.50 | K15: 3624 | L15: 3545.85
A16: 7 | B16: Nifty Midcap 50 | C16: 5001.2 | D16: 4973.12 | E16: 4939.43 | F16: 4877.67 | G16: 4843.98 | H16: 5034.88 | I16: 5068.57 | J16: 5130.33 | K16: 5006.8 | L16: 4911.35
A17: 8 | B17: ABB | C17: 1613.3 | D17: 1570.42 | E17: 1520.88 | F17: 1428.47 | G17: 1378.93 | H17: 1662.83 | I17: 1712.37 | J17: 1804.78 | K17: 1619.95 | L17: 1478 | M17: 3.27524
A18: 9 | B18: ACC | C18: 1759.8 | D18: 1741.67 | E18: 1718.13 | F18: 1676.47 | G18: 1652.93 | H18: 1783.33 | I18: 1806.87 | J18: 1848.53 | K18: 1765.2 | L18: 1700 | M18: 9.60403
A19: 10 | B19: AUBANK | C19: 677.4 | D19: 679.90 | E19: 668.30 | F19: 659.20 | G19: 647.60 | H19: 689.00 | I19: 700.60 | J19: 709.70 | K19: 691.5 | L19: 670.8 | M19: 1.36148
A20: 11 | B20: ADANIPORTS | C20: 412.4 | D20: 411.77 | E20: 406.23 | F20: 400.07 | G20: 394.53 | H20: 417.93 | I20: 423.47 | J20: 429.63 | K20: 417.3 | L20: 405.6 | M20: 50.88602
A21: 12 | B21: ADANIPOWER | C21: 49.1 | D21: 48.45 | E21: 47.20 | F21: 45.30 | G21: 44.05 | H21: 50.35 | I21: 51.60 | J21: 53.50 | K21: 49.7 | L21: 46.55 | M21: 229.98049
A22: 13 | B22: ABCAPITAL | C22: 102.75 | D22: 101.60 | E22: 99.50 | F22: 96.25 | G22: 94.15 | H22: 104.85 | I22: 106.95 | J22: 110.20 | K22: 103.7 | L22: 98.35 | M22: 43.33501
A23: 14 | B23: ABFRL | C23: 209.5 | D23: 207.82 | E23: 204.63 | F23: 199.77 | G23: 196.58 | H23: 212.68 | I23: 215.87 | J23: 220.73 | K23: 211 | L23: 202.95 | M23: 4.53173
A24: 15 | B24: AJANTPHARM | C24: 1051.6 | D24: 1047.95 | E24: 1038.85 | F24: 1026.10 | G24: 1017.00 | H24: 1060.70 | I24: 1069.80 | J24: 1082.55 | K24: 1057.05 | L24: 1035.2 | M24: 2.21439
A25: 16 | B25: ALKEM | C25: 1725.4 | D25: 1721.02 | E25: 1710.03 | F25: 1694.67 | G25: 1683.68 | H25: 1736.38 | I25: 1747.37 | J25: 1762.73 | K25: 1732 | L25: 1705.65 | M25: 0.09556
A26: 17 | B26: AMARAJABAT | C26: 640.9 | D26: 641.08 | E26: 633.37 | F26: 625.83 | G26: 618.12 | H26: 648.62 | I26: 656.33 | J26: 663.87 | K26: 648.8 | L26: 633.55 | M26: 7.7351
A27: 18 | B27: AMBUJACEM | C27: 239.15 | D27: 236.73 | E27: 233.57 | F27: 227.98 | G27: 224.82 | H27: 242.32 | I27: 245.48 | J27: 251.07 | K27: 239.9 | L27: 231.15 | M27: 22.76077
A28: 19 | B28: APOLLOHOSP | C28: 1198.8 | D28: 1195.62 | E28: 1178.33 | F28: 1157.87 | G28: 1140.58 | H28: 1216.08 | I28: 1233.37 | J28: 1253.83 | K28: 1212.9 | L28: 1175.15 | M28: 2.94036
A29: 20 | B29: APOLLOTYRE | C29: 199.1 | D29: 198.17 | E29: 195.43 | F29: 191.77 | G29: 189.03 | H29: 201.83 | I29: 204.57 | J29: 208.23 | K29: 200.9 | L29: 194.5 | M29: 30.74229
A30: 21 | B30: ASHOKLEY | C30: 91.15 | D30: 90.82 | E30: 89.88 | F30: 88.62 | G30: 87.68 | H30: 92.08 | I30: 93.02 | J30: 94.28 | K30: 91.75 | L30: 89.55 | M30: 372.49413
A31: 22 | B31: ASIANPAINT | C31: 1366.85 | D31: 1373.42 | E31: 1356.13 | F31: 1345.42 | G31: 1328.13 | H31: 1384.13 | I31: 1401.42 | J31: 1412.13 | K31: 1390.7 | L31: 1362.7 | M31: 7.8273
A32: 23 | B32: AUROPHARMA | C32: 681.7 | D32: 679.53 | E32: 674.22 | F32: 666.73 | G32: 661.42 | H32: 687.02 | I32: 692.33 | J32: 699.82 | K32: 684.85 | L32: 672.05 | M32: 15.87132
A33: 24 | B33: DMART | C33: 1289.95 | D33: 1305.65 | E33: 1269.30 | F33: 1248.65 | G33: 1212.30 | H33: 1326.30 | I33: 1362.65 | J33: 1383.30 | K33: 1342 | L33: 1285 | M33: 6.17082
A34: 25 | B34: AXISBANK | C34: 813.9 | D34: 805.83 | E34: 795.27 | F34: 776.63 | G34: 766.07 | H34: 824.47 | I34: 835.03 | J34: 853.67 | K34: 816.4 | L34: 787.2 | M34: 91.28216
A35: 26 | B35: BAJAJ-AUTO | C35: 3066.9 | D35: 3062.63 | E35: 3035.27 | F35: 3003.63 | G35: 2976.27 | H35: 3094.27 | I35: 3121.63 | J35: 3153.27 | K35: 3090 | L35: 3031 | M35: 3.41393
A36: 27 | B36: BAJFINANCE | C36: 3449 | D36: 3457.98 | E36: 3431.02 | F36: 3413.03 | G36: 3386.07 | H36: 3475.97 | I36: 3502.93 | J36: 3520.92 | K36: 3484.95 | L36: 3440 | M36: 9.32
A37: 28 | B37: BAJAJFINSV | C37: 8213.05 | D37: 8191.68 | E37: 8133.37 | F37: 8053.68 | G37: 7995.37 | H37: 8271.37 | I37: 8329.68 | J37: 8409.37 | K37: 8250 | L37: 8112 | M37: 1.69859
A38: 29 | B38: BAJAJHLDNG | C38: 3473.85 | D38: 3464.62 | E38: 3429.23 | F38: 3384.62 | G38: 3349.23 | H38: 3509.23 | I38: 3544.62 | J38: 3589.23 | K38: 3500 | L38: 3420 | M38: 0.43027
A39: 30 | B39: BALKRISIND | C39: 840.05 | D39: 829.50 | E39: 814.00 | F39: 787.95 | G39: 772.45 | H39: 855.55 | I39: 871.05 | J39: 897.10 | K39: 845 | L39: 803.45 | M39: 15.41371
A40: 31 | B40: BANDHANBNK | C40: 599.8 | D40: 600.25 | E40: 595.65 | F40: 591.50 | G40: 586.90 | H40: 604.40 | I40: 609.00 | J40: 613.15 | K40: 604.85 | L40: 596.1 | M40: 25.28465
A41: 32 | B41: BANKBARODA | C41: 140.95 | D41: 139.68 | E41: 137.67 | F41: 134.38 | G41: 132.37 | H41: 142.97 | I41: 144.98 | J41: 148.27 | K41: 141.7 | L41: 136.4 | M41: 288.42316
A42: 33 | B42: BANKINDIA | C42: 98.4 | D42: 98.03 | E42: 96.62 | F42: 94.83 | G42: 93.42 | H42: 99.82 | I42: 101.23 | J42: 103.02 | K42: 99.45 | L42: 96.25 | M42: 112.27667
A43: 34 | B43: BATAINDIA | C43: 1338.05 | D43: 1341.12 | E43: 1308.53 | F43: 1279.02 | G43: 1246.43 | H43: 1370.63 | I43: 1403.22 | J43: 1432.73 | K43: 1373.7 | L43: 1311.6 | M43: 24.91189
A44: 35 | B44: BERGEPAINT | C44: 309.6 | D44: 311.20 | E44: 306.40 | F44: 303.20 | G44: 298.40 | H44: 314.40 | I44: 319.20 | J44: 322.40 | K44: 316 | L44: 308 | M44: 9.92087
A45: 36 | B45: BEL | C45: 113 | D45: 113.40 | E45: 109.05 | F45: 105.10 | G45: 100.75 | H45: 117.35 | I45: 121.70 | J45: 125.65 | K45: 117.75 | L45: 109.45 | M45: 227.66311
A46: 37 | B46: BHARATFORG | C46: 482.35 | D46: 481.43 | E46: 475.17 | F46: 467.98 | G46: 461.72 | H46: 488.62 | I46: 494.88 | J46: 502.07 | K46: 487.7 | L46: 474.25 | M46: 10.08173
A47: 38 | B47: BHEL | C47: 72.7 | D47: 71.53 | E47: 69.82 | F47: 66.93 | G47: 65.22 | H47: 74.42 | I47: 76.13 | J47: 79.02 | K47: 73.25 | L47: 68.65 | M47: 358.42146
A48: 39 | B48: BPCL | C48: 402 | D48: 398.23 | E48: 392.62 | F48: 383.23 | G48: 377.62 | H48: 407.62 | I48: 413.23 | J48: 422.62 | K48: 403.85 | L48: 388.85 | M48: 51.11371
A49: 40 | B49: BHARTIARTL | C49: 349.5 | D49: 349.25 | E49: 346.60 | F49: 343.70 | G49: 341.05 | H49: 352.15 | I49: 354.80 | J49: 357.70 | K49: 351.9 | L49: 346.35 | M49: 39.30538
A50: 41 | B50: INFRATEL | C50: 279.55 | D50: 279.62 | E50: 276.38 | F50: 273.22 | G50: 269.98 | H50: 282.78 | I50: 286.02 | J50: 289.18 | K50: 282.85 | L50: 276.45 | M50: 16.6249
A51: 42 | B51: BIOCON | C51: 550.9 | D51: 545.42 | E51: 537.38 | F51: 523.87 | G51: 515.83 | H51: 558.93 | I51: 566.97 | J51: 580.48 | K51: 553.45 | L51: 531.9 | M51: 27.66564
A52: 43 | B52: BBTC | C52: 1146.45 | D52: 1158.15 | E52: 1130.30 | F52: 1114.15 | G52: 1086.30 | H52: 1174.30 | I52: 1202.15 | J52: 1218.30 | K52: 1186 | L52: 1142 | M52: 3.97828
A53: 44 | B53: BOSCHLTD | C53: 16924.85 | D53: 17007.98 | E53: 16766.97 | F53: 16609.08 | G53: 16368.07 | H53: 17165.87 | I53: 17406.88 | J53: 17564.77 | K53: 17249 | L53: 16850.1 | M53: 0.12614
A54: 45 | B54: BRITANNIA | C54: 2896.55 | D54: 2886.53 | E54: 2868.07 | F54: 2839.58 | G54: 2821.12 | H54: 2915.02 | I54: 2933.48 | J54: 2961.97 | K54: 2905 | L54: 2858.05 | M54: 2.67259
A55: 46 | B55: CADILAHC | C55: 255 | D55: 255.92 | E55: 252.08 | F55: 249.17 | G55: 245.33 | H55: 258.83 | I55: 262.67 | J55: 265.58 | K55: 259.75 | L55: 253 | M55: 27.55381
A56: 47 | B56: CANBK | C56: 280.95 | D56: 280.10 | E56: 274.65 | F56: 268.35 | G56: 262.90 | H56: 286.40 | I56: 291.85 | J56: 298.15 | K56: 285.55 | L56: 273.8 | M56: 71.1055
A57: 48 | B57: CASTROLIND | C57: 149.25 | D57: 148.72 | E57: 146.53 | F57: 143.82 | G57: 141.63 | H57: 151.43 | I57: 153.62 | J57: 156.33 | K57: 150.9 | L57: 146 | M57: 12.76811
A58: 49 | B58: CHOLAFIN | C58: 1513.05 | D58: 1507.53 | E58: 1495.57 | F58: 1478.08 | G58: 1466.12 | H58: 1525.02 | I58: 1536.98 | J58: 1554.47 | K58: 1519.5 | L58: 1490.05 | M58: 2.88436
A59: 50 | B59: CIPLA | C59: 578.7 | D59: 577.57 | E59: 569.13 | F59: 559.57 | G59: 551.13 | H59: 587.13 | I59: 595.57 | J59: 605.13 | K59: 586 | L59: 568 | M59: 19.59075
A60: 51 | B60: COALINDIA | C60: 244.1 | D60: 244.55 | E60: 242.65 | F60: 241.20 | G60: 239.30 | H60: 246.00 | I60: 247.90 | J60: 249.35 | K60: 246.45 | L60: 243.1 | M60: 19.47123
A61: 52 | B61: COLPAL | C61: 1180.15 | D61: 1175.92 | E61: 1162.88 | F61: 1145.62 | G61: 1132.58 | H61: 1193.18 | I61: 1206.22 | J61: 1223.48 | K61: 1188.95 | L61: 1158.65 | M61: 8.25973
A62: 53 | B62: CONCOR | C62: 523.35 | D62: 517.30 | E62: 508.10 | F62: 492.85 | G62: 483.65 | H62: 532.55 | I62: 541.75 | J62: 557.00 | K62: 526.5 | L62: 502.05 | M62: 9.36898
A63: 54 | B63: COROMANDEL | C63: 422.1 | D63: 418.85 | E63: 412.75 | F63: 403.40 | G63: 397.30 | H63: 428.20 | I63: 434.30 | J63: 443.65 | K63: 424.95 | L63: 409.5 | M63: 2.93387
A64: 55 | B64: CROMPTON | C64: 232.9 | D64: 232.90 | E64: 225.00 | F64: 217.10 | G64: 209.20 | H64: 240.80 | I64: 248.70 | J64: 256.60 | K64: 240.8 | L64: 225 | M64: 14.14489
A65: 56 | B65: CUMMINSIND | C65: 788.45 | D65: 775.50 | E65: 760.00 | F65: 731.55 | G65: 716.05 | H65: 803.95 | I65: 819.45 | J65: 847.90 | K65: 791 | L65: 747.05 | M65: 10.2536
A66: 57 | B66: DLF | C66: 197 | D66: 195.77 | E66: 191.33 | F66: 185.67 | G66: 181.23 | H66: 201.43 | I66: 205.87 | J66: 211.53 | K66: 200.2 | L66: 190.1 | M66: 150.49131
A67: 58 | B67: DABUR | C67: 400.1 | D67: 401.97 | E67: 395.53 | F67: 390.97 | G67: 384.53 | H67: 406.53 | I67: 412.97 | J67: 417.53 | K67: 408.4 | L67: 397.4 | M67: 30.52919
A68: 59 | B68: DHFL | C68: 119.15 | D68: 119.30 | E68: 115.15 | F68: 111.15 | G68: 107.00 | H68: 123.30 | I68: 127.45 | J68: 131.45 | K68: 123.45 | L68: 115.3 | M68: 114.43172
A69: 60 | B69: DBL | C69: 615.75 | D69: 619.55 | E69: 606.90 | F69: 598.05 | G69: 585.40 | H69: 628.40 | I69: 641.05 | J69: 649.90 | K69: 632.2 | L69: 610.7 | M69: 4.87086
A70: 61 | B70: DISHTV | C70: 31 | D70: 30.93 | E70: 28.97 | F70: 26.93 | G70: 24.97 | H70: 32.97 | I70: 34.93 | J70: 36.97 | K70: 32.9 | L70: 28.9 | M70: 253.94278
A71: 62 | B71: DIVISLAB | C71: 1593.45 | D71: 1633.85 | E71: 1537.65 | F71: 1481.85 | G71: 1385.65 | H71: 1689.65 | I71: 1785.85 | J71: 1841.65 | K71: 1730.05 | L71: 1578.05 | M71: 30.84161
A72: 63 | B72: DRREDDY | C72: 2658 | D72: 2653.15 | E72: 2637.30 | F72: 2616.60 | G72: 2600.75 | H72: 2673.85 | I72: 2689.70 | J72: 2710.40 | K72: 2669 | L72: 2632.45 | M72: 3.40656
A73: 64 | B73: EDELWEISS | C73: 189 | D73: 184.98 | E73: 180.07 | F73: 171.13 | G73: 166.22 | H73: 193.92 | I73: 198.83 | J73: 207.77 | K73: 189.9 | L73: 176.05 | M73: 26.87024
A74: 65 | B74: EICHERMOT | C74: 20887.35 | D74: 20933.98 | E74: 20718.37 | F74: 20549.38 | G74: 20333.77 | H74: 21102.97 | I74: 21318.58 | J74: 21487.57 | K74: 21149.6 | L74: 20765 | M74: 0.66295
A75: 66 | B75: ENDURANCE | C75: 1154.55 | D75: 1156.13 | E75: 1148.92 | F75: 1143.28 | G75: 1136.07 | H75: 1161.77 | I75: 1168.98 | J75: 1174.62 | K75: 1163.35 | L75: 1150.5 | M75: 0.10304
A76: 67 | B76: ENGINERSIN | C76: 127.55 | D76: 125.48 | E76: 122.27 | F76: 116.98 | G76: 113.77 | H76: 130.77 | I76: 133.98 | J76: 139.27 | K76: 128.7 | L76: 120.2 | M76: 61.22758
A77: 68 | B77: ESCORTS | C77: 638.1 | D77: 641.03 | E77: 632.57 | F77: 627.03 | G77: 618.57 | H77: 646.57 | I77: 655.03 | J77: 660.57 | K77: 649.5 | L77: 635.5 | M77: 16.64553
A78: 69 | B78: EXIDEIND | C78: 216.35 | D78: 218.30 | E78: 213.90 | F78: 211.45 | G78: 207.05 | H78: 220.75 | I78: 225.15 | J78: 227.60 | K78: 222.7 | L78: 215.85 | M78: 18.14363
A79: 70 | B79: FEDERALBNK | C79: 108.05 | D79: 107.20 | E79: 106.05 | F79: 104.05 | G79: 102.90 | H79: 109.20 | I79: 110.35 | J79: 112.35 | K79: 108.35 | L79: 105.2 | M79: 140.36734
A80: 71 | B80: FCONSUMER | C80: 44.55 | D80: 44.02 | E80: 43.03 | F80: 41.52 | G80: 40.53 | H80: 45.53 | I80: 46.52 | J80: 48.03 | K80: 45 | L80: 42.5 | M80: 26.97173
A81: 72 | B81: FRETAIL | C81: 449.95 | D81: 455.68 | E81: 442.37 | F81: 434.78 | G81: 421.47 | H81: 463.27 | I81: 476.58 | J81: 484.17 | K81: 469 | L81: 448.1 | M81: 6.39746
A82: 73 | B82: GAIL | C82: 348.35 | D82: 347.03 | E82: 343.07 | F82: 337.78 | G82: 333.82 | H82: 352.32 | I82: 356.28 | J82: 361.57 | K82: 351 | L82: 341.75 | M82: 54.00992
A83: 74 | B83: GMRINFRA | C83: 17 | D83: 17.10 | E83: 16.75 | F83: 16.50 | G83: 16.15 | H83: 17.35 | I83: 17.70 | J83: 17.95 | K83: 17.45 | L83: 16.85 | M83: 201.87783
A84: 75 | B84: GICRE | C84: 229.85 | D84: 229.78 | E84: 227.57 | F84: 225.28 | G84: 223.07 | H84: 232.07 | I84: 234.28 | J84: 236.57 | K84: 232 | L84: 227.5 | M84: 0.91074
A85: 76 | B85: GSKCONS | C85: 7381 | D85: 7341.33 | E85: 7284.67 | F85: 7188.33 | G85: 7131.67 | H85: 7437.67 | I85: 7494.33 | J85: 7590.67 | K85: 7398 | L85: 7245 | M85: 0.24856
A86: 77 | B86: GLENMARK | C86: 559.45 | D86: 560.25 | E86: 555.70 | F86: 551.95 | G86: 547.40 | H86: 564.00 | I86: 568.55 | J86: 572.30 | K86: 564.8 | L86: 556.5 | M86: 4.32832
A87: 78 | B87: GODREJAGRO | C87: 517.9 | D87: 510.97 | E87: 499.93 | F87: 481.97 | G87: 470.93 | H87: 528.93 | I87: 539.97 | J87: 557.93 | K87: 522 | L87: 493 | M87: 1.53832
A88: 79 | B88: GODREJCP | C88: 667.3 | D88: 668.95 | E88: 659.90 | F88: 652.50 | G88: 643.45 | H88: 676.35 | I88: 685.40 | J88: 692.80 | K88: 678 | L88: 661.55 | M88: 6.31334
A89: 80 | B89: GODREJIND | C89: 494.8 | D89: 492.00 | E89: 486.80 | F89: 478.80 | G89: 473.60 | H89: 500.00 | I89: 505.20 | J89: 513.20 | K89: 497.2 | L89: 484 | M89: 3.34198
A90: 81 | B90: GRAPHITE | C90: 413.45 | D90: 408.60 | E90: 398.20 | F90: 382.95 | G90: 372.55 | H90: 423.85 | I90: 434.25 | J90: 449.50 | K90: 419 | L90: 393.35 | M90: 31.03788
A91: 82 | B91: GRASIM | C91: 935.3 | D91: 930.55 | E91: 901.30 | F91: 867.30 | G91: 838.05 | H91: 964.55 | I91: 993.80 | J91: 1027.80 | K91: 959.8 | L91: 896.55 | M91: 34.23163
A92: 83 | B92: GRUH | C92: 322.05 | D92: 319.37 | E92: 313.73 | F92: 305.42 | G92: 299.78 | H92: 327.68 | I92: 333.32 | J92: 341.63 | K92: 325 | L92: 311.05 | M92: 15.67714
A93: 84 | B93: GSPL | C93: 198.75 | D93: 196.55 | E93: 193.45 | F93: 188.15 | G93: 185.05 | H93: 201.85 | I93: 204.95 | J93: 210.25 | K93: 199.65 | L93: 191.25 | M93: 2.33618
A94: 85 | B94: HEG | C94: 1817.05 | D94: 1837.93 | E94: 1784.27 | F94: 1751.48 | G94: 1697.82 | H94: 1870.72 | I94: 1924.38 | J94: 1957.17 | K94: 1891.6 | L94: 1805.15 | M94: 5.45464
A95: 86 | B95: HCLTECH | C95: 1064.2 | D95: 1067.80 | E95: 1054.60 | F95: 1045.00 | G95: 1031.80 | H95: 1077.40 | I95: 1090.60 | J95: 1100.20 | K95: 1081 | L95: 1058.2 | M95: 15.82207
A96: 87 | B96: HDFCAMC | C96: 1745.3 | D96: 1747.33 | E96: 1725.97 | F96: 1706.63 | G96: 1685.27 | H96: 1766.67 | I96: 1788.03 | J96: 1807.37 | K96: 1768.7 | L96: 1728 | M96: 1.01648
A97: 88 | B97: HDFCBANK | C97: 2408.35 | D97: 2400.83 | E97: 2379.77 | F97: 2351.18 | G97: 2330.12 | H97: 2429.42 | I97: 2450.48 | J97: 2479.07 | K97: 2421.9 | L97: 2372.25 | M97: 30.12256
A98: 89 | B98: HDFCLIFE | C98: 422.6 | D98: 417.72 | E98: 411.48 | F98: 400.37 | G98: 394.13 | H98: 428.83 | I98: 435.07 | J98: 446.18 | K98: 423.95 | L98: 406.6 | M98: 41.52835
A99: 90 | B99: HAVELLS | C99: 733.9 | D99: 736.23 | E99: 728.77 | F99: 723.63 | G99: 716.17 | H99: 741.37 | I99: 748.83 | J99: 753.97 | K99: 743.7 | L99: 731.1 | M99: 13.66286
A100: 91 | B100: HEROMOTOCO | C100: 2821.2 | D100: 2823.85 | E100: 2797.70 | F100: 2774.20 | G100: 2748.05 | H100: 2847.35 | I100: 2873.50 | J100: 2897.00 | K100: 2850 | L100: 2800.35 | M100: 4.22121
A101: 92 | B101: HEXAWARE | C101: 349.95 | D101: 351.42 | E101: 347.43 | F101: 344.92 | G101: 340.93 | H101: 353.93 | I101: 357.92 | J101: 360.43 | K101: 355.4 | L101: 348.9 | M101: 4.56993
A102: 93 | B102: HINDALCO | C102: 200.6 | D102: 199.25 | E102: 196.65 | F102: 192.70 | G102: 190.10 | H102: 203.20 | I102: 205.80 | J102: 209.75 | K102: 201.85 | L102: 195.3 | M102: 44.98005
A103: 94 | B103: HINDPETRO | C103: 316.55 | D103: 311.32 | E103: 304.73 | F103: 292.92 | G103: 286.33 | H103: 323.13 | I103: 329.72 | J103: 341.53 | K103: 317.9 | L103: 299.5 | M103: 78.86267
A104: 95 | B104: HINDUNILVR | C104: 1771.95 | D104: 1761.30 | E104: 1746.65 | F104: 1721.35 | G104: 1706.70 | H104: 1786.60 | I104: 1801.25 | J104: 1826.55 | K104: 1775.95 | L104: 1736 | M104: 13.73845
A105: 96 | B105: HINDZINC | C105: 254.15 | D105: 254.07 | E105: 252.38 | F105: 250.62 | G105: 248.93 | H105: 255.83 | I105: 257.52 | J105: 259.28 | K105: 255.75 | L105: 252.3 | M105: 7.23141
A106: 97 | B106: HUDCO | C106: 44.4 | D106: 44.47 | E106: 43.68 | F106: 42.97 | G106: 42.18 | H106: 45.18 | I106: 45.97 | J106: 46.68 | K106: 45.25 | L106: 43.75 | M106: 23.40046
A107: 98 | B107: HDFC | C107: 2165.3 | D107: 2156.33 | E107: 2125.17 | F107: 2085.03 | G107: 2053.87 | H107: 2196.47 | I107: 2227.63 | J107: 2267.77 | K107: 2187.5 | L107: 2116.2 | M107: 38.8648
A108: 99 | B108: ICICIBANK | C108: 435.5 | D108: 434.65 | E108: 430.50 | F108: 425.50 | G108: 421.35 | H108: 439.65 | I108: 443.80 | J108: 448.80 | K108: 438.8 | L108: 429.65 | M108: 233.97222
A109: 100 | B109: ICICIGI | C109: 1117.4 | D109: 1124.07 | E109: 1098.33 | F109: 1079.27 | G109: 1053.53 | H109: 1143.13 | I109: 1168.87 | J109: 1187.93 | K109: 1149.8 | L109: 1105 | M109: 6.19017
A110: 101 | B110: ICICIPRULI | C110: 386.25 | D110: 381.63 | E110: 373.32 | F110: 360.38 | G110: 352.07 | H110: 394.57 | I110: 402.88 | J110: 415.82 | K110: 389.95 | L110: 368.7 | M110: 18.02891
A111: 102 | B111: IDBI | C111: 37.8 | D111: 37.75 | E111: 37.15 | F111: 36.50 | G111: 35.90 | H111: 38.40 | I111: 39.00 | J111: 39.65 | K111: 38.35 | L111: 37.1 | M111: 62.90025
A112: 103 | B112: IDFCFIRSTB | C112: 45.9 | D112: 45.55 | E112: 45.00 | F112: 44.10 | G112: 43.55 | H112: 46.45 | I112: 47.00 | J112: 47.90 | K112: 46.1 | L112: 44.65 | M112: 187.41694
A113: 104 | B113: ITC | C113: 290.85 | D113: 291.15 | E113: 288.75 | F113: 286.65 | G113: 284.25 | H113: 293.25 | I113: 295.65 | J113: 297.75 | K113: 293.55 | L113: 289.05 | M113: 90.24193
A114: 105 | B114: IBULHSGFIN | C114: 791.9 | D114: 795.10 | E114: 781.50 | F114: 771.10 | G114: 757.50 | H114: 805.50 | I114: 819.10 | J114: 829.50 | K114: 808.7 | L114: 784.7 | M114: 49.84004
A115: 106 | B115: IBVENTURES | C115: 304.15 | D115: 309.63 | E115: 296.12 | F115: 288.08 | G115: 274.57 | H115: 317.67 | I115: 331.18 | J115: 339.22 | K115: 323.15 | L115: 301.6 | M115: 6.71117
A116: 107 | B116: INDIANB | C116: 270.8 | D116: 269.78 | E116: 265.32 | F116: 259.83 | G116: 255.37 | H116: 275.27 | I116: 279.73 | J116: 285.22 | K116: 274.25 | L116: 264.3 | M116: 17.04582
A117: 108 | B117: INDHOTEL | C117: 152.8 | D117: 153.37 | E117: 151.78 | F117: 150.77 | G117: 149.18 | H117: 154.38 | I117: 155.97 | J117: 156.98 | K117: 154.95 | L117: 152.35 | M117: 13.89215
A118: 109 | B118: IOC | C118: 162.2 | D118: 160.15 | E118: 157.45 | F118: 152.70 | G118: 150.00 | H118: 164.90 | I118: 167.60 | J118: 172.35 | K118: 162.85 | L118: 155.4 | M118: 124.72892
A119: 110 | B119: IGL | C119: 330.15 | D119: 329.15 | E119: 319.00 | F119: 307.85 | G119: 297.70 | H119: 340.30 | I119: 350.45 | J119: 361.60 | K119: 339.3 | L119: 318 | M119: 91.11254
A120: 111 | B120: INDUSINDBK | C120: 1612.8 | D120: 1622.57 | E120: 1597.23 | F120: 1581.67 | G120: 1556.33 | H120: 1638.13 | I120: 1663.47 | J120: 1679.03 | K120: 1647.9 | L120: 1607 | M120: 24.2634
A121: 112 | B121: NAUKRI | C121: 1929.95 | D121: 1933.32 | E121: 1891.93 | F121: 1853.92 | G121: 1812.53 | H121: 1971.33 | I121: 2012.72 | J121: 2050.73 | K121: 1974.7 | L121: 1895.3 | M121: 2.3108
A122: 113 | B122: INFY | C122: 708.1 | D122: 709.13 | E122: 704.47 | F122: 700.83 | G122: 696.17 | H122: 712.77 | I122: 717.43 | J122: 721.07 | K122: 713.8 | L122: 705.5 | M122: 102.47544
A123: 114 | B123: INDIGO | C123: 1662.15 | D123: 1642.75 | E123: 1616.05 | F123: 1569.95 | G123: 1543.25 | H123: 1688.85 | I123: 1715.55 | J123: 1761.65 | K123: 1669.45 | L123: 1596.65 | M123: 26.97614
A124: 115 | B124: JSWENERGY | C124: 72.8 | D124: 72.77 | E124: 71.23 | F124: 69.67 | G124: 68.13 | H124: 74.33 | I124: 75.87 | J124: 77.43 | K124: 74.3 | L124: 71.2 | M124: 8.78202
A125: 116 | B125: JSWSTEEL | C125: 287.75 | D125: 284.70 | E125: 280.10 | F125: 272.45 | G125: 267.85 | H125: 292.35 | I125: 296.95 | J125: 304.60 | K125: 289.3 | L125: 277.05 | M125: 90.81309
A126: 117 | B126: JINDALSTEL | C126: 167.8 | D126: 165.18 | E126: 161.97 | F126: 156.13 | G126: 152.92 | H126: 171.02 | I126: 174.23 | J126: 180.07 | K126: 168.4 | L126: 159.35 | M126: 107.51107
A127: 118 | B127: JUBLFOOD | C127: 1333.95 | D127: 1323.28 | E127: 1306.67 | F127: 1279.38 | G127: 1262.77 | H127: 1350.57 | I127: 1367.18 | J127: 1394.47 | K127: 1339.9 | L127: 1296 | M127: 11.49698
A128: 119 | B128: JUBILANT | C128: 537.4 | D128: 531.40 | E128: 521.30 | F128: 505.20 | G128: 495.10 | H128: 547.50 | I128: 557.60 | J128: 573.70 | K128: 541.5 | L128: 515.3 | M128: 4.69888
A129: 120 | B129: KOTAKBANK | C129: 1529.4 | D129: 1520.80 | E129: 1508.60 | F129: 1487.80 | G129: 1475.60 | H129: 1541.60 | I129: 1553.80 | J129: 1574.60 | K129: 1533 | L129: 1500 | M129: 22.28063
A130: 121 | B130: L&TFH | C130: 127.85 | D130: 128.45 | E130: 126.75 | F130: 125.65 | G130: 123.95 | H130: 129.55 | I130: 131.25 | J130: 132.35 | K130: 130.15 | L130: 127.35 | M130: 61.91466
A131: 122 | B131: LTTS | C131: 1747.15 | D131: 1739.35 | E131: 1718.80 | F131: 1690.45 | G131: 1669.90 | H131: 1767.70 | I131: 1788.25 | J131: 1816.60 | K131: 1759.9 | L131: 1711 | M131: 0.7806
A132: 123 | B132: LICHSGFIN | C132: 542.35 | D132: 540.17 | E132: 535.73 | F132: 529.12 | G132: 524.68 | H132: 546.78 | I132: 551.22 | J132: 557.83 | K132: 544.6 | L132: 533.55 | M132: 8.29256
A133: 124 | B133: LTI | C133: 1729.35 | D133: 1736.75 | E133: 1709.50 | F133: 1689.65 | G133: 1662.40 | H133: 1756.60 | I133: 1783.85 | J133: 1803.70 | K133: 1764 | L133: 1716.9 | M133: 1.45947
A134: 125 | B134: LT | C134: 1596 | D134: 1576.03 | E134: 1552.07 | F134: 1508.13 | G134: 1484.17 | H134: 1619.97 | I134: 1643.93 | J134: 1687.87 | K134: 1600 | L134: 1532.1 | M134: 67.30594
A135: 126 | B135: LUPIN | C135: 743.3 | D135: 739.73 | E135: 723.57 | F135: 703.83 | G135: 687.67 | H135: 759.47 | I135: 775.63 | J135: 795.37 | K135: 755.9 | L135: 720 | M135: 32.99637
A136: 127 | B136: MRF | C136: 56862.65 | D136: 57156.07 | E136: 56384.08 | F136: 55905.52 | G136: 55133.53 | H136: 57634.63 | I136: 58406.62 | J136: 58885.18 | K136: 57928.05 | L136: 56677.5 | M136: 0.0604
A137: 128 | B137: MGL | C137: 886.5 | D137: 891.38 | E137: 875.17 | F137: 863.83 | G137: 847.62 | H137: 902.72 | I137: 918.93 | J137: 930.27 | K137: 907.6 | L137: 880.05 | M137: 5.37519
A138: 129 | B138: M&MFIN | C138: 408.05 | D138: 410.05 | E138: 404.70 | F138: 401.35 | G138: 396.00 | H138: 413.40 | I138: 418.75 | J138: 422.10 | K138: 415.4 | L138: 406.7 | M138: 14.80803
A139: 130 | B139: M&M | C139: 679.35 | D139: 675.78 | E139: 668.57 | F139: 657.78 | G139: 650.57 | H139: 686.57 | I139: 693.78 | J139: 704.57 | K139: 683 | L139: 665 | M139: 29.87573
A140: 131 | B140: MANAPPURAM | C140: 135.5 | D140: 136.15 | E140: 133.85 | F140: 132.20 | G140: 129.90 | H140: 137.80 | I140: 140.10 | J140: 141.75 | K140: 138.45 | L140: 134.5 | M140: 26.89952
A141: 132 | B141: MRPL | C141: 62.65 | D141: 62.62 | E141: 61.93 | F141: 61.22 | G141: 60.53 | H141: 63.33 | I141: 64.02 | J141: 64.73 | K141: 63.3 | L141: 61.9 | M141: 23.97471
A142: 133 | B142: MARICO | C142: 365.5 | D142: 365.00 | E142: 362.40 | F142: 359.30 | G142: 356.70 | H142: 368.10 | I142: 370.70 | J142: 373.80 | K142: 367.6 | L142: 361.9 | M142: 7.08539
A143: 134 | B143: MARUTI | C143: 7068.45 | D143: 7054.13 | E143: 6914.37 | F143: 6760.28 | G143: 6620.52 | H143: 7208.22 | I143: 7347.98 | J143: 7502.07 | K143: 7193.9 | L143: 6900.05 | M143: 10.22289
A144: 135 | B144: MFSL | C144: 445.75 | D144: 440.75 | E144: 432.50 | F144: 419.25 | G144: 411.00 | H144: 454.00 | I144: 462.25 | J144: 475.50 | K144: 449 | L144: 427.5 | M144: 6.18269
A145: 136 | B145: MINDTREE | C145: 979.6 | D145: 980.45 | E145: 976.20 | F145: 972.80 | G145: 968.55 | H145: 983.85 | I145: 988.10 | J145: 991.50 | K145: 984.7 | L145: 977.05 | M145: 4.37247
A146: 137 | B146: MOTHERSUMI | C146: 116.15 | D146: 117.88 | E146: 113.97 | F146: 111.78 | G146: 107.87 | H146: 120.07 | I146: 123.98 | J146: 126.17 | K146: 121.8 | L146: 115.7 | M146: 235.24587
A147: 138 | B147: MPHASIS | C147: 936.35 | D147: 939.38 | E147: 930.17 | F147: 923.98 | G147: 914.77 | H147: 945.57 | I147: 954.78 | J147: 960.97 | K147: 948.6 | L147: 933.2 | M147: 0.84149
A148: 139 | B148: MUTHOOTFIN | C148: 647.25 | D148: 646.50 | E148: 640.75 | F148: 634.25 | G148: 628.50 | H148: 653.00 | I148: 658.75 | J148: 665.25 | K148: 652.25 | L148: 640 | M148: 12.35902
A149: 140 | B149: NATCOPHARM | C149: 524.95 | D149: 521.88 | E149: 513.77 | F149: 502.58 | G149: 494.47 | H149: 533.07 | I149: 541.18 | J149: 552.37 | K149: 530 | L149: 510.7 | M149: 2.15853
A150: 141 | B150: NBCC | C150: 63.45 | D150: 62.98 | E150: 61.87 | F150: 60.28 | G150: 59.17 | H150: 64.57 | I150: 65.68 | J150: 67.27 | K150: 64.1 | L150: 61.4 | M150: 134.25051
A151: 142 | B151: NHPC | C151: 23.6 | D151: 23.43 | E151: 23.17 | F151: 22.73 | G151: 22.47 | H151: 23.87 | I151: 24.13 | J151: 24.57 | K151: 23.7 | L151: 23 | M151: 31.88923
A152: 143 | B152: NMDC | C152: 102.15 | D152: 101.03 | E152: 99.22 | F152: 96.28 | G152: 94.47 | H152: 103.97 | I152: 105.78 | J152: 108.72 | K152: 102.85 | L152: 98.1 | M152: 47.51606
A153: 144 | B153: NTPC | C153: 133.2 | D153: 133.32 | E153: 130.03 | F153: 126.87 | G153: 123.58 | H153: 136.48 | I153: 139.77 | J153: 142.93 | K153: 136.6 | L153: 130.15 | M153: 199.48676
A154: 145 | B154: NATIONALUM | C154: 51.25 | D154: 50.78 | E154: 50.12 | F154: 48.98 | G154: 48.32 | H154: 51.92 | I154: 52.58 | J154: 53.72 | K154: 51.45 | L154: 49.65 | M154: 66.99475
A155: 146 | B155: OBEROIRLTY | C155: 567.8 | D155: 566.45 | E155: 554.90 | F155: 542.00 | G155: 530.45 | H155: 579.35 | I155: 590.90 | J155: 603.80 | K155: 578 | L155: 553.55 | M155: 4.31259
A156: 147 | B156: ONGC | C156: 173.65 | D156: 173.80 | E156: 172.40 | F156: 171.15 | G156: 169.75 | H156: 175.05 | I156: 176.45 | J156: 177.70 | K156: 175.2 | L156: 172.55 | M156: 74.61458
A157: 148 | B157: OIL | C157: 185.2 | D157: 185.38 | E157: 183.82 | F157: 182.43 | G157: 180.87 | H157: 186.77 | I157: 188.33 | J157: 189.72 | K157: 186.95 | L157: 184 | M157: 13.50243
A158: 149 | B158: OFSS | C158: 3406.55 | D158: 3414.80 | E158: 3385.70 | F158: 3364.85 | G158: 3335.75 | H158: 3435.65 | I158: 3464.75 | J158: 3485.60 | K158: 3443.9 | L158: 3393.95 | M158: 0.32669
A159: 150 | B159: PIIND | C159: 1123.95 | D159: 1131.98 | E159: 1109.97 | F159: 1095.98 | G159: 1073.97 | H159: 1145.97 | I159: 1167.98 | J159: 1181.97 | K159: 1154 | L159: 1118 | M159: 0.41983
A160: 151 | B160: PNBHOUSING | C160: 879.35 | D160: 865.48 | E160: 847.77 | F160: 816.18 | G160: 798.47 | H160: 897.07 | I160: 914.78 | J160: 946.37 | K160: 883.2 | L160: 833.9 | M160: 5.60177
A161: 152 | B161: PAGEIND | C161: 19692.1 | D161: 19799.82 | E161: 18899.68 | F161: 18107.27 | G161: 17207.13 | H161: 20592.23 | I161: 21492.37 | J161: 22284.78 | K161: 20699.95 | L161: 19007.4 | M161: 3.4215
A162: 153 | B162: PETRONET | C162: 245 | D162: 244.42 | E162: 242.63 | F162: 240.27 | G162: 238.48 | H162: 246.78 | I162: 248.57 | J162: 250.93 | K162: 246.2 | L162: 242.05 | M162: 24.85867
A163: 154 | B163: PFIZER | C163: 3184.35 | D163: 3181.80 | E163: 3140.60 | F163: 3096.85 | G163: 3055.65 | H163: 3225.55 | I163: 3266.75 | J163: 3310.50 | K163: 3223 | L163: 3138.05 | M163: 0.10604
A164: 155 | B164: PIDILITIND | C164: 1229 | D164: 1229.25 | E164: 1216.65 | F164: 1204.30 | G164: 1191.70 | H164: 1241.60 | I164: 1254.20 | J164: 1266.55 | K164: 1241.85 | L164: 1216.9 | M164: 5.00765
A165: 156 | B165: PEL | C165: 2188.8 | D165: 2200.05 | E165: 2165.10 | F165: 2141.40 | G165: 2106.45 | H165: 2223.75 | I165: 2258.70 | J165: 2282.40 | K165: 2235 | L165: 2176.35 | M165: 3.94659
A166: 157 | B166: PFC | C166: 119.1 | D166: 118.02 | E166: 115.58 | F166: 112.07 | G166: 109.63 | H166: 121.53 | I166: 123.97 | J166: 127.48 | K166: 120.45 | L166: 114.5 | M166: 41.31763
A167: 158 | B167: POWERGRID | C167: 187.35 | D167: 187.53 | E167: 185.47 | F167: 183.58 | G167: 181.52 | H167: 189.42 | I167: 191.48 | J167: 193.37 | K167: 189.6 | L167: 185.65 | M167: 36.136
A168: 159 | B168: PRESTIGE | C168: 280.6 | D168: 275.67 | E168: 269.03 | F168: 257.47 | G168: 250.83 | H168: 287.23 | I168: 293.87 | J168: 305.43 | K168: 282.3 | L168: 264.1 | M168: 6.79308
A169: 160 | B169: PGHH | C169: 10996 | D169: 11028.67 | E169: 10867.33 | F169: 10738.67 | G169: 10577.33 | H169: 11157.33 | I169: 11318.67 | J169: 11447.33 | K169: 11190 | L169: 10900 | M169: 0.01945
A170: 161 | B170: PNB | C170: 89.25 | D170: 89.37 | E170: 87.53 | F170: 85.82 | G170: 83.98 | H170: 91.08 | I170: 92.92 | J170: 94.63 | K170: 91.2 | L170: 87.65 | M170: 348.57012
A171: 162 | B171: QUESS | C171: 667.9 | D171: 667.53 | E171: 659.07 | F171: 650.23 | G171: 641.77 | H171: 676.37 | I171: 684.83 | J171: 693.67 | K171: 676 | L171: 658.7 | M171: 0.6946
A172: 163 | B172: RBLBANK | C172: 698.3 | D172: 689.10 | E172: 676.80 | F172: 655.30 | G172: 643.00 | H172: 710.60 | I172: 722.90 | J172: 744.40 | K172: 701.4 | L172: 667.6 | M172: 38.57944
A173: 164 | B173: RECLTD | C173: 147.15 | D173: 146.23 | E173: 143.47 | F173: 139.78 | G173: 137.02 | H173: 149.92 | I173: 152.68 | J173: 156.37 | K173: 149 | L173: 142.55 | M173: 60.09047
A174: 165 | B174: RAJESHEXPO | C174: 660.9 | D174: 661.07 | E174: 658.83 | F174: 656.77 | G174: 654.53 | H174: 663.13 | I174: 665.37 | J174: 667.43 | K174: 663.3 | L174: 659 | M174: 5.17707
A175: 166 | B175: RELCAPITAL | C175: 133.95 | D175: 134.83 | E175: 131.42 | F175: 128.88 | G175: 125.47 | H175: 137.37 | I175: 140.78 | J175: 143.32 | K175: 138.25 | L175: 132.3 | M175: 117.35928
A176: 167 | B176: RELIANCE | C176: 1310.65 | D176: 1318.38 | E176: 1299.27 | F176: 1287.88 | G176: 1268.77 | H176: 1329.77 | I176: 1348.88 | J176: 1360.27 | K176: 1337.5 | L176: 1307 | M176: 73.4972
A177: 168 | B177: RELINFRA | C177: 112.05 | D177: 112.50 | E177: 110.10 | F177: 108.15 | G177: 105.75 | H177: 114.45 | I177: 116.85 | J177: 118.80 | K177: 114.9 | L177: 110.55 | M177: 76.28827
A178: 169 | B178: RPOWER | C178: 7.5 | D178: 7.48 | E178: 7.37 | F178: 7.23 | G178: 7.12 | H178: 7.62 | I178: 7.73 | J178: 7.87 | K178: 7.6 | L178: 7.35 | M178: 421.28842
A179: 170 | B179: SBILIFE | C179: 698.9 | D179: 694.80 | E179: 685.60 | F179: 672.30 | G179: 663.10 | H179: 708.10 | I179: 717.30 | J179: 730.60 | K179: 704 | L179: 681.5 | M179: 16.69747
A180: 171 | B180: SRF | C180: 2958.3 | D180: 2933.90 | E180: 2884.90 | F180: 2811.50 | G180: 2762.50 | H180: 3007.30 | I180: 3056.30 | J180: 3129.70 | K180: 2982.9 | L180: 2860.5 | M180: 3.15612
A181: 172 | B181: SHREECEM | C181: 21471 | D181: 21307.75 | E181: 21015.50 | F181: 20560.00 | G181: 20267.75 | H181: 21763.25 | I181: 22055.50 | J181: 22511.00 | K181: 21600 | L181: 20852.25 | M181: 0.44826
A182: 173 | B182: SRTRANSFIN | C182: 1138.25 | D182: 1130.80 | E182: 1112.65 | F182: 1087.05 | G182: 1068.90 | H182: 1156.40 | I182: 1174.55 | J182: 1200.15 | K182: 1148.95 | L182: 1105.2 | M182: 12.15016
A183: 174 | B183: SIEMENS | C183: 1277.65 | D183: 1260.72 | E183: 1235.93 | F183: 1194.22 | G183: 1169.43 | H183: 1302.43 | I183: 1327.22 | J183: 1368.93 | K183: 1285.5 | L183: 1219 | M183: 9.06667
A184: 175 | B184: SBIN | C184: 361.7 | D184: 359.40 | E184: 356.30 | F184: 350.90 | G184: 347.80 | H184: 364.80 | I184: 367.90 | J184: 373.30 | K184: 362.5 | L184: 354 | M184: 313.74994
A185: 176 | B185: SAIL | C185: 53.6 | D185: 53.03 | E185: 52.17 | F185: 50.73 | G185: 49.87 | H185: 54.47 | I185: 55.33 | J185: 56.77 | K185: 53.9 | L185: 51.6 | M185: 230.7228
A186: 177 | B186: STRTECH | C186: 175.8 | D186: 173.80 | E186: 170.00 | F186: 164.20 | G186: 160.40 | H186: 179.60 | I186: 183.40 | J186: 189.20 | K186: 177.6 | L186: 168 | M186: 69.46074
A187: 178 | B187: SPARC | C187: 158.25 | D187: 154.72 | E187: 150.13 | F187: 142.02 | G187: 137.43 | H187: 162.83 | I187: 167.42 | J187: 175.53 | K187: 159.3 | L187: 146.6 | M187: 8.83224
A188: 179 | B188: SUNPHARMA | C188: 414.85 | D188: 415.97 | E188: 410.43 | F188: 406.02 | G188: 400.48 | H188: 420.38 | I188: 425.92 | J188: 430.33 | K188: 421.5 | L188: 411.55 | M188: 38.86561
A189: 180 | B189: SUNTV | C189: 537.85 | D189: 535.90 | E189: 530.20 | F189: 522.55 | G189: 516.85 | H189: 543.55 | I189: 549.25 | J189: 556.90 | K189: 541.6 | L189: 528.25 | M189: 26.27359
A190: 181 | B190: SYNGENE | C190: 644.25 | D190: 637.93 | E190: 625.87 | F190: 607.48 | G190: 595.42 | H190: 656.32 | I190: 668.38 | J190: 686.77 | K190: 650 | L190: 619.55 | M190: 1.73589
A191: 182 | B191: TVSMOTOR | C191: 495.6 | D191: 495.52 | E191: 488.53 | F191: 481.47 | G191: 474.48 | H191: 502.58 | I191: 509.57 | J191: 516.63 | K191: 502.5 | L191: 488.45 | M191: 22.69177
A192: 183 | B192: TATACHEM | C192: 635.85 | D192: 633.38 | E192: 629.37 | F192: 622.88 | G192: 618.87 | H192: 639.87 | I192: 643.88 | J192: 650.37 | K192: 637.4 | L192: 626.9 | M192: 6.99736
A193: 184 | B193: TCS | C193: 2055.15 | D193: 2054.73 | E193: 2040.52 | F193: 2025.88 | G193: 2011.67 | H193: 2069.37 | I193: 2083.58 | J193: 2098.22 | K193: 2068.95 | L193: 2040.1 | M193: 23.2982
A194: 185 | B194: TATAGLOBAL | C194: 233.4 | D194: 234.38 | E194: 231.27 | F194: 229.13 | G194: 226.02 | H194: 236.52 | I194: 239.63 | J194: 241.77 | K194: 237.5 | L194: 232.25 | M194: 18.32951
A195: 186 | B195: TATAMTRDVR | C195: 87.2 | D195: 87.15 | E195: 86.35 | F195: 85.50 | G195: 84.70 | H195: 88.00 | I195: 88.80 | J195: 89.65 | K195: 87.95 | L195: 86.3 | M195: 19.32242
A196: 187 | B196: TATAMOTORS | C196: 181.35 | D196: 181.38 | E196: 179.27 | F196: 177.18 | G196: 175.07 | H196: 183.47 | I196: 185.58 | J196: 187.67 | K196: 183.5 | L196: 179.3 | M196: 147.74311
A197: 188 | B197: TATAPOWER | C197: 70.8 | D197: 69.63 | E197: 68.27 | F197: 65.73 | G197: 64.37 | H197: 72.17 | I197: 73.53 | J197: 76.07 | K197: 71 | L197: 67.1 | M197: 77.70706
A198: 189 | B198: TATASTEEL | C198: 512.55 | D198: 503.47 | E198: 492.63 | F198: 472.72 | G198: 461.88 | H198: 523.38 | I198: 534.22 | J198: 554.13 | K198: 514.3 | L198: 483.55 | M198: 182.07705
A199: 190 | B199: TECHM | C199: 726.05 | D199: 727.85 | E199: 717.70 | F199: 709.35 | G199: 699.20 | H199: 736.20 | I199: 746.35 | J199: 754.70 | K199: 738 | L199: 719.5 | M199: 36.72605
A200: 191 | B200: NIACL | C200: 165.9 | D200: 165.97 | E200: 162.93 | F200: 159.97 | G200: 156.93 | H200: 168.93 | I200: 171.97 | J200: 174.93 | K200: 169 | L200: 163 | M200: 0.59201
A201: 192 | B201: RAMCOCEM | C201: 837.75 | D201: 831.60 | E201: 818.20 | F201: 798.65 | G201: 785.25 | H201: 851.15 | I201: 864.55 | J201: 884.10 | K201: 845 | L201: 812.05 | M201: 3.94031
A202: 193 | B202: TITAN | C202: 1240.95 | D202: 1229.32 | E202: 1215.13 | F202: 1189.32 | G202: 1175.13 | H202: 1255.13 | I202: 1269.32 | J202: 1295.13 | K202: 1243.5 | L202: 1203.5 | M202: 13.80441
A203: 194 | B203: TORNTPHARM | C203: 1511 | D203: 1514.40 | E203: 1501.65 | F203: 1492.30 | G203: 1479.55 | H203: 1523.75 | I203: 1536.50 | J203: 1545.85 | K203: 1527.15 | L203: 1505.05 | M203: 2.49882
A204: 195 | B204: TORNTPOWER | C204: 253.8 | D204: 251.32 | E204: 244.63 | F204: 235.47 | G204: 228.78 | H204: 260.48 | I204: 267.17 | J204: 276.33 | K204: 258 | L204: 242.15 | M204: 9.38338
A205: 196 | B205: UPL | C205: 1024.45 | D205: 1028.48 | E205: 1013.22 | F205: 1001.98 | G205: 986.72 | H205: 1039.72 | I205: 1054.98 | J205: 1066.22 | K205: 1043.75 | L205: 1017.25 | M205: 11.75219
... 30 more rows

Sheet MidCap Intra
L5: Back To Main Page
A6: FOR INTRA DAY TRADING | K6: =Main!B10 -> 2019-05-28
A9: Sr.no | B9: Scrip | C9: CLOSE RATE | D9: Pivot Point | E9: Supports | H9: Resistances
C10: Point | E10: S1 | F10: S2 | G10: S3 | H10: R1 | I10: R2 | J10: R3 | K10: HIGH | L10: LOW | M10: Total Trade Quanity in Lakhs
A11: 1 | B11: 3MINDIA | C11: 23937.5 | D11: 24017.07 | E11: 23779.18 | F11: 23620.87 | G11: 23382.98 | H11: 24175.38 | I11: 24413.27 | J11: 24571.58 | K11: 24254.95 | L11: 23858.75 | M11: 0.02059
A12: 2 | B12: ABB | C12: 1613.3 | D12: 1570.42 | E12: 1520.88 | F12: 1428.47 | G12: 1378.93 | H12: 1662.83 | I12: 1712.37 | J12: 1804.78 | K12: 1619.95 | L12: 1478 | M12: 3.27524
A13: 3 | B13: ACC | C13: 1759.8 | D13: 1741.67 | E13: 1718.13 | F13: 1676.47 | G13: 1652.93 | H13: 1783.33 | I13: 1806.87 | J13: 1848.53 | K13: 1765.2 | L13: 1700 | M13: 9.60403
A14: 4 | B14: AIAENG | C14: 1793.25 | D14: 1786.35 | E14: 1747.90 | F14: 1702.55 | G14: 1664.10 | H14: 1831.70 | I14: 1870.15 | J14: 1915.50 | K14: 1824.8 | L14: 1741 | M14: 1.16761
A15: 5 | B15: APLAPOLLO | C15: 1648.95 | D15: 1649.05 | E15: 1627.90 | F15: 1606.85 | G15: 1585.70 | H15: 1670.10 | I15: 1691.25 | J15: 1712.30 | K15: 1670.2 | L15: 1628 | M15: 0.14057
A16: 6 | B16: AUBANK | C16: 677.4 | D16: 679.90 | E16: 668.30 | F16: 659.20 | G16: 647.60 | H16: 689.00 | I16: 700.60 | J16: 709.70 | K16: 691.5 | L16: 670.8 | M16: 1.36148
A17: 7 | B17: AAVAS | C17: 1427.85 | D17: 1449.42 | E17: 1392.73 | F17: 1357.62 | G17: 1300.93 | H17: 1484.53 | I17: 1541.22 | J17: 1576.33 | K17: 1506.1 | L17: 1414.3 | M17: 0.57756
A18: 8 | B18: ADANIGREEN | C18: 43.15 | D18: 43.15 | E18: 42.30 | F18: 41.45 | G18: 40.60 | H18: 44.00 | I18: 44.85 | J18: 45.70 | K18: 44 | L18: 42.3 | M18: 7.2828
A19: 9 | B19: ADANIPORTS | C19: 412.4 | D19: 411.77 | E19: 406.23 | F19: 400.07 | G19: 394.53 | H19: 417.93 | I19: 423.47 | J19: 429.63 | K19: 417.3 | L19: 405.6 | M19: 50.88602
A20: 10 | B20: ADANIPOWER | C20: 49.1 | D20: 48.45 | E20: 47.20 | F20: 45.30 | G20: 44.05 | H20: 50.35 | I20: 51.60 | J20: 53.50 | K20: 49.7 | L20: 46.55 | M20: 229.98049
A21: 11 | B21: ADANITRANS | C21: 222.6 | D21: 224.25 | E21: 219.50 | F21: 216.40 | G21: 211.65 | H21: 227.35 | I21: 232.10 | J21: 235.20 | K21: 229 | L21: 221.15 | M21: 0.88593
A22: 12 | B22: ABCAPITAL | C22: 102.75 | D22: 101.60 | E22: 99.50 | F22: 96.25 | G22: 94.15 | H22: 104.85 | I22: 106.95 | J22: 110.20 | K22: 103.7 | L22: 98.35 | M22: 43.33501
A23: 13 | B23: ABFRL | C23: 209.5 | D23: 207.82 | E23: 204.63 | F23: 199.77 | G23: 196.58 | H23: 212.68 | I23: 215.87 | J23: 220.73 | K23: 211 | L23: 202.95 | M23: 4.53173
A24: 14 | B24: ADVENZYMES | C24: 211.5 | D24: 207.02 | E24: 200.53 | F24: 189.57 | G24: 183.08 | H24: 217.98 | I24: 224.47 | J24: 235.43 | K24: 213.5 | L24: 196.05 | M24: 4.94361
A25: 15 | B25: AEGISCHEM | C25: 216.9 | D25: 215.75 | E25: 214.00 | F25: 211.10 | G25: 209.35 | H25: 218.65 | I25: 220.40 | J25: 223.30 | K25: 217.5 | L25: 212.85 | M25: 0.78529
A26: 16 | B26: AJANTPHARM | C26: 1051.6 | D26: 1047.95 | E26: 1038.85 | F26: 1026.10 | G26: 1017.00 | H26: 1060.70 | I26: 1069.80 | J26: 1082.55 | K26: 1057.05 | L26: 1035.2 | M26: 2.21439
A27: 17 | B27: AKZOINDIA | C27: 1726.1 | D27: 1721.70 | E27: 1694.40 | F27: 1662.70 | G27: 1635.40 | H27: 1753.40 | I27: 1780.70 | J27: 1812.40 | K27: 1749 | L27: 1690 | M27: 0.05135
A28: 18 | B28: APLLTD | C28: 519.25 | D28: 520.48 | E28: 516.47 | F28: 513.68 | G28: 509.67 | H28: 523.27 | I28: 527.28 | J28: 530.07 | K28: 524.5 | L28: 517.7 | M28: 0.21002
A29: 19 | B29: ALKEM | C29: 1725.4 | D29: 1721.02 | E29: 1710.03 | F29: 1694.67 | G29: 1683.68 | H29: 1736.38 | I29: 1747.37 | J29: 1762.73 | K29: 1732 | L29: 1705.65 | M29: 0.09556
A30: 20 | B30: ALBK | C30: 47.75 | D30: 47.75 | E30: 46.85 | F30: 45.95 | G30: 45.05 | H30: 48.65 | I30: 49.55 | J30: 50.45 | K30: 48.65 | L30: 46.85 | M30: 47.3542
A31: 21 | B31: ALLCARGO | C31: 114.4 | D31: 113.92 | E31: 110.63 | F31: 106.87 | G31: 103.58 | H31: 117.68 | I31: 120.97 | J31: 124.73 | K31: 117.2 | L31: 110.15 | M31: 5.36715
A32: 22 | B32: AMARAJABAT | C32: 640.9 | D32: 641.08 | E32: 633.37 | F32: 625.83 | G32: 618.12 | H32: 648.62 | I32: 656.33 | J32: 663.87 | K32: 648.8 | L32: 633.55 | M32: 7.7351
A33: 23 | B33: AMBUJACEM | C33: 239.15 | D33: 236.73 | E33: 233.57 | F33: 227.98 | G33: 224.82 | H33: 242.32 | I33: 245.48 | J33: 251.07 | K33: 239.9 | L33: 231.15 | M33: 22.76077
A34: 24 | B34: ANDHRABANK | C34: 25.75 | D34: 25.62 | E34: 25.28 | F34: 24.82 | G34: 24.48 | H34: 26.08 | I34: 26.42 | J34: 26.88 | K34: 25.95 | L34: 25.15 | M34: 15.29607
A35: 25 | B35: APOLLOHOSP | C35: 1198.8 | D35: 1195.62 | E35: 1178.33 | F35: 1157.87 | G35: 1140.58 | H35: 1216.08 | I35: 1233.37 | J35: 1253.83 | K35: 1212.9 | L35: 1175.15 | M35: 2.94036
A36: 26 | B36: APOLLOTYRE | C36: 199.1 | D36: 198.17 | E36: 195.43 | F36: 191.77 | G36: 189.03 | H36: 201.83 | I36: 204.57 | J36: 208.23 | K36: 200.9 | L36: 194.5 | M36: 30.74229
A37: 27 | B37: ASHOKLEY | C37: 91.15 | D37: 90.82 | E37: 89.88 | F37: 88.62 | G37: 87.68 | H37: 92.08 | I37: 93.02 | J37: 94.28 | K37: 91.75 | L37: 89.55 | M37: 372.49413
A38: 28 | B38: ASHOKA | C38: 145.05 | D38: 140.48 | E38: 134.07 | F38: 123.08 | G38: 116.67 | H38: 151.47 | I38: 157.88 | J38: 168.87 | K38: 146.9 | L38: 129.5 | M38: 16.00481
A39: 29 | B39: ASIANPAINT | C39: 1366.85 | D39: 1373.42 | E39: 1356.13 | F39: 1345.42 | G39: 1328.13 | H39: 1384.13 | I39: 1401.42 | J39: 1412.13 | K39: 1390.7 | L39: 1362.7 | M39: 7.8273
A40: 30 | B40: ASTERDM | C40: 137.75 | D40: 136.88 | E40: 135.37 | F40: 132.98 | G40: 131.47 | H40: 139.27 | I40: 140.78 | J40: 143.17 | K40: 138.4 | L40: 134.5 | M40: 0.12067
A41: 31 | B41: ASTRAZEN | C41: 2010.35 | D41: 2057.92 | E41: 1942.43 | F41: 1874.52 | G41: 1759.03 | H41: 2125.83 | I41: 2241.32 | J41: 2309.23 | K41: 2173.4 | L41: 1990 | M41: 0.44168
A42: 32 | B42: ASTRAL | C42: 1279.85 | D42: 1265.27 | E42: 1244.63 | F42: 1209.42 | G42: 1188.78 | H42: 1300.48 | I42: 1321.12 | J42: 1356.33 | K42: 1285.9 | L42: 1230.05 | M42: 1.25063
A43: 33 | B43: ATUL | C43: 3759.05 | D43: 3772.98 | E43: 3727.37 | F43: 3695.68 | G43: 3650.07 | H43: 3804.67 | I43: 3850.28 | J43: 3881.97 | K43: 3818.6 | L43: 3741.3 | M43: 0.05247
A44: 34 | B44: AUROPHARMA | C44: 681.7 | D44: 679.53 | E44: 674.22 | F44: 666.73 | G44: 661.42 | H44: 687.02 | I44: 692.33 | J44: 699.82 | K44: 684.85 | L44: 672.05 | M44: 15.87132
A45: 35 | B45: AVANTIFEED | C45: 400.65 | D45: 384.82 | E45: 360.63 | F45: 320.62 | G45: 296.43 | H45: 424.83 | I45: 449.02 | J45: 489.03 | K45: 409 | L45: 344.8 | M45: 25.24775
A46: 36 | B46: DMART | C46: 1289.95 | D46: 1305.65 | E46: 1269.30 | F46: 1248.65 | G46: 1212.30 | H46: 1326.30 | I46: 1362.65 | J46: 1383.30 | K46: 1342 | L46: 1285 | M46: 6.17082
A47: 37 | B47: AXISBANK | C47: 813.9 | D47: 805.83 | E47: 795.27 | F47: 776.63 | G47: 766.07 | H47: 824.47 | I47: 835.03 | J47: 853.67 | K47: 816.4 | L47: 787.2 | M47: 91.28216
A48: 38 | B48: BASF | C48: 1356.55 | D48: 1352.18 | E48: 1334.37 | F48: 1312.18 | G48: 1294.37 | H48: 1374.37 | I48: 1392.18 | J48: 1414.37 | K48: 1370 | L48: 1330 | M48: 0.03732
A49: 39 | B49: BEML | C49: 1004.1 | D49: 991.17 | E49: 962.93 | F49: 921.77 | G49: 893.53 | H49: 1032.33 | I49: 1060.57 | J49: 1101.73 | K49: 1019.4 | L49: 950 | M49: 32.70867
A50: 40 | B50: BSE | C50: 610.4 | D50: 608.23 | E50: 601.67 | F50: 592.93 | G50: 586.37 | H50: 616.97 | I50: 623.53 | J50: 632.27 | K50: 614.8 | L50: 599.5 | M50: 1.15805
A51: 41 | B51: BAJAJ-AUTO | C51: 3066.9 | D51: 3062.63 | E51: 3035.27 | F51: 3003.63 | G51: 2976.27 | H51: 3094.27 | I51: 3121.63 | J51: 3153.27 | K51: 3090 | L51: 3031 | M51: 3.41393
A52: 42 | B52: BAJAJCON | C52: 335.55 | D52: 336.03 | E52: 334.07 | F52: 332.58 | G52: 330.62 | H52: 337.52 | I52: 339.48 | J52: 340.97 | K52: 338 | L52: 334.55 | M52: 0.34805
A53: 43 | B53: BAJAJELEC | C53: 537.85 | D53: 542.62 | E53: 531.53 | F53: 525.22 | G53: 514.13 | H53: 548.93 | I53: 560.02 | J53: 566.33 | K53: 553.7 | L53: 536.3 | M53: 1.1095
A54: 44 | B54: BAJFINANCE | C54: 3449 | D54: 3457.98 | E54: 3431.02 | F54: 3413.03 | G54: 3386.07 | H54: 3475.97 | I54: 3502.93 | J54: 3520.92 | K54: 3484.95 | L54: 3440 | M54: 9.32
A55: 45 | B55: BAJAJFINSV | C55: 8213.05 | D55: 8191.68 | E55: 8133.37 | F55: 8053.68 | G55: 7995.37 | H55: 8271.37 | I55: 8329.68 | J55: 8409.37 | K55: 8250 | L55: 8112 | M55: 1.69859
A56: 46 | B56: BAJAJHLDNG | C56: 3473.85 | D56: 3464.62 | E56: 3429.23 | F56: 3384.62 | G56: 3349.23 | H56: 3509.23 | I56: 3544.62 | J56: 3589.23 | K56: 3500 | L56: 3420 | M56: 0.43027
A57: 47 | B57: BALKRISIND | C57: 840.05 | D57: 829.50 | E57: 814.00 | F57: 787.95 | G57: 772.45 | H57: 855.55 | I57: 871.05 | J57: 897.10 | K57: 845 | L57: 803.45 | M57: 15.41371
A58: 48 | B58: BALMLAWRIE | C58: 186.7 | D58: 187.17 | E58: 183.53 | F58: 180.37 | G58: 176.73 | H58: 190.33 | I58: 193.97 | J58: 197.13 | K58: 190.8 | L58: 184 | M58: 1.603
A59: 49 | B59: BALRAMCHIN | C59: 157.3 | D59: 160.77 | E59: 152.53 | F59: 147.77 | G59: 139.53 | H59: 165.53 | I59: 173.77 | J59: 178.53 | K59: 169 | L59: 156 | M59: 33.70981
A60: 50 | B60: BANDHANBNK | C60: 599.8 | D60: 600.25 | E60: 595.65 | F60: 591.50 | G60: 586.90 | H60: 604.40 | I60: 609.00 | J60: 613.15 | K60: 604.85 | L60: 596.1 | M60: 25.28465
A61: 51 | B61: BANKBARODA | C61: 140.95 | D61: 139.68 | E61: 137.67 | F61: 134.38 | G61: 132.37 | H61: 142.97 | I61: 144.98 | J61: 148.27 | K61: 141.7 | L61: 136.4 | M61: 288.42316
A62: 52 | B62: BANKINDIA | C62: 98.4 | D62: 98.03 | E62: 96.62 | F62: 94.83 | G62: 93.42 | H62: 99.82 | I62: 101.23 | J62: 103.02 | K62: 99.45 | L62: 96.25 | M62: 112.27667
A63: 53 | B63: MAHABANK | C63: 16.15 | D63: 16.18 | E63: 15.77 | F63: 15.38 | G63: 14.97 | H63: 16.57 | I63: 16.98 | J63: 17.37 | K63: 16.6 | L63: 15.8 | M63: 7.8381
A64: 54 | B64: BATAINDIA | C64: 1338.05 | D64: 1341.12 | E64: 1308.53 | F64: 1279.02 | G64: 1246.43 | H64: 1370.63 | I64: 1403.22 | J64: 1432.73 | K64: 1373.7 | L64: 1311.6 | M64: 24.91189
A65: 55 | B65: BERGEPAINT | C65: 309.6 | D65: 311.20 | E65: 306.40 | F65: 303.20 | G65: 298.40 | H65: 314.40 | I65: 319.20 | J65: 322.40 | K65: 316 | L65: 308 | M65: 9.92087
A66: 56 | B66: BDL | C66: 329.75 | D66: 323.23 | E66: 313.47 | F66: 297.18 | G66: 287.42 | H66: 339.52 | I66: 349.28 | J66: 365.57 | K66: 333 | L66: 306.95 | M66: 1.94393
A67: 57 | B67: BEL | C67: 113 | D67: 113.40 | E67: 109.05 | F67: 105.10 | G67: 100.75 | H67: 117.35 | I67: 121.70 | J67: 125.65 | K67: 117.75 | L67: 109.45 | M67: 227.66311
A68: 58 | B68: BHARATFORG | C68: 482.35 | D68: 481.43 | E68: 475.17 | F68: 467.98 | G68: 461.72 | H68: 488.62 | I68: 494.88 | J68: 502.07 | K68: 487.7 | L68: 474.25 | M68: 10.08173
A69: 59 | B69: BHEL | C69: 72.7 | D69: 71.53 | E69: 69.82 | F69: 66.93 | G69: 65.22 | H69: 74.42 | I69: 76.13 | J69: 79.02 | K69: 73.25 | L69: 68.65 | M69: 358.42146
A70: 60 | B70: BPCL | C70: 402 | D70: 398.23 | E70: 392.62 | F70: 383.23 | G70: 377.62 | H70: 407.62 | I70: 413.23 | J70: 422.62 | K70: 403.85 | L70: 388.85 | M70: 51.11371
A71: 61 | B71: BHARTIARTL | C71: 349.5 | D71: 349.25 | E71: 346.60 | F71: 343.70 | G71: 341.05 | H71: 352.15 | I71: 354.80 | J71: 357.70 | K71: 351.9 | L71: 346.35 | M71: 39.30538
A72: 62 | B72: INFRATEL | C72: 279.55 | D72: 279.62 | E72: 276.38 | F72: 273.22 | G72: 269.98 | H72: 282.78 | I72: 286.02 | J72: 289.18 | K72: 282.85 | L72: 276.45 | M72: 16.6249
A73: 63 | B73: BIOCON | C73: 550.9 | D73: 545.42 | E73: 537.38 | F73: 523.87 | G73: 515.83 | H73: 558.93 | I73: 566.97 | J73: 580.48 | K73: 553.45 | L73: 531.9 | M73: 27.66564
A74: 64 | B74: BIRLACORPN | C74: 664.95 | D74: 652.02 | E74: 631.78 | F74: 598.62 | G74: 578.38 | H74: 685.18 | I74: 705.42 | J74: 738.58 | K74: 672.25 | L74: 618.85 | M74: 1.73889
A75: 65 | B75: BLISSGVS | C75: 159.4 | D75: 160.02 | E75: 158.48 | F75: 157.57 | G75: 156.03 | H75: 160.93 | I75: 162.47 | J75: 163.38 | K75: 161.55 | L75: 159.1 | M75: 10.97394
A76: 66 | B76: BLUEDART | C76: 2752.6 | D76: 2744.08 | E76: 2708.17 | F76: 2663.73 | G76: 2627.82 | H76: 2788.52 | I76: 2824.43 | J76: 2868.87 | K76: 2780 | L76: 2699.65 | M76: 0.03566
A77: 67 | B77: BLUESTARCO | C77: 778.6 | D77: 777.90 | E77: 768.80 | F77: 759.00 | G77: 749.90 | H77: 787.70 | I77: 796.80 | J77: 806.60 | K77: 787 | L77: 768.1 | M77: 0.66897
A78: 68 | B78: BBTC | C78: 1146.45 | D78: 1158.15 | E78: 1130.30 | F78: 1114.15 | G78: 1086.30 | H78: 1174.30 | I78: 1202.15 | J78: 1218.30 | K78: 1186 | L78: 1142 | M78: 3.97828
A79: 69 | B79: BOMDYEING | C79: 135.55 | D79: 132.08 | E79: 125.47 | F79: 115.38 | G79: 108.77 | H79: 142.17 | I79: 148.78 | J79: 158.87 | K79: 138.7 | L79: 122 | M79: 51.22054
A80: 70 | B80: BOSCHLTD | C80: 16924.85 | D80: 17007.98 | E80: 16766.97 | F80: 16609.08 | G80: 16368.07 | H80: 17165.87 | I80: 17406.88 | J80: 17564.77 | K80: 17249 | L80: 16850.1 | M80: 0.12614
A81: 71 | B81: BRIGADE | C81: 252.2 | D81: 256.25 | E81: 244.50 | F81: 236.80 | G81: 225.05 | H81: 263.95 | I81: 275.70 | J81: 283.40 | K81: 268 | L81: 248.55 | M81: 1.36978
A82: 72 | B82: BRITANNIA | C82: 2896.55 | D82: 2886.53 | E82: 2868.07 | F82: 2839.58 | G82: 2821.12 | H82: 2915.02 | I82: 2933.48 | J82: 2961.97 | K82: 2905 | L82: 2858.05 | M82: 2.67259
A83: 73 | B83: CARERATING | C83: 974.55 | D83: 973.40 | E83: 966.80 | F83: 959.05 | G83: 952.45 | H83: 981.15 | I83: 987.75 | J83: 995.50 | K83: 980 | L83: 965.65 | M83: 0.17961
A84: 74 | B84: CCL | C84: 268.6 | D84: 270.12 | E84: 266.58 | F84: 264.57 | G84: 261.03 | H84: 272.13 | I84: 275.67 | J84: 277.68 | K84: 273.65 | L84: 268.1 | M84: 0.22675
A85: 75 | B85: CESC | C85: 748.15 | D85: 747.35 | E85: 736.80 | F85: 725.45 | G85: 714.90 | H85: 758.70 | I85: 769.25 | J85: 780.60 | K85: 757.9 | L85: 736 | M85: 3.82391
A86: 77 | B86: CGPOWER | C86: 38.05 | D86: 38.48 | E86: 37.27 | F86: 36.48 | G86: 35.27 | H86: 39.27 | I86: 40.48 | J86: 41.27 | K86: 39.7 | L86: 37.7 | M86: 62.20253
A87: 78 | B87: CRISIL | C87: 1488.2 | D87: 1475.50 | E87: 1457.70 | F87: 1427.20 | G87: 1409.40 | H87: 1506.00 | I87: 1523.80 | J87: 1554.30 | K87: 1493.3 | L87: 1445 | M87: 0.13103
A88: 79 | B88: CADILAHC | C88: 255 | D88: 255.92 | E88: 252.08 | F88: 249.17 | G88: 245.33 | H88: 258.83 | I88: 262.67 | J88: 265.58 | K88: 259.75 | L88: 253 | M88: 27.55381
A89: 80 | B89: CANFINHOME | C89: 354.7 | D89: 353.52 | E89: 349.98 | F89: 345.27 | G89: 341.73 | H89: 358.23 | I89: 361.77 | J89: 366.48 | K89: 357.05 | L89: 348.8 | M89: 5.83212
A90: 81 | B90: CANBK | C90: 280.95 | D90: 280.10 | E90: 274.65 | F90: 268.35 | G90: 262.90 | H90: 286.40 | I90: 291.85 | J90: 298.15 | K90: 285.55 | L90: 273.8 | M90: 71.1055
A91: 82 | B91: CAPLIPOINT | C91: 428.95 | D91: 422.22 | E91: 404.43 | F91: 379.92 | G91: 362.13 | H91: 446.73 | I91: 464.52 | J91: 489.03 | K91: 440 | L91: 397.7 | M91: 1.17763
A92: 83 | B92: CARBORUNIV | C92: 375.6 | D92: 373.13 | E92: 366.77 | F92: 357.93 | G92: 351.57 | H92: 381.97 | I92: 388.33 | J92: 397.17 | K92: 379.5 | L92: 364.3 | M92: 2.77497
A93: 84 | B93: CASTROLIND | C93: 149.25 | D93: 148.72 | E93: 146.53 | F93: 143.82 | G93: 141.63 | H93: 151.43 | I93: 153.62 | J93: 156.33 | K93: 150.9 | L93: 146 | M93: 12.76811
A94: 85 | B94: CEATLTD | C94: 1019.4 | D94: 1030.07 | E94: 1005.63 | F94: 991.87 | G94: 967.43 | H94: 1043.83 | I94: 1068.27 | J94: 1082.03 | K94: 1054.5 | L94: 1016.3 | M94: 4.967
A95: 86 | B95: CENTRALBK | C95: 25.95 | D95: 26.03 | E95: 25.32 | F95: 24.68 | G95: 23.97 | H95: 26.67 | I95: 27.38 | J95: 28.02 | K95: 26.75 | L95: 25.4 | M95: 16.07181
A96: 87 | B96: CDSL | C96: 229.85 | D96: 231.45 | E96: 227.40 | F96: 224.95 | G96: 220.90 | H96: 233.90 | I96: 237.95 | J96: 240.40 | K96: 235.5 | L96: 229 | M96: 3.25276
A97: 88 | B97: CENTURYPLY | C97: 166.15 | D97: 167.38 | E97: 163.77 | F97: 161.38 | G97: 157.77 | H97: 169.77 | I97: 173.38 | J97: 175.77 | K97: 171 | L97: 165 | M97: 3.00832
A98: 89 | B98: CERA | C98: 2995.15 | D98: 2973.88 | E98: 2901.32 | F98: 2807.48 | G98: 2734.92 | H98: 3067.72 | I98: 3140.28 | J98: 3234.12 | K98: 3046.45 | L98: 2880.05 | M98: 0.19511
A99: 90 | B99: CHAMBLFERT | C99: 173.3 | D99: 171.92 | E99: 168.93 | F99: 164.57 | G99: 161.58 | H99: 176.28 | I99: 179.27 | J99: 183.63 | K99: 174.9 | L99: 167.55 | M99: 3.61323
A100: 91 | B100: CHENNPETRO | C100: 223.4 | D100: 221.80 | E100: 218.60 | F100: 213.80 | G100: 210.60 | H100: 226.60 | I100: 229.80 | J100: 234.60 | K100: 225 | L100: 217 | M100: 5.86912
A101: 92 | B101: CHOLAHLDNG | C101: 508.35 | D101: 512.48 | E101: 503.07 | F101: 497.78 | G101: 488.37 | H101: 517.77 | I101: 527.18 | J101: 532.47 | K101: 521.9 | L101: 507.2 | M101: 0.32135
A102: 93 | B102: CHOLAFIN | C102: 1513.05 | D102: 1507.53 | E102: 1495.57 | F102: 1478.08 | G102: 1466.12 | H102: 1525.02 | I102: 1536.98 | J102: 1554.47 | K102: 1519.5 | L102: 1490.05 | M102: 2.88436
A103: 94 | B103: CIPLA | C103: 578.7 | D103: 577.57 | E103: 569.13 | F103: 559.57 | G103: 551.13 | H103: 587.13 | I103: 595.57 | J103: 605.13 | K103: 586 | L103: 568 | M103: 19.59075
A104: 95 | B104: CUB | C104: 216.15 | D104: 215.25 | E104: 213.50 | F104: 210.85 | G104: 209.10 | H104: 217.90 | I104: 219.65 | J104: 222.30 | K104: 217 | L104: 212.6 | M104: 7.98056
A105: 96 | B105: COALINDIA | C105: 244.1 | D105: 244.55 | E105: 242.65 | F105: 241.20 | G105: 239.30 | H105: 246.00 | I105: 247.90 | J105: 249.35 | K105: 246.45 | L105: 243.1 | M105: 19.47123
A106: 97 | B106: COCHINSHIP | C106: 370.3 | D106: 371.13 | E106: 367.27 | F106: 364.23 | G106: 360.37 | H106: 374.17 | I106: 378.03 | J106: 381.07 | K106: 375 | L106: 368.1 | M106: 2.84887
A107: 98 | B107: COFFEEDAY | C107: 242.7 | D107: 244.48 | E107: 239.32 | F107: 235.93 | G107: 230.77 | H107: 247.87 | I107: 253.03 | J107: 256.42 | K107: 249.65 | L107: 241.1 | M107: 1.11004
A108: 99 | B108: COLPAL | C108: 1180.15 | D108: 1175.92 | E108: 1162.88 | F108: 1145.62 | G108: 1132.58 | H108: 1193.18 | I108: 1206.22 | J108: 1223.48 | K108: 1188.95 | L108: 1158.65 | M108: 8.25973
A109: 100 | B109: CONCOR | C109: 523.35 | D109: 517.30 | E109: 508.10 | F109: 492.85 | G109: 483.65 | H109: 532.55 | I109: 541.75 | J109: 557.00 | K109: 526.5 | L109: 502.05 | M109: 9.36898
A110: 101 | B110: COROMANDEL | C110: 422.1 | D110: 418.85 | E110: 412.75 | F110: 403.40 | G110: 397.30 | H110: 428.20 | I110: 434.30 | J110: 443.65 | K110: 424.95 | L110: 409.5 | M110: 2.93387
A111: 102 | B111: CORPBANK | C111: 25.1 | D111: 25.00 | E111: 24.60 | F111: 24.10 | G111: 23.70 | H111: 25.50 | I111: 25.90 | J111: 26.40 | K111: 25.4 | L111: 24.5 | M111: 1.73501
A112: 103 | B112: COX&KINGS | C112: 92.95 | D112: 93.68 | E112: 92.07 | F112: 91.18 | G112: 89.57 | H112: 94.57 | I112: 96.18 | J112: 97.07 | K112: 95.3 | L112: 92.8 | M112: 3.30759
A113: 104 | B113: CREDITACC | C113: 550.05 | D113: 542.35 | E113: 525.70 | F113: 501.35 | G113: 484.70 | H113: 566.70 | I113: 583.35 | J113: 607.70 | K113: 559 | L113: 518 | M113: 1.02572
A114: 105 | B114: CROMPTON | C114: 232.9 | D114: 232.90 | E114: 225.00 | F114: 217.10 | G114: 209.20 | H114: 240.80 | I114: 248.70 | J114: 256.60 | K114: 240.8 | L114: 225 | M114: 14.14489
A115: 106 | B115: CUMMINSIND | C115: 788.45 | D115: 775.50 | E115: 760.00 | F115: 731.55 | G115: 716.05 | H115: 803.95 | I115: 819.45 | J115: 847.90 | K115: 791 | L115: 747.05 | M115: 10.2536
A116: 107 | B116: CYIENT | C116: 559.55 | D116: 560.10 | E116: 552.20 | F116: 544.85 | G116: 536.95 | H116: 567.45 | I116: 575.35 | J116: 582.70 | K116: 568 | L116: 552.75 | M116: 1.94455
A117: 108 | B117: DBCORP | C117: 193.65 | D117: 193.48 | E117: 190.67 | F117: 187.68 | G117: 184.87 | H117: 196.47 | I117: 199.28 | J117: 202.27 | K117: 196.3 | L117: 190.5 | M117: 0.6559
A118: 109 | B118: DCBBANK | C118: 233.5 | D118: 233.38 | E118: 231.12 | F118: 228.73 | G118: 226.47 | H118: 235.77 | I118: 238.03 | J118: 240.42 | K118: 235.65 | L118: 231 | M118: 8.62846
A119: 110 | B119: DCMSHRIRAM | C119: 612.15 | D119: 608.18 | E119: 592.62 | F119: 573.08 | G119: 557.52 | H119: 627.72 | I119: 643.28 | J119: 662.82 | K119: 623.75 | L119: 588.65 | M119: 2.3401
A120: 111 | B120: DLF | C120: 197 | D120: 195.77 | E120: 191.33 | F120: 185.67 | G120: 181.23 | H120: 201.43 | I120: 205.87 | J120: 211.53 | K120: 200.2 | L120: 190.1 | M120: 150.49131
A121: 112 | B121: DABUR | C121: 400.1 | D121: 401.97 | E121: 395.53 | F121: 390.97 | G121: 384.53 | H121: 406.53 | I121: 412.97 | J121: 417.53 | K121: 408.4 | L121: 397.4 | M121: 30.52919
A122: 113 | B122: DEEPAKFERT | C122: 146.85 | D122: 145.07 | E122: 142.23 | F122: 137.62 | G122: 134.78 | H122: 149.68 | I122: 152.52 | J122: 157.13 | K122: 147.9 | L122: 140.45 | M122: 5.34319
A123: 114 | B123: DEEPAKNTR | C123: 312.4 | D123: 305.12 | E123: 296.28 | F123: 280.17 | G123: 271.33 | H123: 321.23 | I123: 330.07 | J123: 346.18 | K123: 313.95 | L123: 289 | M123: 13.69975
A124: 115 | B124: DELTACORP | C124: 202.85 | D124: 201.73 | E124: 197.52 | F124: 192.18 | G124: 187.97 | H124: 207.07 | I124: 211.28 | J124: 216.62 | K124: 205.95 | L124: 196.4 | M124: 17.8428
A125: 116 | B125: DHFL | C125: 119.15 | D125: 119.30 | E125: 115.15 | F125: 111.15 | G125: 107.00 | H125: 123.30 | I125: 127.45 | J125: 131.45 | K125: 123.45 | L125: 115.3 | M125: 114.43172
A126: 117 | B126: DBL | C126: 615.75 | D126: 619.55 | E126: 606.90 | F126: 598.05 | G126: 585.40 | H126: 628.40 | I126: 641.05 | J126: 649.90 | K126: 632.2 | L126: 610.7 | M126: 4.87086
A127: 118 | B127: DISHTV | C127: 31 | D127: 30.93 | E127: 28.97 | F127: 26.93 | G127: 24.97 | H127: 32.97 | I127: 34.93 | J127: 36.97 | K127: 32.9 | L127: 28.9 | M127: 253.94278
A128: 119 | B128: DCAL | C128: 239.1 | D128: 239.92 | E128: 235.33 | F128: 231.57 | G128: 226.98 | H128: 243.68 | I128: 248.27 | J128: 252.03 | K128: 244.5 | L128: 236.15 | M128: 1.85856
A129: 120 | B129: DIVISLAB | C129: 1593.45 | D129: 1633.85 | E129: 1537.65 | F129: 1481.85 | G129: 1385.65 | H129: 1689.65 | I129: 1785.85 | J129: 1841.65 | K129: 1730.05 | L129: 1578.05 | M129: 30.84161
A130: 121 | B130: DIXON | C130: 2418.15 | D130: 2445.93 | E130: 2372.22 | F130: 2326.28 | G130: 2252.57 | H130: 2491.87 | I130: 2565.58 | J130: 2611.52 | K130: 2519.65 | L130: 2400 | M130: 0.13097
A131: 122 | B131: LALPATHLAB | C131: 1042.1 | D131: 1041.85 | E131: 1033.80 | F131: 1025.50 | G131: 1017.45 | H131: 1050.15 | I131: 1058.20 | J131: 1066.50 | K131: 1049.9 | L131: 1033.55 | M131: 0.49577
A132: 123 | B132: DRREDDY | C132: 2658 | D132: 2653.15 | E132: 2637.30 | F132: 2616.60 | G132: 2600.75 | H132: 2673.85 | I132: 2689.70 | J132: 2710.40 | K132: 2669 | L132: 2632.45 | M132: 3.40656
A133: 124 | B133: EIDPARRY | C133: 194.2 | D133: 194.38 | E133: 185.42 | F133: 176.63 | G133: 167.67 | H133: 203.17 | I133: 212.13 | J133: 220.92 | K133: 203.35 | L133: 185.6 | M133: 4.74276
A134: 125 | B134: EIHOTEL | C134: 193.3 | D134: 189.60 | E134: 178.20 | F134: 163.10 | G134: 151.70 | H134: 204.70 | I134: 216.10 | J134: 231.20 | K134: 201 | L134: 174.5 | M134: 2.1806
A135: 126 | B135: EDELWEISS | C135: 189 | D135: 184.98 | E135: 180.07 | F135: 171.13 | G135: 166.22 | H135: 193.92 | I135: 198.83 | J135: 207.77 | K135: 189.9 | L135: 176.05 | M135: 26.87024
A136: 127 | B136: EICHERMOT | C136: 20887.35 | D136: 20933.98 | E136: 20718.37 | F136: 20549.38 | G136: 20333.77 | H136: 21102.97 | I136: 21318.58 | J136: 21487.57 | K136: 21149.6 | L136: 20765 | M136: 0.66295
A137: 128 | B137: ELGIEQUIP | C137: 264.9 | D137: 264.62 | E137: 260.78 | F137: 256.67 | G137: 252.83 | H137: 268.73 | I137: 272.57 | J137: 276.68 | K137: 268.45 | L137: 260.5 | M137: 0.06663
A138: 129 | B138: EMAMILTD | C138: 357.6 | D138: 361.23 | E138: 352.47 | F138: 347.33 | G138: 338.57 | H138: 366.37 | I138: 375.13 | J138: 380.27 | K138: 370 | L138: 356.1 | M138: 2.17405
A139: 130 | B139: ENDURANCE | C139: 1154.55 | D139: 1156.13 | E139: 1148.92 | F139: 1143.28 | G139: 1136.07 | H139: 1161.77 | I139: 1168.98 | J139: 1174.62 | K139: 1163.35 | L139: 1150.5 | M139: 0.10304
A140: 131 | B140: ENGINERSIN | C140: 127.55 | D140: 125.48 | E140: 122.27 | F140: 116.98 | G140: 113.77 | H140: 130.77 | I140: 133.98 | J140: 139.27 | K140: 128.7 | L140: 120.2 | M140: 61.22758
A141: 132 | B141: EQUITAS | C141: 139.55 | D141: 138.67 | E141: 136.63 | F141: 133.72 | G141: 131.68 | H141: 141.58 | I141: 143.62 | J141: 146.53 | K141: 140.7 | L141: 135.75 | M141: 15.60982
A142: 133 | B142: ERIS | C142: 517.1 | D142: 521.33 | E142: 497.67 | F142: 478.23 | G142: 454.57 | H142: 540.77 | I142: 564.43 | J142: 583.87 | K142: 545 | L142: 501.9 | M142: 0.50713
A143: 134 | B143: ESCORTS | C143: 638.1 | D143: 641.03 | E143: 632.57 | F143: 627.03 | G143: 618.57 | H143: 646.57 | I143: 655.03 | J143: 660.57 | K143: 649.5 | L143: 635.5 | M143: 16.64553
A144: 135 | B144: ESSELPACK | C144: 131.3 | D144: 131.85 | E144: 130.25 | F144: 129.20 | G144: 127.60 | H144: 132.90 | I144: 134.50 | J144: 135.55 | K144: 133.45 | L144: 130.8 | M144: 2.98245
A145: 136 | B145: EXIDEIND | C145: 216.35 | D145: 218.30 | E145: 213.90 | F145: 211.45 | G145: 207.05 | H145: 220.75 | I145: 225.15 | J145: 227.60 | K145: 222.7 | L145: 215.85 | M145: 18.14363
A146: 137 | B146: FDC | C146: 203.6 | D146: 208.10 | E146: 197.20 | F146: 190.80 | G146: 179.90 | H146: 214.50 | I146: 225.40 | J146: 231.80 | K146: 219 | L146: 201.7 | M146: 6.12123
A147: 138 | B147: FEDERALBNK | C147: 108.05 | D147: 107.20 | E147: 106.05 | F147: 104.05 | G147: 102.90 | H147: 109.20 | I147: 110.35 | J147: 112.35 | K147: 108.35 | L147: 105.2 | M147: 140.36734
A148: 139 | B148: FINEORG | C148: 1498.9 | D148: 1522.88 | E148: 1457.77 | F148: 1416.63 | G148: 1351.52 | H148: 1564.02 | I148: 1629.13 | J148: 1670.27 | K148: 1588 | L148: 1481.75 | M148: 0.1964
A149: 140 | B149: FINCABLES | C149: 472.7 | D149: 465.75 | E149: 451.95 | F149: 431.20 | G149: 417.40 | H149: 486.50 | I149: 500.30 | J149: 521.05 | K149: 479.55 | L149: 445 | M149: 0.75706
A150: 141 | B150: FINPIPE | C150: 493.65 | D150: 484.80 | E150: 469.85 | F150: 446.05 | G150: 431.10 | H150: 508.60 | I150: 523.55 | J150: 547.35 | K150: 499.75 | L150: 461 | M150: 1.95907
A151: 142 | B151: FSL | C151: 56.65 | D151: 56.10 | E151: 55.00 | F151: 53.35 | G151: 52.25 | H151: 57.75 | I151: 58.85 | J151: 60.50 | K151: 57.2 | L151: 54.45 | M151: 51.4418
A152: 143 | B152: FORTIS | C152: 128.25 | D152: 129.10 | E152: 126.20 | F152: 124.15 | G152: 121.25 | H152: 131.15 | I152: 134.05 | J152: 136.10 | K152: 132 | L152: 127.05 | M152: 24.42613
A153: 144 | B153: FCONSUMER | C153: 44.55 | D153: 44.02 | E153: 43.03 | F153: 41.52 | G153: 40.53 | H153: 45.53 | I153: 46.52 | J153: 48.03 | K153: 45 | L153: 42.5 | M153: 26.97173
A154: 145 | B154: FLFL | C154: 456.8 | D154: 468.00 | E154: 443.00 | F154: 429.20 | G154: 404.20 | H154: 481.80 | I154: 506.80 | J154: 520.60 | K154: 493 | L154: 454.2 | M154: 1.47116
A155: 146 | B155: FRETAIL | C155: 449.95 | D155: 455.68 | E155: 442.37 | F155: 434.78 | G155: 421.47 | H155: 463.27 | I155: 476.58 | J155: 484.17 | K155: 469 | L155: 448.1 | M155: 6.39746
A156: 147 | B156: GAIL | C156: 348.35 | D156: 347.03 | E156: 343.07 | F156: 337.78 | G156: 333.82 | H156: 352.32 | I156: 356.28 | J156: 361.57 | K156: 351 | L156: 341.75 | M156: 54.00992
A157: 148 | B157: GEPIL | C157: 918.4 | D157: 912.80 | E157: 900.60 | F157: 882.80 | G157: 870.60 | H157: 930.60 | I157: 942.80 | J157: 960.60 | K157: 925 | L157: 895 | M157: 0.1491
A158: 149 | B158: GET&D | C158: 285.15 | D158: 277.92 | E158: 268.93 | F158: 252.72 | G158: 243.73 | H158: 294.13 | I158: 303.12 | J158: 319.33 | K158: 286.9 | L158: 261.7 | M158: 1.00506
A159: 150 | B159: GHCL | C159: 270.45 | D159: 265.60 | E159: 257.20 | F159: 243.95 | G159: 235.55 | H159: 278.85 | I159: 287.25 | J159: 300.50 | K159: 274 | L159: 252.35 | M159: 3.8095
A160: 151 | B160: GMRINFRA | C160: 17 | D160: 17.10 | E160: 16.75 | F160: 16.50 | G160: 16.15 | H160: 17.35 | I160: 17.70 | J160: 17.95 | K160: 17.45 | L160: 16.85 | M160: 201.87783
A161: 152 | B161: GALAXYSURF | C161: 1061.95 | D161: 1063.47 | E161: 1043.48 | F161: 1025.02 | G161: 1005.03 | H161: 1081.93 | I161: 1101.92 | J161: 1120.38 | K161: 1083.45 | L161: 1045 | M161: 0.07842
A162: 153 | B162: GDL | C162: 143.05 | D162: 141.20 | E162: 135.85 | F162: 128.65 | G162: 123.30 | H162: 148.40 | I162: 153.75 | J162: 160.95 | K162: 146.55 | L162: 134 | M162: 5.3291
A163: 154 | B163: GAYAPROJ | C163: 169.2 | D163: 170.00 | E163: 167.20 | F163: 165.20 | G163: 162.40 | H163: 172.00 | I163: 174.80 | J163: 176.80 | K163: 172.8 | L163: 168 | M163: 0.07787
A164: 155 | B164: GICRE | C164: 229.85 | D164: 229.78 | E164: 227.57 | F164: 225.28 | G164: 223.07 | H164: 232.07 | I164: 234.28 | J164: 236.57 | K164: 232 | L164: 227.5 | M164: 0.91074
A165: 156 | B165: GILLETTE | C165: 7045.65 | D165: 7055.28 | E165: 7010.77 | F165: 6975.88 | G165: 6931.37 | H165: 7090.17 | I165: 7134.68 | J165: 7169.57 | K165: 7099.8 | L165: 7020.4 | M165: 0.02561
A166: 157 | B166: GSKCONS | C166: 7381 | D166: 7341.33 | E166: 7284.67 | F166: 7188.33 | G166: 7131.67 | H166: 7437.67 | I166: 7494.33 | J166: 7590.67 | K166: 7398 | L166: 7245 | M166: 0.24856
A167: 158 | B167: GLAXO | C167: 1279.8 | D167: 1277.60 | E167: 1275.20 | F167: 1270.60 | G167: 1268.20 | H167: 1282.20 | I167: 1284.60 | J167: 1289.20 | K167: 1280 | L167: 1273 | M167: 0.16007
A168: 159 | B168: GLENMARK | C168: 559.45 | D168: 560.25 | E168: 555.70 | F168: 551.95 | G168: 547.40 | H168: 564.00 | I168: 568.55 | J168: 572.30 | K168: 564.8 | L168: 556.5 | M168: 4.32832
A169: 160 | B169: GODFRYPHLP | C169: 1029.6 | D169: 1032.58 | E169: 1018.57 | F169: 1007.53 | G169: 993.52 | H169: 1043.62 | I169: 1057.63 | J169: 1068.67 | K169: 1046.6 | L169: 1021.55 | M169: 1.64357
A170: 161 | B170: GODREJAGRO | C170: 517.9 | D170: 510.97 | E170: 499.93 | F170: 481.97 | G170: 470.93 | H170: 528.93 | I170: 539.97 | J170: 557.93 | K170: 522 | L170: 493 | M170: 1.53832
A171: 162 | B171: GODREJCP | C171: 667.3 | D171: 668.95 | E171: 659.90 | F171: 652.50 | G171: 643.45 | H171: 676.35 | I171: 685.40 | J171: 692.80 | K171: 678 | L171: 661.55 | M171: 6.31334
A172: 163 | B172: GODREJIND | C172: 494.8 | D172: 492.00 | E172: 486.80 | F172: 478.80 | G172: 473.60 | H172: 500.00 | I172: 505.20 | J172: 513.20 | K172: 497.2 | L172: 484 | M172: 3.34198
A173: 164 | B173: GODREJPROP | C173: 919.55 | D173: 906.80 | E173: 887.80 | F173: 856.05 | G173: 837.05 | H173: 938.55 | I173: 957.55 | J173: 989.30 | K173: 925.8 | L173: 875.05 | M173: 5.44289
A174: 165 | B174: GRANULES | C174: 111.9 | D174: 112.33 | E174: 110.67 | F174: 109.43 | G174: 107.77 | H174: 113.57 | I174: 115.23 | J174: 116.47 | K174: 114 | L174: 111.1 | M174: 3.86549
A175: 166 | B175: GRAPHITE | C175: 413.45 | D175: 408.60 | E175: 398.20 | F175: 382.95 | G175: 372.55 | H175: 423.85 | I175: 434.25 | J175: 449.50 | K175: 419 | L175: 393.35 | M175: 31.03788
A176: 167 | B176: GRASIM | C176: 935.3 | D176: 930.55 | E176: 901.30 | F176: 867.30 | G176: 838.05 | H176: 964.55 | I176: 993.80 | J176: 1027.80 | K176: 959.8 | L176: 896.55 | M176: 34.23163
A177: 168 | B177: GESHIP | C177: 273.1 | D177: 271.53 | E177: 262.62 | F177: 252.13 | G177: 243.22 | H177: 282.02 | I177: 290.93 | J177: 301.42 | K177: 280.45 | L177: 261.05 | M177: 1.2292
A178: 169 | B178: GREAVESCOT | C178: 143.65 | D178: 143.83 | E178: 142.37 | F178: 141.08 | G178: 139.62 | H178: 145.12 | I178: 146.58 | J178: 147.87 | K178: 145.3 | L178: 142.55 | M178: 2.17369
A179: 170 | B179: GRINDWELL | C179: 599.4 | D179: 599.30 | E179: 592.60 | F179: 585.80 | G179: 579.10 | H179: 606.10 | I179: 612.80 | J179: 619.60 | K179: 606 | L179: 592.5 | M179: 0.10944
A180: 171 | B180: GRUH | C180: 322.05 | D180: 319.37 | E180: 313.73 | F180: 305.42 | G180: 299.78 | H180: 327.68 | I180: 333.32 | J180: 341.63 | K180: 325 | L180: 311.05 | M180: 15.67714
A181: 172 | B181: GUJALKALI | C181: 581.5 | D181: 578.27 | E181: 561.53 | F181: 541.57 | G181: 524.83 | H181: 598.23 | I181: 614.97 | J181: 634.93 | K181: 595 | L181: 558.3 | M181: 1.8503
A182: 173 | B182: GUJFLUORO | C182: 1058.25 | D182: 1058.82 | E182: 1019.63 | F182: 981.02 | G182: 941.83 | H182: 1097.43 | I182: 1136.62 | J182: 1175.23 | K182: 1098 | L182: 1020.2 | M182: 2.98434
A183: 174 | B183: GUJGASLTD | C183: 170.05 | D183: 168.93 | E183: 165.87 | F183: 161.68 | G183: 158.62 | H183: 173.12 | I183: 176.18 | J183: 180.37 | K183: 172 | L183: 164.75 | M183: 4.5438
A184: 175 | B184: GMDCLTD | C184: 80 | D184: 78.23 | E184: 75.97 | F184: 71.93 | G184: 69.67 | H184: 82.27 | I184: 84.53 | J184: 88.57 | K184: 80.5 | L184: 74.2 | M184: 6.69825
A185: 176 | B185: GNFC | C185: 317.95 | D185: 316.70 | E185: 307.70 | F185: 297.45 | G185: 288.45 | H185: 326.95 | I185: 335.95 | J185: 346.20 | K185: 325.7 | L185: 306.45 | M185: 6.43267
A186: 177 | B186: GPPL | C186: 93.15 | D186: 92.13 | E186: 90.67 | F186: 88.18 | G186: 86.72 | H186: 94.62 | I186: 96.08 | J186: 98.57 | K186: 93.6 | L186: 89.65 | M186: 1.53851
A187: 178 | B187: GSFC | C187: 104.55 | D187: 104.20 | E187: 102.40 | F187: 100.25 | G187: 98.45 | H187: 106.35 | I187: 108.15 | J187: 110.30 | K187: 106 | L187: 102.05 | M187: 16.90067
A188: 179 | B188: GSPL | C188: 198.75 | D188: 196.55 | E188: 193.45 | F188: 188.15 | G188: 185.05 | H188: 201.85 | I188: 204.95 | J188: 210.25 | K188: 199.65 | L188: 191.25 | M188: 2.33618
A189: 180 | B189: GULFOILLUB | C189: 883.75 | D189: 886.97 | E189: 877.83 | F189: 871.92 | G189: 862.78 | H189: 892.88 | I189: 902.02 | J189: 907.93 | K189: 896.1 | L189: 881.05 | M189: 0.51534
A190: 181 | B190: HEG | C190: 1817.05 | D190: 1837.93 | E190: 1784.27 | F190: 1751.48 | G190: 1697.82 | H190: 1870.72 | I190: 1924.38 | J190: 1957.17 | K190: 1891.6 | L190: 1805.15 | M190: 5.45464
A191: 182 | B191: HCLTECH | C191: 1064.2 | D191: 1067.80 | E191: 1054.60 | F191: 1045.00 | G191: 1031.80 | H191: 1077.40 | I191: 1090.60 | J191: 1100.20 | K191: 1081 | L191: 1058.2 | M191: 15.82207
A192: 183 | B192: HDFCAMC | C192: 1745.3 | D192: 1747.33 | E192: 1725.97 | F192: 1706.63 | G192: 1685.27 | H192: 1766.67 | I192: 1788.03 | J192: 1807.37 | K192: 1768.7 | L192: 1728 | M192: 1.01648
A193: 184 | B193: HDFCBANK | C193: 2408.35 | D193: 2400.83 | E193: 2379.77 | F193: 2351.18 | G193: 2330.12 | H193: 2429.42 | I193: 2450.48 | J193: 2479.07 | K193: 2421.9 | L193: 2372.25 | M193: 30.12256
A194: 185 | B194: HDFCLIFE | C194: 422.6 | D194: 417.72 | E194: 411.48 | F194: 400.37 | G194: 394.13 | H194: 428.83 | I194: 435.07 | J194: 446.18 | K194: 423.95 | L194: 406.6 | M194: 41.52835
A195: 186 | B195: HATHWAY | C195: 25.35 | D195: 25.12 | E195: 24.53 | F195: 23.72 | G195: 23.13 | H195: 25.93 | I195: 26.52 | J195: 27.33 | K195: 25.7 | L195: 24.3 | M195: 0.57434
A196: 187 | B196: HATSUN | C196: 719.1 | D196: 721.02 | E196: 708.03 | F196: 696.97 | G196: 683.98 | H196: 732.08 | I196: 745.07 | J196: 756.13 | K196: 734 | L196: 709.95 | M196: 0.13527
A197: 188 | B197: HAVELLS | C197: 733.9 | D197: 736.23 | E197: 728.77 | F197: 723.63 | G197: 716.17 | H197: 741.37 | I197: 748.83 | J197: 753.97 | K197: 743.7 | L197: 731.1 | M197: 13.66286
A198: 189 | B198: HEIDELBERG | C198: 210.7 | D198: 208.57 | E198: 205.13 | F198: 199.57 | G198: 196.13 | H198: 214.13 | I198: 217.57 | J198: 223.13 | K198: 212 | L198: 203 | M198: 7.37198
A199: 190 | B199: HERITGFOOD | C199: 454.85 | D199: 454.12 | E199: 448.13 | F199: 441.42 | G199: 435.43 | H199: 460.83 | I199: 466.82 | J199: 473.53 | K199: 460.1 | L199: 447.4 | M199: 0.75494
A200: 191 | B200: HEROMOTOCO | C200: 2821.2 | D200: 2823.85 | E200: 2797.70 | F200: 2774.20 | G200: 2748.05 | H200: 2847.35 | I200: 2873.50 | J200: 2897.00 | K200: 2850 | L200: 2800.35 | M200: 4.22121
A201: 192 | B201: HEXAWARE | C201: 349.95 | D201: 351.42 | E201: 347.43 | F201: 344.92 | G201: 340.93 | H201: 353.93 | I201: 357.92 | J201: 360.43 | K201: 355.4 | L201: 348.9 | M201: 4.56993
A202: 193 | B202: HFCL | C202: 21.55 | D202: 21.40 | E202: 20.75 | F202: 19.95 | G202: 19.30 | H202: 22.20 | I202: 22.85 | J202: 23.65 | K202: 22.05 | L202: 20.6 | M202: 38.49944
A203: 194 | B203: HSCL | C203: 102.3 | D203: 102.30 | E203: 100.60 | F203: 98.90 | G203: 97.20 | H203: 104.00 | I203: 105.70 | J203: 107.40 | K203: 104 | L203: 100.6 | M203: 6.53817
A204: 195 | B204: HIMATSEIDE | C204: 207.1 | D204: 203.77 | E204: 198.53 | F204: 189.97 | G204: 184.73 | H204: 212.33 | I204: 217.57 | J204: 226.13 | K204: 209 | L204: 195.2 | M204: 1.46235
A205: 196 | B205: HINDALCO | C205: 200.6 | D205: 199.25 | E205: 196.65 | F205: 192.70 | G205: 190.10 | H205: 203.20 | I205: 205.80 | J205: 209.75 | K205: 201.85 | L205: 195.3 | M205: 44.98005
A206: 197 | B206: HAL | C206: 705.4 | D206: 699.03 | E206: 689.67 | F206: 673.93 | G206: 664.57 | H206: 714.77 | I206: 724.13 | J206: 739.87 | K206: 708.4 | L206: 683.3 | M206: 0.46132
... 320 more rows

Sheet Bulk Deals
E6: Back To Main Page
A7: Subject : | B7: BULK DEAL | D7: =Main!B10 -> 2019-05-28
A9: Date | B9: Scrip code | C9: Scrip Name | D9: Client Name | E9: Buy / Sell | F9: Quantity Traded | G9: Trade Price / Wt.Avg.trade price | H9: Exchange
A10: 2019-05-27 | B10: 539661 | C10: ACEMEN | D10: KHYATI ASHOKBHAI DODHIYA | E10: SELL | F10: 20,000 | G10: 19.75 | H10: BSE
A11: 2019-05-27 | B11: 539661 | C11: ACEMEN | D11: HARISH HARAKHCHAND GUDHKA | E11: SELL | F11: 20,395 | G11: 20.00 | H11: BSE
A12: 2019-05-27 | B12: 539661 | C12: ACEMEN | D12: ISHWAR COMMERCIAL PVT LTD | E12: BUY | F12: 20,395 | G12: 20 | H12: BSE
A13: 2019-05-27 | B13: 539661 | C13: ACEMEN | D13: STARWINGS FASHION TRADING LIMITED . | E13: BUY | F13: 23,684 | G13: 19.7 | H13: BSE
A14: 2019-05-27 | B14: 537766 | C14: BCP | D14: HARSHIT PROMOTERS PRIVATE LTD | E14: BUY | F14: 325 | G14: 37.05 | H14: BSE
A15: 2019-05-27 | B15: 537766 | C15: BCP | D15: HARSHIT PROMOTERS PRIVATE LTD | E15: SELL | F15: 847,648 | G15: 37.27 | H15: BSE
A16: 2019-05-27 | B16: 537766 | C16: BCP | D16: ACHINTYA SECURITIES PVT. LTD. | E16: BUY | F16: 890,854 | G16: 37.25 | H16: BSE
A17: 2019-05-27 | B17: 537766 | C17: BCP | D17: ACHINTYA SECURITIES PVT. LTD. | E17: SELL | F17: 890,854 | G17: 37.17 | H17: BSE
A18: 2019-05-27 | B18: 537766 | C18: BCP | D18: NIRAJ RAJNIKANT SHAH | E18: BUY | F18: 890,000 | G18: 37.29 | H18: BSE
A19: 2019-05-27 | B19: 537766 | C19: BCP | D19: NIRAJ RAJNIKANT SHAH | E19: SELL | F19: 290,000 | G19: 37.25 | H19: BSE
A20: 2019-05-27 | B20: 542678 | C20: CHCL | D20: INDIACREDIT RISK MANAGEMENT LLP | E20: BUY | F20: 844,000 | G20: 61 | H20: BSE
A21: 2019-05-27 | B21: 542678 | C21: CHCL | D21: AMRAPALI FINCAP PVT LTD | E21: SELL | F21: 200,000 | G21: 60.89 | H21: BSE
A22: 2019-05-27 | B22: 539770 | C22: DARJEELING | D22: MINU MALLICK . | E22: BUY | F22: 16,000 | G22: 90.14 | H22: BSE
A23: 2019-05-27 | B23: 539770 | C23: DARJEELING | D23: HIMANSHU RAMNIKLAL SHAH | E23: SELL | F23: 40,000 | G23: 90.05 | H23: BSE
A24: 2019-05-27 | B24: 542013 | C24: DOLFIN | D24: DISPLAY COMMERCIAL PRIVATE LIMITED | E24: SELL | F24: 54,000 | G24: 36.50 | H24: BSE
A25: 2019-05-27 | B25: 540266 | C25: GLCL | D25: PADAMCHAND BHAVARLAL DHOOT | E25: BUY | F25: 20,000 | G25: 7.05 | H25: BSE
A26: 2019-05-27 | B26: 539225 | C26: JIYAECO | D26: AFFLUENCE VALUE MANAGEMENT PRIVATE LIMITED | E26: BUY | F26: 212,275 | G26: 65.88 | H26: BSE
A27: 2019-05-27 | B27: 539225 | C27: JIYAECO | D27: AFFLUENCE VALUE MANAGEMENT PRIVATE LIMITED | E27: SELL | F27: 144,340 | G27: 65.85 | H27: BSE
A28: 2019-05-27 | B28: 539225 | C28: JIYAECO | D28: RAHUL SHARMA | E28: BUY | F28: 740,248 | G28: 65.77 | H28: BSE
A29: 2019-05-27 | B29: 539225 | C29: JIYAECO | D29: RAHUL SHARMA | E29: SELL | F29: 740,247 | G29: 65.68 | H29: BSE
A30: 2019-05-27 | B30: 538765 | C30: JSHL | D30: KRISHNA MURTHY MALYALA | E30: BUY | F30: 25,000 | G30: 10.52 | H30: BSE
A31: 2019-05-27 | B31: 538765 | C31: JSHL | D31: KRISHNA MURTHY MALYALA | E31: SELL | F31: 90,000 | G31: 10.49 | H31: BSE
A32: 2019-05-27 | B32: 513456 | C32: KANSHST | D32: GOODFAITH VINIMAY PRIVATE LIMITED | E32: SELL | F32: 500,000 | G32: 9 | H32: BSE
A33: 2019-05-27 | B33: 513456 | C33: KANSHST | D33: SHAILAJA GUPTA | E33: BUY | F33: 500,000 | G33: 9 | H33: BSE
A34: 2019-05-27 | B34: 531515 | C34: MAHANIN | D34: RAHUL R MEHTA | E34: BUY | F34: 200,000 | G34: 0.19 | H34: BSE
A35: 2019-05-27 | B35: 531515 | C35: MAHANIN | D35: ZUBER TRADING LLP | E35: SELL | F35: 200,000 | G35: 0.19 | H35: BSE
A36: 2019-05-27 | B36: 539519 | C36: MAYUKH | D36: AVINASH TIWARI | E36: BUY | F36: 16,001 | G36: 13 | H36: BSE
A37: 2019-05-27 | B37: 540243 | C37: NEWLIGHT | D37: AJAY DOGRA | E37: BUY | F37: 20,000 | G37: 29.94 | H37: BSE
A38: 2019-05-27 | B38: 540243 | C38: NEWLIGHT | D38: KHUSHBU ARJUNBHAI PADHIYAR | E38: BUY | F38: 25,000 | G38: 29.63 | H38: BSE
A39: 2019-05-27 | B39: 540243 | C39: NEWLIGHT | D39: KHUSHBU ARJUNBHAI PADHIYAR | E39: SELL | F39: 25,000 | G39: 29.73 | H39: BSE
A40: 2019-05-27 | B40: 540243 | C40: NEWLIGHT | D40: SAINT GLOBAL MARKETS LLP | E40: BUY | F40: 86,844 | G40: 29.92 | H40: BSE
A41: 2019-05-27 | B41: 540243 | C41: NEWLIGHT | D41: MITALI YASH CHITALIA | E41: SELL | F41: 15,127 | G41: 30 | H41: BSE
A42: 2019-05-27 | B42: 540243 | C42: NEWLIGHT | D42: BHAVNA NARENDRA CHITALIA | E42: SELL | F42: 23,245 | G42: 30 | H42: BSE
A43: 2019-05-27 | B43: 540243 | C43: NEWLIGHT | D43: NILESH KISHANBHAI PANDYA | E43: BUY | F43: 25,000 | G43: 29.73 | H43: BSE
A44: 2019-05-27 | B44: 540243 | C44: NEWLIGHT | D44: NILESH KISHANBHAI PANDYA | E44: SELL | F44: 25,000 | G44: 29.25 | H44: BSE
A45: 2019-05-27 | B45: 540243 | C45: NEWLIGHT | D45: MAHESHKUMAR JAYANTILAL CHAUHAN | E45: BUY | F45: 25,000 | G45: 29.71 | H45: BSE
A46: 2019-05-27 | B46: 540243 | C46: NEWLIGHT | D46: MAHESHKUMAR JAYANTILAL CHAUHAN | E46: SELL | F46: 25000 | G46: 29.73 | H46: BSE
A47: 2019-05-27 | B47: 540243 | C47: NEWLIGHT | D47: DIPIKA SHAILESH NAGADA | E47: BUY | F47: 25000 | G47: 29.25 | H47: BSE
A48: 2019-05-27 | B48: 540243 | C48: NEWLIGHT | D48: DIPIKA SHAILESH NAGADA | E48: SELL | F48: 25000 | G48: 29.63 | H48: BSE
A49: 2019-05-27 | B49: 540243 | C49: NEWLIGHT | D49: ANKUSH BHAGUJI PAWALE | E49: SELL | F49: 15000 | G49: 30.76 | H49: BSE
A50: 2019-05-27 | B50: 531257 | C50: PRATIKSH | D50: ATITH BHARAT SHAH | E50: SELL | F50: 275000 | G50: 4.55 | H50: BSE
A51: 2019-05-27 | B51: 531257 | C51: PRATIKSH | D51: JAYESH KANTILAL PATEL | E51: BUY | F51: 275000 | G51: 4.55 | H51: BSE
A52: 2019-05-27 | B52: 536659 | C52: PVVINFRA | D52: MANGSTOR STORAGE SYSTEMS PRIVATE LIMITED | E52: BUY | F52: 65540 | G52: 22.56 | H52: BSE
A53: 2019-05-27 | B53: 536659 | C53: PVVINFRA | D53: GKML SOFTWARE TECHNOLOGIES PRIVATE LIMITED | E53: SELL | F53: 73230 | G53: 22.55 | H53: BSE
A54: 2019-05-27 | B54: 521131 | C54: SBFL | D54: GUJARAT FINANCIAL AND CAPITAL PRIVATE LIMITED | E54: BUY | F54: 75000 | G54: 6.25 | H54: BSE
A55: 2019-05-27 | B55: 521131 | C55: SBFL | D55: KAVITA AKHIL AGARWAL | E55: SELL | F55: 75000 | G55: 6.25 | H55: BSE
A56: 2019-05-27 | B56: 539921 | C56: SEIL | D56: LTS INVESTMENT FUND LTD | E56: SELL | F56: 610000 | G56: 97.66 | H56: BSE
A57: 2019-05-27 | B57: 539921 | C57: SEIL | D57: VEENA INVESTMENTS PRIVATE LIMITED | E57: BUY | F57: 610000 | G57: 97.66 | H57: BSE
A58: 2019-05-27 | B58: 539520 | C58: SHAILJA | D58: YASH MANISH MEHTA | E58: BUY | F58: 20000 | G58: 12.63 | H58: BSE
A59: 2019-05-27 | B59: 531390 | C59: UPSURGE | D59: GAGAN DEEP MULTITRADE PRIVATE LIMITED | E59: BUY | F59: 210000 | G59: 13.3 | H59: BSE
A60: 2019-05-27 | B60: 538598 | C60: VISHAL | D60: LTS INVESTMENT FUND LTD | E60: SELL | F60: 287500 | G60: 296 | H60: BSE
A61: 2019-05-27 | B61: 538598 | C61: VISHAL | D61: VEENA INVESTMENTS PRIVATE LIMITED | E61: BUY | F61: 287470 | G61: 296 | H61: BSE
A62: 2019-05-27 | B62: BEML | C62: BEML Limited | D62: ALPHAGREP SECURITIES PRIVATE LIMITED | E62: BUY | F62: 234522 | G62: 999.89 | H62: NSE
A63: 2019-05-27 | B63: BEML | C63: BEML Limited | D63: CROSSLAND TRADING CO | E63: BUY | F63: 257240 | G63: 999.81 | H63: NSE
A64: 2019-05-27 | B64: BEML | C64: BEML Limited | D64: TOWER RESEARCH CAPITAL MARKETS INDIA PRIVATE LIMITED | E64: BUY | F64: 283611 | G64: 998.63 | H64: NSE
A65: 2019-05-27 | B65: CKFSL | C65: Cox & Kings Fin Serv Ltd | D65: ALPHA LEON ENTERPRISES LLP | E65: BUY | F65: 1535446 | G65: 13.86 | H65: NSE
A66: 2019-05-27 | B66: CKFSL | C66: Cox & Kings Fin Serv Ltd | D66: CHETAN RASIKLAL SHAH | E66: BUY | F66: 428089 | G66: 14.1 | H66: NSE
A67: 2019-05-27 | B67: CKFSL | C67: Cox & Kings Fin Serv Ltd | D67: SWAPNIL MEHTA | E67: BUY | F67: 421305 | G67: 13.9 | H67: NSE
A68: 2019-05-27 | B68: CKFSL | C68: Cox & Kings Fin Serv Ltd | D68: URMILA DOSHI | E68: BUY | F68: 349517 | G68: 14.59 | H68: NSE
A69: 2019-05-27 | B69: CKFSL | C69: Cox & Kings Fin Serv Ltd | D69: VARANIUM INDIA OPPORTUNITY LTD | E69: BUY | F69: 850000 | G69: 13.9 | H69: NSE
A70: 2019-05-27 | B70: GOODLUCK | C70: Goodluck India Limited | D70: GOGIA CAPITAL SERVICES LIMITED | E70: BUY | F70: 216878 | G70: 74.21 | H70: NSE
A71: 2019-05-27 | B71: JETAIRWAYS | C71: Jet Airways (India) Ltd. | D71: TOWER RESEARCH CAPITAL MARKETS INDIA PRIVATE LIMITED | E71: BUY | F71: 1653255 | G71: 150.36 | H71: NSE
A72: 2019-05-27 | B72: JUSTDIAL | C72: Justdial Ltd. | D72: ALPHAGREP SECURITIES PRIVATE LIMITED | E72: BUY | F72: 336471 | G72: 700.33 | H72: NSE
A73: 2019-05-27 | B73: PCJEWELLER | C73: PC Jeweller Ltd | D73: TOWER RESEARCH CAPITAL MARKETS INDIA PRIVATE LIMITED | E73: BUY | F73: 2204478 | G73: 100.43 | H73: NSE
A74: 2019-05-27 | B74: SANCO | C74: Sanco Industries Ltd. | D74: EURO PLUS CAPITAL LIMITED | E74: BUY | F74: 63426 | G74: 19.7 | H74: NSE
A75: 2019-05-27 | B75: BEML | C75: BEML Limited | D75: ALPHAGREP SECURITIES PRIVATE LIMITED | E75: SELL | F75: 234522 | G75: 1000.21 | H75: NSE
A76: 2019-05-27 | B76: BEML | C76: BEML Limited | D76: CROSSLAND TRADING CO | E76: SELL | F76: 257240 | G76: 1000.25 | H76: NSE
A77: 2019-05-27 | B77: BEML | C77: BEML Limited | D77: TOWER RESEARCH CAPITAL MARKETS INDIA PRIVATE LIMITED | E77: SELL | F77: 283571 | G77: 999.56 | H77: NSE
A78: 2019-05-27 | B78: CKFSL | C78: Cox & Kings Fin Serv Ltd | D78: ABU DHABI INVESTMENT INVESTMENT AUTHORITY BEHAVE | E78: SELL | F78: 389333 | G78: 13.8 | H78: NSE
A79: 2019-05-27 | B79: CKFSL | C79: Cox & Kings Fin Serv Ltd | D79: ALPHA LEON ENTERPRISES LLP | E79: SELL | F79: 1544598 | G79: 14.18 | H79: NSE
A80: 2019-05-27 | B80: CKFSL | C80: Cox & Kings Fin Serv Ltd | D80: AMERICAN FUNDS INSUR SERIES GLOBAL SMALL CAPITALIZATION 75 | E80: SELL | F80: 391217 | G80: 14.37 | H80: NSE
A81: 2019-05-27 | B81: CKFSL | C81: Cox & Kings Fin Serv Ltd | D81: CHETAN RASIKLAL SHAH | E81: SELL | F81: 340133 | G81: 13.8 | H81: NSE
A82: 2019-05-27 | B82: CKFSL | C82: Cox & Kings Fin Serv Ltd | D82: SMALLCAP WORLD FUND INC | E82: SELL | F82: 1975373 | G82: 14.37 | H82: NSE
A83: 2019-05-27 | B83: CKFSL | C83: Cox & Kings Fin Serv Ltd | D83: SWAPNIL MEHTA | E83: SELL | F83: 421305 | G83: 13.8 | H83: NSE
A84: 2019-05-27 | B84: CKFSL | C84: Cox & Kings Fin Serv Ltd | D84: URMILA DOSHI | E84: SELL | F84: 785137 | G84: 14.1 | H84: NSE
A85: 2019-05-27 | B85: JETAIRWAYS | C85: Jet Airways (India) Ltd. | D85: TOWER RESEARCH CAPITAL MARKETS INDIA PRIVATE LIMITED | E85: SELL | F85: 1653249 | G85: 150.54 | H85: NSE
A86: 2019-05-27 | B86: JUSTDIAL | C86: Justdial Ltd. | D86: ALPHAGREP SECURITIES PRIVATE LIMITED | E86: SELL | F86: 336310 | G86: 700.36 | H86: NSE
A87: 2019-05-27 | B87: PCJEWELLER | C87: PC Jeweller Ltd | D87: TOWER RESEARCH CAPITAL MARKETS INDIA PRIVATE LIMITED | E87: SELL | F87: 2204436 | G87: 100.44 | H87: NSE

Sheet Call Tracker (Equity & F&O)
M5: Back To Main Page
A6: Retail Research Technical Calls & Fundamental Performance Report for the month of May-2019
M7: =Main!B10 -> 2019-05-28
B8: Positional Call
A9: Sr.no | B9: Date | D9: Company | E9: Rec | F9: Rec Price | G9: Stop Loss*** | H9: Call Closed At | I9: Target | J9: Remark | K9: Profit / Loss per Share | L9: Gain / Loss % | M9: Status | N9: Closed Date | O9: NSE Closed Price
A10: 1 | B10: 2019-04-03 | D10: BOSCHLTD | E10: Buy | F10: 17975 | G10: 16850 | H10: 16800 | I10: 19500-20000 | J10: Loss of Rs.1175/- | K10: =H10-F10 -> -1175 | L10: =K10/F10 -> -6.54% | M10: Unsuccessful | N10: 2019-05-14 | R10: R
A11: 2 | B11: 2019-04-08 | D11: BAJFINANCE | E11: Sell | F11: 3005 | G11: 3166.6 | H11: 3038 | I11: 2750-2700 | J11: Loss of Rs.33/- | K11: =F11-H11 -> -33 | L11: =K11/F11 -> -1.10% | M11: Unsuccessful | N11: 2019-05-17 | R11: R
A12: 3 | B12: 2019-04-23 | D12: DMART | E12: Buy | F12: 1305 | G12: 1212 | H12: 1350 | I12: 1470-1500 | J12: Part Profit of Rs.45/- | K12: =H12-F12 -> 45 | L12: =K12/F12 -> 3.45% | M12: Successful | N12: 2019-05-24 | R12: R
A13: 4 | B13: 2019-04-24 | D13: VEDL | E13: Buy | F13: 173 | G13: 164 | H13: 164 | I13: 190-195 | J13: Loss of Rs.9/- | K13: =H13-F13 -> -9 | L13: =K13/F13 -> -5.20% | M13: Unsuccessful | N13: 2019-05-07 | R13: H
A14: 5 | B14: 2019-04-25 | D14: GRASIM | E14: Sell | F14: 900.5 | G14: 945.6 | H14: 856 | I14: 820-810 | J14: Profit of Rs.44.5 | K14: =F14-H14 -> 44.5 | L14: 5.00% | M14: Successful | N14: 2019-05-07 | R14: R
A15: 6 | B15: 2019-05-02 | D15: BAJAJFINSV | E15: Sell | F15: 7620 | G15: 7880 | H15: 7305 | I15: 7200 | J15: Profit of Rs.315/- | K15: =F15-H15 -> 315 | L15: =K15/F15 -> 4.13% | M15: Successful | N15: 2019-05-14 | R15: H
A16: 7 | B16: 2019-05-02 | D16: IDFCFIRSTB | E16: Buy | F16: 50.45 | G16: 48 | H16: 47.75 | I16: 55-56 | J16: Loss of Rs.2.7/- | K16: =H16-F16 -> -2.7 | L16: -5.35% | M16: Unsuccessful | N16: 2019-05-13 | R16: H
A17: 8 | B17: 2019-05-03 | D17: APOLLOTYRE | E17: Buy | F17: 203 | G17: 189 | H17: 189 | I17: 225-230 | J17: Loss of Rs.14/- | K17: =H17-F17 -> -14 | L17: -6.90% | M17: Unsuccessful | N17: 2019-05-09 | R17: H
A18: 9 | B18: 2019-05-03 | D18: M&M | E18: Buy | F18: 644 | G18: 615 | H18: 615 | I18: 690-700 | J18: Loss of Rs.29/- | K18: =H18-F18 -> -29 | L18: -4.50% | M18: Unsuccessful | N18: 2019-05-15 | R18: H
A19: 10 | B19: 2019-05-06 | D19: MARUTI | E19: Buy | F19: 6675 | G19: 6400 | H19: 7115 | I19: 7200-7300 | J19: Profit of Rs.440/- | K19: =H19-F19 -> 440 | L19: 6.59% | M19: Successful | N19: 2019-05-20 | R19: H
A20: 11 | B20: 2019-05-08 | D20: COLPAL | E20: Buy | F20: 1145 | G20: 1089 | H20: 1180 | I20: 1240-1260 | J20: Profit of Rs.35/- | K20: =H20-F20 -> 35 | L20: 3.06% | M20: Successful | N20: 2019-05-27 | R20: H
A21: 12 | B21: 2019-05-09 | D21: LICHSGFIN | E21: Buy | F21: 473.5 | G21: 446 | H21: 497 | I21: 510-520 | J21: Profit of Rs.23.5/- | K21: =H21-F21 -> 23.5 | L21: =K21/F21 -> 4.96% | M21: Successful | N21: 2019-05-17 | R21: R
A22: 13 | B22: 2019-05-09 | D22: BRITANNIA | E22: Buy | F22: 2680 | G22: 2520 | H22: 2830 | I22: 2950-3000 | J22: Profit of Rs.150/- | K22: 150 | L22: 5.60% | M22: Successful | N22: 2019-05-20 | R22: R
A23: 14 | B23: 2019-05-10 | D23: CONCOR | E23: Buy | F23: 474 | G23: 458 | H23: 502 | I23: 510-520 | J23: Profit of Rs.28/- | K23: 28 | L23: 5.91% | M23: Successful | N23: 2019-05-20 | R23: H
A24: 15 | B24: 2019-05-14 | D24: ORIENTBANK | E24: Buy | F24: 91.9 | G24: 86.3 | H24: 96.5 | I24: 97-100 | J24: Profit of Rs.4.6/- | K24: 4.6 | L24: 5.01% | M24: Successful | N24: 2019-05-20 | R24: R
A25: 16 | B25: 2019-05-14 | D25: ITC | E25: Buy | F25: 289 | G25: 267.7 | H25: 301.5 | I25: 325-335 | J25: Profit of Rs.12.5/- | K25: 12.5 | L25: 4.33% | M25: Successful | N25: 2019-05-17 | R25: R
A26: 17 | B26: 2019-05-14 | D26: BANKBARODA | E26: Buy | F26: 107.5 | G26: 103 | H26: 117.75 | I26: 115-118 | J26: Profit of Rs.10.25/- | K26: 10.25 | L26: 9.53% | M26: Successful | N26: 2019-05-20 | R26: H
A27: 18 | B27: 2019-05-14 | D27: INDUSINDBK | E27: Buy | F27: 1425 | G27: 1348.7 | H27: 1498 | I27: 1540-1560 | J27: Profit of Rs.73/- | K27: 73 | L27: 5.12% | M27: Successful | N27: 2019-05-20 | R27: R
A28: 19 | B28: 2019-05-20 | D28: TCS | E28: Buy | F28: 2120-2140 | G28: 1988 | I28: 2400-2450 | J28: Open | O28: =VLOOKUP(D28,Sheet2!A46:M1841,6,0) -> 2055.15 | R28: H
A29: 20 | B29: 2019-05-21 | D29: RADICO | E29: Buy | F29: 346.5 | G29: 318.8 | H29: 361 | I29: 395-400 | J29: Part Profit of Rs.14.5/- | K29: =H29-F29 -> 14.5 | L29: =K29/F29 -> 4.18% | M29: Successful | N29: 2019-05-24 | R29: R
A30: 21 | B30: 2019-05-24 | D30: SBIN | E30: Sell | F30: 349-352 | G30: 372 | I30: 320-310 | J30: Open | O30: =VLOOKUP(D30,Sheet2!A48:M1843,6,0) -> 361.7 | R30: H
A31: 22 | B31: 2019-05-27 | D31: GRASIM | E31: Sell | F31: 925-930 | G31: 972.6 | I31: 840-820 | J31: Open | O31: =VLOOKUP(D31,Sheet2!A49:M1844,6,0) -> 935.3 | R31: R
A32: 23 | B32: 2019-05-27 | D32: TATAELXSI | E32: Buy | F32: 870-878 | G32: 818.7 | I32: 970-990 | J32: Open | O32: =VLOOKUP(D32,Sheet2!A50:M1845,6,0) -> 874.15 | R32: R
A33: 24 | B33: 2019-05-27 | D33: WHIRLPOOL | E33: Buy | F33: 1385-1400 | G33: 1280 | I33: 1550-1610 | J33: Open | O33: =VLOOKUP(D33,Sheet2!A51:M1846,6,0) -> 1376.2 | R33: H
A37: CLBS = Closing Basis *** | F37: Reinitiated $
A38: Dividend adjusted <> | F38: Revised stoploss #
A39: Part book {}
A40: Master Trade High Risk
A41: Sr.no | B41: Date | D41: Company | E41: Rec | F41: Rec Price | G41: Stop Loss | H41: Call Closed At | I41: Target | J41: Remark | K41: Profit / Loss per share | L41: Gain / Loss per Lot | M41: Lot | N41: Status | O41: Closed Date
A42: 1 | B42: 2019-05-02 | D42: NIFTY MAY FUT | E42: Sell | F42: 11827.5 | G42: 11945 | H42: 11750 | I42: 11650-11630 | J42: Profit of Rs.77.5/- | K42: =F42-H42 -> 77.5 | L42: =M42*K42 -> 5812.5 | M42: 75 | N42: Successful | O42: 2019-05-02 | R42: R
A43: 2 | B43: 2019-05-02 | D43: ICICIBANK MAY FUT | E43: Buy | F43: 398 | G43: 385 | H43: 404.5 | I43: 415 | J43: Profit of Rs.4.5/- | K43: =H43-F43 -> 6.5 | L43: =M43*4.5 -> 6187.5 | M43: 1375 | N43: Successful | O43: 2019-05-03 | R43: H
D44: ICICIBANK 415 CE | E44: Sell | F44: 9.5 | H44: 11.5 | K44: =F44-H44 -> -2 | R44: H
A45: 3 | B45: 2019-05-06 | D45: HDFC MAY FUT | E45: Buy | F45: 1992 | G45: 1945 | H45: 2017.5 | I45: 2050 | J45: Profit of Rs.19/- | K45: =H45-F45 -> 25.5 | L45: =M45*19 -> 9500 | M45: 500 | N45: Successful | O45: 2019-05-07 | R45: H
D46: HDFC MAY 2040 CE | E46: Sell | F46: 47.5 | H46: 54 | K46: =F46-H46 -> -6.5 | R46: H
A47: 4 | B47: 2019-05-06 | D47: HDFC MAY FUT | E47: Buy | F47: 1991.5 | G47: 1945 | H47: 1950 | I47: 2050 | J47: Loss of Rs.23/- | K47: =H47-F47 -> -41.5 | L47: =M47*-23 -> -11500 | M47: 500 | N47: Unsuccessful | O47: 2019-05-08 | R47: H
D48: HDFC MAY 2040 CE | E48: Sell | F48: 47.5 | H48: 29 | K48: =F48-H48 -> 18.5 | R48: H
A49: 5 | B49: 2019-05-08 | D49: CANBK MAY FUT | E49: Buy | F49: 258.5 | G49: 247.5 | H49: 262.5 | I49: 280 | J49: Profit of Rs.4.75/- | K49: =H49-F49 -> 4 | L49: =M49*4.75 -> 9500 | M49: 2000 | N49: Successful | O49: 2019-05-10 | R49: N
D50: CANBK 275 CE | E50: Sell | F50: 9.75 | H50: 9 | K50: =F50-H50 -> 0.75 | R50: N
A51: 6 | B51: 2019-05-09 | D51: M&MFIN MAY FUT | E51: Buy | F51: 382 | G51: 368 | H51: 369.5 | I51: 400-410 | J51: Loss of Rs.7.5/- | K51: =H51-F51 -> -12.5 | L51: =M51*-7.5 -> -9375 | M51: 1250 | N51: Unsuccessful | O51: 2019-05-13 | R51: H
D52: M&MFIN 400 CE | E52: Sell | F52: 9.5 | H52: 4.5 | K52: =F52-H52 -> 5 | R52: H
A53: 7 | B53: 2019-05-10 | D53: TITAN MAY FUT | E53: Sell | F53: 1119 | G53: 1142.2 | H53: 1140 | I53: 1080 | J53: Loss of Rs.21/- | K53: =H53-F53 -> 21 | L53: =K53*M53 -> 15750 | M53: 750 | N53: Unsuccessful | O53: 2019-05-13 | R53: R
A54: 8 | B54: 2019-05-13 | D54: MARICO MAY FUT | E54: Buy | F54: 354.5 | G54: 347 | H54: 358.75 | I54: 370 | J54: Profit of Rs.3.25/- | K54: =H54-F54 -> 4.25 | L54: =3.25*M54 -> 8450 | M54: 2600 | N54: Successful | O54: 2019-05-15 | R54: N
D55: MARICO 370 CE | E55: Sell | F55: 5 | H55: 6 | K55: =F55-H55 -> -1 | R55: N
A56: 9 | B56: 2019-05-14 | D56: NIFTY MAY FUT | E56: Buy | F56: 11165 | G56: 10980 | H56: 11270 | I56: 11400 | J56: Profit of Rs.72.5/- | K56: =H56-F56 -> 105 | L56: =M56*72.5 -> 5437.5 | M56: 75 | N56: Successful | O56: 2019-05-14 | R56: H
D57: NIFTY 23 MAY 11400 CE | E57: Sell | F57: 160 | H57: 192.5 | K57: =F57-H57 -> -32.5 | R57: H
A58: 10 | B58: 2019-05-14 | D58: RAYMOND MAY FUT | E58: Buy | F58: 786 | G58: 763 | H58: 800 | I58: 820 | J58: Profit of Rs.9.5/- | K58: =H58-F58 -> 14 | L58: =9.5*M58 -> 7600 | M58: 800 | N58: Successful | O58: 2019-05-15 | R58: N
D59: RAYMOND 820 CE | E59: Sell | F59: 14.5 | H59: 19 | K59: =F59-H59 -> -4.5 | R59: N
A60: 11 | B60: 2019-05-16 | D60: NIFTY MAY FUT | E60: Buy | F60: 11175 | G60: 10980 | H60: 11285 | I60: 11500 | J60: Profit of Rs.86.5/- | K60: =H60-F60 -> 110 | L60: =M60*86.5 -> 6487.5 | M60: 75 | N60: Successful | O60: 2019-05-16 | R60: H
D61: NIFTY 23 MAY 11400 CE | E61: Sell | F61: 154 | H61: 177.5 | K61: =F61-H61 -> -23.5 | R61: H
A62: 12 | B62: 2019-05-24 | D62: BAJFINANCE MAY FUT | E62: Sell | F62: 3435-3445 | G62: 3530 | I62: 3300 | J62: Open | R62: H
D63: BAJFINANCE MAY 3350 PE | E63: Sell | F63: 20-25 | R63: H
A68: Master Trade Medium Risk
A69: Sr.no | B69: Date | D69: Company | E69: Rec | F69: Rec Price | G69: Stop Loss | H69: Call Closed At | I69: Target | J69: Remark | K69: Profit/ Loss per lot | L69: Gain / Loss per Lot | M69: Lot | N69: Status | O69: Closed Date
A70: 1 | B70: 2019-04-30 | D70: NIFTY 09-MAY 11600 PE | E70: Buy | F70: 46 | H70: 51 | I70: 100 | J70: Profit of Rs.5/- | K70: =H70-F70 -> 5 | L70: =K70*M70 -> 375 | M70: 75 | N70: Neutral | O70: 2019-05-06 | R70: H
A71: 2 | B71: 2019-05-07 | D71: NIFTY 09-MAY 11600 CE | E71: Buy | F71: 38 | H71: 0 | I71: 90 | J71: Loss of Rs.38/- | K71: =H71-F71 -> -38 | L71: =K71*M71 -> -2850 | M71: 75 | N71: Unsuccessful | O71: 2019-05-09 | R71: H
A72: 3 | B72: 2019-05-09 | D72: LUPIN 840 PE MAY | E72: Buy | F72: 23 | H72: 38 | J72: Profit of Rs.5/- | K72: =H72-F72 -> 15 | L72: =M72*5 -> 3500 | M72: 700 | N72: Successful | O72: 2019-05-13 | R72: H
D73: LUPIN 820 PE MAY | E73: Sell | F73: 17.5 | H73: 27.5 | K73: =F73-H73 -> -10 | R73: H
A74: 4 | B74: 2019-05-09 | D74: NIFTY 09-MAY 11300 CE | E74: Buy | F74: 26 | H74: 39 | I74: 60 | J74: Profit of Rs.13/- | K74: =H74-F74 -> 13 | L74: =K74*M74 -> 975 | M74: 75 | N74: Successful | O74: 2019-05-09 | R74: R
A75: 5 | B75: 2019-05-10 | D75: VOLTAS 540 PE MAY | E75: Buy | F75: 11 | H75: 12.5 | J75: Profit of Rs.2.5/- | K75: =H75-F75 -> 1.5 | L75: =2.5*M75 -> 2500 | M75: 1000 | N75: Successful | O75: 2019-05-15 | R75: H
D76: VOLTAS 520 PE MAY | E76: Sell | F76: 7.5 | H76: 6.5 | K76: =F76-H76 -> 1 | R76: H
A77: 6 | B77: 2019-05-13 | D77: VEDL 150 PE MAY | E77: Buy | F77: 4.5-5 | J77: Open | R77: N
D78: VEDL 145 PE MAY | E78: Sell | F78: 3.30-3.80 | R78: N
A79: 7 | B79: 2019-05-14 | D79: M&MFIN 380 CE MAY | E79: Buy | F79: 12 | H79: 33 | J79: Profit of Rs.5.5/- | K79: =H79-F79 -> 21 | L79: =5.5*M79 -> 6875 | M79: 1250 | N79: Successful | O79: 2019-05-20 | R79: H
D80: M&MFIN 390 CE MAY | E80: Sell | F80: 9 | H80: 24.5 | K80: =F80-H80 -> -15.5 | R80: H
A81: 8 | B81: 2019-05-15 | D81: HINDUNILVR 1720 CE MAY | E81: Buy | F81: 25 | G81: 14 | H81: 31 | I81: 45 | J81: Profit of Rs.6/- | K81: =H81-F81 -> 6 | L81: =K81*M81 -> 1800 | M81: 300 | N81: Successful | O81: 2019-05-17 | R81: H
A82: 9 | B82: 2019-05-15 | D82: NIFTY 16-MAY 11200 CE | E82: Buy | F82: 26 | H82: 37 | I82: 70 | J82: Profit of Rs.11/- | K82: =H82-F82 -> 11 | L82: =K82*M82 -> 825 | M82: 75 | N82: Successful | O82: 2019-05-16 | R82: N
A83: 10 | B83: 2019-05-17 | D83: NIFTY 30-MAY 11400 CE | E83: Buy | F83: 250 | H83: 425 | J83: Profit of Rs.97.5/- | K83: =H83-F83 -> 175 | L83: =97.5*M83 -> 7312.5 | M83: 75 | N83: Successful | O83: 2019-05-20 | R83: N
D84: NIFTY 30-MAY 11800 CE | E84: Sell | F84: 97.5 | H84: 175 | K84: =F84-H84 -> -77.5 | R84: N
A85: 11 | B85: 2019-05-21 | D85: UPL 1020 PE MAY | E85: Buy | F85: 26.5 | G85: 19 | H85: 32 | I85: 45 | J85: Profit of Rs.5.5/- | K85: =H85-F85 -> 5.5 | L85: =K85*M85 -> 3300 | M85: 600 | N85: Successful | O85: 2019-05-21 | R85: R
A86: 12 | B86: 2019-05-21 | D86: Nifty 11700 PE 23 MAY | E86: Buy | F86: 134 | G86: 95 | H86: 154 | I86: 180-200 | J86: Profit of Rs.20/- | K86: =H86-F86 -> 20 | L86: =K86*M86 -> 1500 | M86: 75 | N86: Successful | O86: 2019-05-21 | R86: H
A87: 13 | B87: 2019-05-21 | D87: TITAN 1240 PE MAY | E87: Buy | F87: 25 | G87: 18 | H87: 30.5 | I87: 35-38 | J87: Profit of Rs.5.50/- | K87: =H87-F87 -> 5.5 | L87: =K87*M87 -> 4125 | M87: 750 | N87: Successful | O87: 2019-05-22 | R87: R
A88: 14 | B88: 2019-05-22 | D88: HEROMOTOCO MAY 2650 PE | E88: Buy | F88: 51.5 | G88: 19 | H88: 19 | I88: 100-110 | J88: Loss of Rs.32.5/- | K88: =H88-F88 -> -32.5 | L88: =K88*M88 -> -6500 | M88: 200 | N88: Unsuccessful | O88: 2019-05-23 | R88: R
A89: 15 | B89: 2019-05-22 | D89: ICICIBANK 390 PE MAY | E89: Buy | F89: 6.6 | G89: 2.5 | H89: 2.5 | I89: 14-18 | J89: Loss of Rs.4.1/- | K89: =H89-F89 -> -4.1 | L89: =K89*M89 -> -5637.5 | M89: 1375 | N89: Unsuccessful | O89: 2019-05-23 | R89: H
A90: 16 | B90: 2019-05-22 | D90: NIFTY 30-MAY 12000 CE | E90: Buy | F90: 160-170 | J90: Open | R90: N
D91: NIFTY 30-MAY 11400 PE | E91: Buy | F91: 145-155 | R91: N
A92: 17 | B92: 2019-05-23 | D92: RELIANCE MAY 1340 PE | E92: Buy | F92: 19 | G92: 6 | H92: 26.5 | I92: 35 -40 | J92: Profit of Rs.7.5/- | K92: =H92-F92 -> 7.5 | L92: =K92*M92 -> 3750 | M92: 500 | N92: Successful | O92: 2019-05-23 | R92: R
A93: 18 | B93: 2019-05-24 | D93: RELIANCE MAY 1340 PE | E93: Buy | F93: 20 | G93: 6 | H93: 28 | I93: 35-40 | J93: Profit of Rs.8/- | K93: =H93-F93 -> 8 | L93: =K93*M93 -> 4000 | M93: 500 | N93: Successful | O93: 2019-05-24 | R93: R
A94: 19 | B94: 2019-05-24 | D94: HEROMOTOCO 2700 PE MAY | E94: Buy | F94: 16-18 | J94: Open | R94: R
D95: HEROMOTOCO 2650 PE MAY | E95: Sell | F95: 8.50-9.50 | R95: R
A96: 20 | B96: 2019-05-24 | D96: UNIONBANK 70 PE MAY | E96: Buy | F96: 1.15 | G96: 0.4 | H96: 0.7 | I96: 2.5 | J96: Loss of Rs.0.45/- | K96: =H96-F96 -> -0.45 | L96: =K96*M96 -> -3150 | M96: 7000 | N96: Unsuccessful | O96: 2019-05-24 | R96: H
A97: 21 | B97: 2019-05-24 | D97: BANKNIFTY 30500 PE 30 MAY | E97: Buy | F97: 160 | G97: 50 | H97: 50 | I97: 300-350 | J97: Loss of Rs.110/- | K97: =H97-F97 -> -110 | L97: =K97*M97 -> -2200 | M97: 20 | N97: Unsuccessful | O97: 2019-05-27 | R97: R
A98: 22 | B98: 2019-05-24 | D98: RELIANCE MAY 1340 PE | E98: Buy | F98: 19 | G98: 6 | H98: 26.5 | I98: 35-40 | J98: Profit of Rs.7.5/- | K98: =H98-F98 -> 7.5 | L98: =K98*M98 -> 3750 | M98: 500 | N98: Successful | O98: 2019-05-27 | R98: R
A99: 23 | B99: 2019-05-24 | D99: M&MFIN MAY 410 CE | E99: Buy | F99: 7 | G99: 2 | H99: 9.5 | I99: 15 -18 | J99: Profit of Rs.2.5/- | K99: =H99-F99 -> 2.5 | L99: =K99*M99 -> 3125 | M99: 1250 | N99: Successful | O99: 2019-05-27 | R99: H
B102: Smart Delivery Trade
A103: Sr.no | B103: Date | D103: Company | E103: Rec | F103: Rec Price | G103: Stop Loss*** | H103: Call Closed At | I103: Target | J103: Remark | K103: Profit / Loss per Share | L103: Gain / Loss % | M103: Status | N103: Closed Date | O103: NSE Closed Price
A104: 1 | B104: 2019-04-09 | D104: BRITANNIA | E104: Buy | F104: 2950 | G104: 2870 | H104: 2850 | I104: 3100 | J104: Loss of Rs.100/- | K104: =H104-F104 -> -100 | L104: =K104/F104 -> -3.39% | M104: Unsuccessful | N104: 2019-05-02 | R104: H
A105: 2 | B105: 2019-04-24 | D105: COLPAL | E105: Buy | F105: 1210 | G105: 1173 | H105: 1170.5 | I105: 1275-1285 | J105: Loss of Rs.39.5/- | K105: -39.5 | L105: -3.26% | M105: Unsuccessful | N105: 2019-05-03 | R105: R
A106: 3 | B106: 2019-04-24 | D106: DABUR | E106: Buy | F106: 401 | G106: 387.7 | H106: 386 | I106: 418-422 | J106: Loss of Rs.15/- | K106: -15 | L106: -3.74% | M106: Unsuccessful | N106: 2019-05-02 | R106: R
A107: 4 | B107: 2019-04-26 | D107: MUTHOOTFIN | E107: Buy | F107: 588.5 | G107: 571 | H107: 604 | I107: 615-625 | J107: Profit of Rs.15.5/- | K107: 15.5 | L107: 2.63% | M107: Successful | N107: 2019-05-02 | R107: R
A108: 5 | B108: 2019-04-26 | D108: MGL | E108: Buy | F108: 969 | G108: 937.7 | H108: 922.5 | I108: 1020-1030 | J108: Loss of Rs.46.5/- | K108: -46.5 | L108: -4.80% | M108: Unsuccessful | N108: 2019-05-10 | R108: R
A109: 6 | B109: 2019-04-26 | D109: PIDILITIND | E109: Buy | F109: 1211 | G109: 1172.2 | H109: 1244 | I109: 1275-1285 | J109: Profit of Rs.33/- | K109: 33 | L109: 2.73% | M109: Successful | N109: 2019-05-02 | R109: R
A110: 7 | B110: 2019-05-02 | D110: RAYMOND | E110: Buy | F110: 741 | G110: 714.4 | H110: 758 | I110: 785-795 | J110: Profit of Rs.17/- | K110: 17 | L110: 2.29% | M110: Successful | N110: 2019-05-03 | R110: R
A111: 8 | B111: 2019-05-03 | D111: PIDILITIND | E111: Buy | F111: 1209.5 | G111: 1172.2 | H111: 1167.5 | I111: 1275-1285 | J111: Loss of Rs.42/- | K111: -42 | L111: -3.47% | M111: Unsuccessful | N111: 2019-05-08 | R111: R
A112: 9 | B112: 2019-05-03 | D112: BIOCON | E112: Buy | F112: 560 | G112: 542.2 | H112: 537.5 | I112: 595-605 | J112: Loss of Rs.22.5/- | K112: -22.5 | L112: -4.02% | M112: Unsuccessful | N112: 2019-05-09 | R112: R
A113: 10 | B113: 2019-05-06 | D113: INFY | E113: Buy | F113: 716-720 | G113: 694.4 | I113: 760-780 | J113: Open | O113: =VLOOKUP(D113,Sheet2!A113:M1608,6,0) -> 708.1 | R113: R
A114: 11 | B114: 2019-05-06 | D114: ASIANPAINT | E114: Buy | F114: 1420 | G114: 1378 | H114: 1372.5 | I114: 1480-1500 | J114: Loss of Rs.47.5/- | K114: =H114-F114 -> -47.5 | L114: =K114/F114 -> -3.35% | M114: Unsuccessful | N114: 2019-05-09 | R114: H
A115: 12 | B115: 2019-05-07 | D115: ICICIBANK | E115: Sell | F115: 401 | G115: 413 | H115: 391 | I115: 380-375 | J115: Profit of Rs.10/- | K115: =F115-H115 -> 10 | L115: =K115/F115 -> 2.49% | M115: Successful | N115: 2019-05-07 | R115: H
A116: 13 | B116: 2019-05-13 | D116: MCDOWELL-N | E116: Buy | F116: 540 | G116: 518.7 | H116: 518.7 | I116: 575-585 | J116: Loss of Rs.21.3/- | K116: =H116-F116 -> -21.3 | L116: =K116/F116 -> -3.94% | M116: Unsuccessful | N116: 2019-05-16 | R116: R
A117: 14 | B117: 2019-05-15 | D117: TITAN | E117: Sell | F117: 1160 | G117: 1202 | H117: 1207.5 | I117: 1090-1070 | J117: Loss of Rs.47.5/- | K117: =F117-H117 -> -47.5 | L117: =K117/F117 -> -4.09% | M117: Unsuccessful | N117: 2019-05-20 | R117: H
A118: 15 | B118: 2019-05-15 | D118: PEL | E118: Buy | F118: 2145 | G118: 2066.6 | H118: 2055 | I118: 2280-2300 | J118: Loss of Rs.90/- | K118: =H118-F118 -> -90 | L118: =K118/F118 -> -4.20% | M118: Unsuccessful | N118: 2019-05-16 | R118: R
A119: 16 | B119: 2019-05-15 | D119: CHOLAFIN | E119: Buy | F119: 1282 | G119: 1238.7 | H119: 1320 | I119: 1360-1370 | J119: Profit of Rs.38/- | K119: =H119-F119 -> 38 | L119: =K119/F119 -> 2.96% | M119: Successful | N119: 2019-05-17 | R119: R
A120: 17 | B120: 2019-05-16 | D120: TATACHEM | E120: Buy | F120: 567.5 | G120: 548 | H120: 583 | I120: 600 | J120: Profit of Rs.15.5/- | K120: =H120-F120 -> 15.5 | L120: =K120/F120 -> 2.73% | M120: Successful | N120: 2019-05-16 | R120: H
A121: 18 | B121: 2019-05-16 | D121: BEL | E121: Buy | F121: 87 | G121: 84.5 | H121: 88.75 | I121: 92-94 | J121: Profit of Rs.1.75/- | K121: =H121-F121 -> 1.75 | L121: =K121/F121 -> 2.01% | M121: Successful | N121: 2019-05-16 | R121: H
A122: 19 | B122: 2019-05-17 | D122: ICICIBANK | E122: Buy | F122: 386 | G122: 377 | H122: 405 | I122: 400-410 | J122: Profit of Rs.19/- | K122: 19 | L122: 4.92% | M122: Successful | N122: 2019-05-20 | R122: H
A127: CLBS = Closing Basis *** | F127: Reinitiated $
A128: Dividend adjusted <> | F128: Revised stoploss #
B131: Momentum Call
A132: Sr.no | B132: Date | D132: Company | E132: Rec | F132: Rec Price | G132: Stop Loss | H132: Call Closed At | I132: Target | J132: Remark | K132: Profit / Loss per Share/Lot | L132: Gain / Loss % | M132: Gain / Loss per Lot | N132: Lot | O132: Status | P132: Closed Date
A133: 1 | B133: 2019-04-23 | D133: JUBLFOOD | E133: Buy | F133: 1342.5 | G133: 1314 | H133: 1364 | I133: 1400 | J133: Profit of Rs.21.5/- | K133: =H133-F133 -> 21.5 | L133: =K133/F133 -> 1.60% | O133: Successful | P133: 2019-05-02 | R133: H
A134: 2 | B134: 2019-04-30 | D134: WIPRO MAY FUT | E134: Buy | F134: 297.75 | G134: 294 | H134: 294 | I134: 305 | J134: Loss of Rs.3.75/- | K134: -3.75 | M134: =N134*K134 -> -12000 | N134: 3200 | O134: UnSuccessful | P134: 2019-05-02 | R134: N
A135: 3 | B135: 2019-05-03 | D135: CEATLTD MAY FUT | E135: Buy | F135: 1047.5 | G135: 1017.5 | H135: 1027.5 | I135: 1095 | J135: Loss of Rs.20/- | K135: -20 | M135: -8000 | N135: 400 | O135: UnSuccessful | P135: 2019-05-07 | R135: N
A136: 4 | B136: 2019-05-03 | D136: UBL MAY FUT | E136: Buy | F136: 1413.5 | G136: 1399 | H136: 1399 | I136: 1440 | J136: Loss of Rs.-14.5/- | K136: -14.5 | M136: -10150 | N136: 700 | O136: UnSuccessful | P136: 2019-05-03 | R136: R
A137: 5 | B137: 2019-05-06 | D137: EXIDEIND MAY FUT | E137: Buy | F137: 215.5 | G137: 210 | H137: 210 | I137: 225 | J137: Loss of Rs.-5.5/- | K137: -5.5 | M137: -11000 | N137: 2000 | O137: UnSuccessful | P137: 2019-05-08 | R137: N
A138: 6 | B138: 2019-05-06 | D138: CONCOR MAY FUT | E138: Buy | F138: 505 | G138: 495 | H138: 497 | I138: 523 | J138: Loss of Rs.8/- | K138: -8 | M138: -12504 | N138: 1563 | O138: UnSuccessful | P138: 2019-05-06 | R138: N
A139: 7 | B139: 2019-05-06 | D139: TITAN | E139: Buy | F139: 1125 | G139: 1098 | H139: 1095 | I139: 1170 | J139: Loss of Rs.30/- | K139: -30 | L139: =K139/F139 -> -2.67% | O139: UnSuccessful | P139: 2019-05-06 | R139: H
A140: 8 | B140: 2019-05-08 | D140: RELIANCE MAY FUT | E140: Buy | F140: 1332.5 | G140: 1307.7 | H140: 1307.7 | I140: 1370-1380 | J140: Loss of Rs.24.8/- | K140: -24.8 | M140: -12400 | N140: 500 | O140: UnSuccessful | P140: 2019-05-08 | R140: R
A141: 9 | B141: 2019-05-08 | D141: NIFTY MAY FUT | E141: Buy | F141: 11495 | G141: 11446 | H141: 11446 | I141: 11600 | J141: Loss of Rs.49/- | K141: -49 | M141: =N141*K141 -> -3675 | N141: 75 | O141: UnSuccessful | P141: 2019-05-08 | R141: R
A142: 10 | B142: 2019-05-08 | D142: SBIN | E142: Buy | F142: 302 | G142: 294 | H142: 309.5 | I142: 315 | J142: Profit of Rs.7.5/- | K142: 7.5 | L142: =K142/F142 -> 2.48% | O142: Successful | P142: 2019-05-10 | R142: H
A143: 11 | B143: 2019-05-10 | D143: KAJARIACER MAY FUT | E143: Buy | F143: 552.5 | G143: 544 | H143: 548 | I143: 570 | J143: Loss of Rs.4.5/- | K143: =H143-F143 -> -4.5 | M143: =N143*K143 -> -5850 | N143: 1300 | O143: UnSuccessful | P143: 2019-05-10 | R143: N
A144: 12 | B144: 2019-05-10 | D144: CENTURYTEX MAY | E144: Sell | F144: 933.5 | G144: 954.6 | H144: 923 | I144: 890 | J144: Profit of Rs.10.5/- | K144: =F144-H144 -> 10.5 | M144: =N144*K144 -> 6300 | N144: 600 | O144: Successful | P144: 2019-05-10 | R144: R
A145: 13 | B145: 2019-05-13 | D145: NIFTY MAY FUT | E145: Buy | F145: 11280 | G145: 11222.2 | H145: 11222.2 | I145: 11400 | J145: Loss of Rs.57.8/- | K145: =H145-F145 -> -57.8 | M145: =N145*K145 -> -4335 | N145: 75 | O145: UnSuccessful | P145: 2019-05-13 | R145: R
A146: 14 | B146: 2019-05-14 | D146: SUNTV | E146: Buy | F146: 531 | G146: 516 | H146: 543 | I146: 550-560 | J146: Profit of Rs.12/- | K146: 12 | L146: =K146/F146 -> 2.26% | O146: Successful | P146: 2019-05-14 | R146: R
A147: 15 | B147: 2019-05-14 | D147: BHARTIARTL MAY FUT | E147: Sell | F147: 337 | G147: 343.7 | H147: 332.5 | I147: 320 | J147: Profit of Rs.4.5/- | K147: =F147-H147 -> 4.5 | M147: =N147*K147 -> 8329.5 | N147: 1851 | O147: Successful | P147: 2019-05-15 | R147: R
A148: 16 | B148: 2019-05-15 | D148: SRF | E148: Sell | F148: 2740 | G148: 2780 | H148: 2800 | I148: 2650 | J148: Loss of Rs.60/- | K148: =F148-H148 -> -60 | L148: =K148/F148 -> -2.19% | O148: UnSuccessful | P148: 2019-05-15 | R148: H
A149: 17 | B149: 2019-05-15 | D149: UBL MAY FUT | E149: Buy | F149: 1358 | G149: 1342 | H149: 1342 | I149: 1385 | J149: Loss of Rs. 16/- | K149: =H149-F149 -> -16 | M149: =N149*K149 -> -11200 | N149: 700 | O149: UnSuccessful | P149: 2019-05-16 | R149: N
A150: 18 | B150: 2019-05-20 | D150: COLPAL MAY FUT | E150: Buy | F150: 1143.5 | G150: 1128 | H150: 1155 | I150: 1175 | J150: Profit of Rs.11.5/- | K150: 11.5 | M150: 8050 | N150: 700 | O150: Successful | P150: 2019-05-20 | R150: N
A151: 19 | B151: 2019-05-20 | D151: UPL | E151: Sell | F151: 980 | G151: 1010 | H151: 1007.5 | I151: 940-930 | J151: Loss of Rs. 27.5/- | K151: =F151-H151 -> -27.5 | L151: =K151/F151 -> -2.81% | O151: UnSuccessful | P151: 2019-05-20 | R151: H
A152: 20 | B152: 2019-05-20 | D152: BHARTIARTL MAY FUT | E152: Sell | F152: 342 | G152: 348.7 | H152: 337.5 | I152: 327 | J152: Profit of Rs.4.5/- | K152: =F152-H152 -> 4.5 | M152: =N152*K152 -> 8329.5 | N152: 1851 | O152: Successful | P152: 2019-05-21 | R152: R
A153: 21 | B153: 2019-05-21 | D153: BIOCON MAY FUT | E153: Buy | F153: 528 | G153: 515 | H153: 526 | I153: 550 | J153: Loss of Rs. 2/- | K153: =H153-F153 -> -2 | M153: =N153*K153 -> -1800 | N153: 900 | O153: Neutral | P153: 2019-05-23 | R153: N
A154: 22 | B154: 2019-05-23 | D154: BHARTIARTL MAY FUT | E154: Sell | F154: 341 | G154: 347.7 | H154: 346.5 | I154: 325 | J154: Loss of Rs. 5.5/- | K154: =F154-H154 -> -5.5 | M154: =N154*K154 -> -10180.5 | N154: 1851 | O154: UnSuccessful | P154: 2019-05-23 | R154: R
A155: 23 | B155: 2019-05-24 | D155: JUBLFOOD | E155: Buy | F155: 1275 | G155: 1236 | H155: 1314.5 | I155: 1330-1350 | J155: Profit of Rs.39.5/- | K155: =H155-F155 -> 39.5 | L155: =K155/F155 -> 3.10% | O155: Successful | P155: 2019-05-24 | R155: R
A156: 24 | B156: 2019-05-24 | D156: RAYMOND MAY FUT | E156: Sell | F156: 816 | G156: 832.3 | H156: 832.3 | I156: 785 | J156: Loss of Rs. 16.3/- | K156: =F156-H156 -> -16.3 | M156: =N156*K156 -> -13040 | N156: 800 | O156: UnSuccessful | P156: 2019-05-24 | R156: R
A157: 25 | B157: 2019-05-24 | D157: GODREJIND MAY FUT | E157: Sell | F157: 486 | G157: 494 | H157: 494 | I157: 470 | J157: Loss of Rs. 8/- | K157: =F157-H157 -> -8 | M157: =N157*K157 -> -12000 | N157: 1500 | O157: UnSuccessful | P157: 2019-05-24 | R157: N
A158: 26 | B158: 2019-05-24 | D158: CANBK | E158: Buy | F158: 273.5 | G158: 264 | H158: 282.5 | I158: 285-290 | J158: Profit of Rs.9/- | K158: =H158-F158 -> 9 | L158: =K158/F158 -> 3.29% | O158: Successful | P158: 2019-05-27 | R158: H
A159: 27 | B159: 2019-05-24 | D159: AMARAJABAT MAY FUT | E159: Buy | F159: 639-642 | G159: 623 | I159: 670 | J159: Open | R159: N
A160: 28 | B160: 2019-05-27 | D160: ABFRL | E160: Buy | F160: 205 | G160: 199.3 | H160: 209.5 | I160: 212-216 | J160: Profit of Rs.4.5/- | K160: =H160-F160 -> 4.5 | L160: =K160/F160 -> 2.20% | O160: Successful | P160: 2019-05-27 | R160: R
A164: CLBS = Closing Basis ***
A165: Dividend adjusted <> | F165: Reinitiated $
F166: Revised stoploss #
B167: Quick Pick Intraday
A168: Sr.no | B168: Date | D168: Company | E168: Rec | F168: Rec Price | G168: Stop Loss*** | H168: Call Closed At | I168: Target | J168: Remark | K168: Profit / Loss per Share | L168: Status | M168: Closed Date
A182: Techno -Funda (positional)
A183: Sr.no | B183: Date | D183: Company | E183: Rec | F183: Rec Price | G183: Stop Loss*** | H183: Call Closed At | I183: Target | J183: Remark | K183: Profit / Loss per Share | L183: Gain / Loss % | M183: Status | N183: Closed Date | O183: NSE Closed Price
A184: 1 | B184: 2019-04-04 | D184: FINPIPE | E184: Buy | F184: 473-476 | G184: 435 | I184: 560 | J184: Open | O184: =VLOOKUP(D184,Sheet2!A142:M1637,6,0) -> 493.65 | R184: H
A185: 2 | B185: 2019-05-24 | D185: APOLLOTYRE | E185: Buy | F185: 185-190 | G185: 168.3 | I185: 220-230 | J185: Open | O185: =VLOOKUP(D185,Sheet2!A1:M1648,6,0) -> 199.1 | R185: R
A188: CLBS = Closing Basis *** | F188: Reinitiated $
A189: Dividend adjusted <> | F189: Revised stoploss #
B194: Investment Idea
A195: Sr.no | B195: Date | D195: Company | E195: Rec | F195: Rec Price | G195: Point of Review | H195: Close Rate | I195: Target | J195: Remark | K195: Profit / Loss per Share | L195: Gain / Loss % | M195: Status | N195: Closed Date
A196: 1 | B196: 2013-11-01 | D196: L&T Finance Holding | E196: Accu | F196: 82.00 | G196: - | H196: 100 | I196: 100.00 | J196: Target Achieved | K196: =H196-F196 -> 18.00 | L196: =K196/F196 -> 21.95% | M196: Successful | N196: 2016-10-14
A197: 2 | B197: 2014-06-04 | D197: Finolex Inds | E197: Buy | F197: 257.00 | G197: - | H197: 300 | I197: 300.00 | J197: Target Achieved | K197: =H197-F197 -> 43.00 | L197: 16.73% | M197: Successful | N197: 2014-07-02
A198: =1+A197 -> 3 | B198: 2014-07-08 | D198: JK Cement | E198: Buy | F198: 393.00 | G198: - | H198: 468 | I198: 468.00 | J198: Target Achieved | K198: =H198-F198 -> 75.00 | L198: 19.08% | M198: Successful | N198: 2014-08-12
A199: 4 | B199: 2014-08-06 | D199: Finolex Cables | E199: Buy | F199: 205.00 | G199: - | H199: 275 | I199: 250.00 | J199: Target Achieved | K199: 70.00 | L199: 34.15% | M199: Successful | N199: 2014-11-19
A200: 5 | B200: 2014-09-04 | D200: Exide Inds | E200: Buy | F200: 162.00 | G200: - | H200: 190 | I200: 190.00 | J200: Target Achieved | K200: 28.00 | L200: 17.28% | M200: Successful | N200: 2015-01-02
A201: 6 | B201: 2014-09-04 | D201: Deepak Nitrite | E201: Buy | F201: 75.00 | G201: - | H201: 91.5 | I201: 95-100 | J201: Profit of Rs.16.50/- | K201: 16.50 | L201: 22.00% | M201: Successful | N201: 2014-11-11
A202: 7 | B202: 2014-10-01 | D202: Mercks | E202: Buy | F202: 850.00 | G202: - | H202: 982.5 | I202: 1050.00 | J202: Profit of Rs.132.50/- | K202: 132.50 | L202: 15.59% | M202: Successful | N202: 2015-02-04
A203: 8 | B203: 2014-10-01 | D203: Grindwell Norton | E203: Buy | F203: 475.00 | G203: - | H203: 515 | I203: 600.00 | J203: Profit of Rs.40/- | K203: 40.00 | L203: 8.42% | M203: Successful | N203: 2014-10-27
A204: 9 | B204: 2014-10-01 | D204: Snowman Logistics | E204: Buy | F204: 86.00 | G204: - | H204: 99 | I204: 140.00 | J204: Profit of Rs.13.00/- | K204: 13.00 | L204: 15.12% | M204: Successful | N204: 2014-10-27
A205: 10 | B205: 2014-10-14 | D205: Birla Corp | E205: Buy | F205: 496.60 | G205: - | H205: 621 | I205: 580.00 | J205: Target Achieved | K205: 124.40 | L205: 25.05% | M205: Successful | N205: 2016-08-23
A206: 11 | B206: 2014-10-14 | D206: Ultratech Cem | E206: Buy | F206: 2481.90 | G206: - | H206: 2840 | I206: 2870.00 | J206: Profit of Rs.358.10/- | K206: 358.10 | L206: 14.43% | M206: Successful | N206: 2015-01-13
A207: =1+A204 -> 10 | B207: 2014-10-16 | D207: Sintex Inds | E207: Buy | F207: 84.50 | G207: - | H207: 93 | I207: 110.00 | J207: Profit of Rs.8.50/- | K207: 8.50 | L207: 10.06% | M207: Successful | N207: 2014-10-27
A208: =1+A207 -> 11 | B208: 2014-10-16 | D208: HSIL | E208: Buy | F208: 401.00 | G208: - | H208: 428 | I208: 450.00 | J208: Profit of Rs.27.00/- | K208: 27.00 | L208: 6.73% | M208: Successful | N208: 2015-01-16
A209: 12 | B209: 2014-10-16 | D209: Eveready Inds | E209: Buy | F209: 101.00 | G209: - | H209: 112 | I209: 120.00 | J209: Profit of Rs.11.00/- | K209: 11.00 | L209: 10.89% | M209: Successful | N209: 2014-10-27
A210: 13 | B210: 2014-11-11 | D210: Pennar Inds | E210: Buy | F210: 59.00 | G210: - | H210: 76 | I210: 76.00 | J210: Target Achieved | K210: 17.00 | L210: 28.81% | M210: Successful | N210: 2017-10-24
A211: 14 | B211: 2014-11-11 | D211: Snowman Logistics | E211: Buy | F211: 99.00 | G211: - | H211: 120 | I211: 120.00 | J211: Profit of Rs.21/- | K211: 21.00 | L211: 21.21% | M211: Successful | N211: 2014-11-17
A212: 15 | B212: 2014-11-13 | D212: Dharamsi Morarji Chem | E212: Buy | F212: 22.00 | G212: - | H212: 33.55 | I212: 32.00 | J212: Profit of Rs 11.55/- | K212: 11.55 | L212: 52.50% | M212: Successful | N212: 2015-07-03
A213: 16 | B213: 2014-12-03 | D213: Tatachem | E213: Buy | F213: 440.00 | G213: - | H213: 520 | I213: 520.00 | J213: Profit of Rs 80.00/- | K213: 80.00 | L213: 18.18% | M213: Successful | N213: 2015-07-23
A214: 17 | B214: 2014-12-03 | D214: Advanta | E214: Buy | F214: 360.00 | G214: - | H214: 427 | I214: 425.00 | J214: Profit of Rs.67.00/- | K214: 67.00 | L214: 18.61% | M214: Successful | N214: 2015-02-23
A215: 18 | B215: 2015-01-08 | D215: GDL | E215: Buy | F215: 360.00 | G215: - | H215: 455 | I215: 420.00 | J215: Profit of Rs.95.00/- | K215: 95.00 | L215: 26.39% | M215: Successful | N215: 2015-01-20
A216: 19 | B216: 2015-01-08 | D216: NRB Bearing | E216: Buy | F216: 130.00 | H216: 175.5 | I216: 165.00 | J216: Profit of Rs 45.50/- | K216: 45.50 | L216: 35.00% | M216: Successful | N216: 2017-12-19
A217: 20 | B217: 2015-02-05 | D217: GSFC | E217: Accu | F217: 98.00 | H217: 120 | I217: 120.00 | J217: Target Achieved | K217: 22.00 | L217: 22.45% | M217: Successful | N217: 2017-01-18
A218: 21 | B218: 2015-02-05 | D218: Sundrmfast | E218: Accu | F218: 196.00 | H218: 262 | I218: 255.00 | J218: Target Achieved | K218: 66.00 | L218: 33.67% | M218: Successful | N218: 2016-08-17
A219: 22 | B219: 2015-03-04 | D219: GPPL | E219: Accu | F219: 235 | H219: 77.00 | I219: 280-285 | J219: Loss of Rs.158/- | K219: =H219-F219 -> -158.00 | L219: -67.23% | M219: Unsuccessful | N219: 2019-02-26
A220: 23 | B220: 2015-03-04 | D220: ORIENTCEM | E220: Accu | F220: 185.00 | H220: 224 | I220: 220-225 | J220: Target Achieved | K220: 39.00 | L220: =K220/F220 -> 21.08% | M220: Successful | N220: 2016-10-04
A221: 24 | B221: 2015-03-27 | D221: PFS | E221: Accu | F221: 49-50 | I221: 67.00 | J221: Open
A222: 25 | B222: 2015-03-30 | D222: Walchandnagar Ind Ltd | E222: Accu | F222: 183.50 | H222: 219 | I222: 218.00 | J222: Profit of Rs.35.50/- | K222: 35.50 | L222: =K222/F222 -> 19.35% | M222: Successful | N222: 2015-04-09
A223: 26 | B223: 2015-04-20 | D223: Kalpataru Power Transmission Ltd | E223: Accu | F223: =(227+237)/2 -> 232.00 | H223: 298 | I223: 298.00 | J223: Target Achieved | K223: 66.00 | L223: 28.45% | M223: Successful | N223: 2017-03-29
A224: 27 | B224: 2015-05-04 | D224: Mastek Ltd | E224: Buy | F224: 385.00 | H224: =212.5+331 -> 543.5 | I224: 510.00 | J224: Profit of Rs 158.50/- | K224: 158.50 | L224: 41.17% | M224: Successful | N224: 2015-08-19
A225: 28 | B225: 2015-05-04 | D225: Suprajit Eng | E225: Buy | F225: 115.50 | H225: 146 | I225: 142.00 | J225: Profit of Rs 30.50/- | K225: 30.50 | L225: 26.41% | M225: Successful | N225: 2015-07-17
A226: 29 | B226: 2015-05-27 | D226: TCI | E226: Buy | F226: 237.50 | H226: 279.5 | I226: 278.00 | J226: Target Achieved | K226: 42.00 | L226: 17.68% | M226: Successful | N226: 2015-08-06
A227: 30 | B227: 2015-06-19 | D227: HSIL | E227: Accu | F227: 340.00 | H227: 448 | I227: 448.00 | J227: Target Achieved | K227: 108.00 | L227: 31.76% | M227: Successful | N227: 2017-10-10
A228: 31 | B228: 2015-07-06 | D228: Capital First | E228: Accu | F228: 390.00 | H228: 460 | I228: 460.00 | J228: Target Achieved | K228: 70.00 | L228: 17.95% | M228: Successful | N228: 2016-04-18
A229: 32 | B229: 2015-07-10 | D229: Dolphin OffShore | E229: Accu | F229: 122.5 | H229: 61.00 | I229: 172.00 | J229: Loss of Rs.61.50/- | K229: -61.50 | L229: -50.20% | M229: Unsuccessful | N229: 2018-08-21
A230: 33 | B230: 2015-08-03 | D230: Allcargo logistics | E230: Accu | F230: 297.50 | H230: 350 | I230: 360.00 | J230: Profit of Rs 52.50/- | K230: 52.50 | L230: =K230/F230 -> 17.65% | M230: Successful | N230: 2015-08-16
A231: 34 | B231: 2015-08-03 | D231: Camline Fine | E231: Accu | F231: 115.50 | H231: 149 | I231: 140.00 | J231: Profit of Rs 33.50/- | K231: 33.50 | L231: 29.00% | M231: Successful | N231: 2017-01-05
A232: 35 | B232: 2015-09-04 | D232: TCI | E232: Accu | F232: 226.00 | H232: 292 | I232: 292.00 | J232: Target Achieved | K232: 66.00 | L232: 29.20% | M232: Successful | N232: 2015-10-09
A233: 36 | B233: 2015-09-07 | D233: Kalpataru Power Transmission Ltd | E233: Accu | F233: 232.50 | H233: 312.5 | I233: 310.00 | J233: Target Achieved | K233: 80.00 | L233: 34.41% | M233: Successful | N233: 2017-03-29
A234: 37 | B234: 2015-09-21 | D234: LLOYD ELECTRIC & ENG LTD | E234: Accu | F234: 196.50 | H234: 238 | I234: 238.00 | J234: Target Achieved | K234: 41.50 | L234: 21.12% | M234: Successful | N234: 2015-10-14
A235: 38 | B235: 2015-09-24 | D235: L&T Finance Holding | E235: Accu | F235: 65.00 | H235: 82 | I235: 82.00 | J235: Target Achieved | K235: 17.00 | L235: 26.15% | M235: Successful | N235: 2016-07-27
A236: 39 | B236: 2015-10-14 | D236: KEC International ltd | E236: Accu | F236: 144.00 | H236: 182.5 | I236: 181.00 | J236: Target Achieved | K236: 38.50 | L236: 26.74% | M236: Successful | N236: 2017-03-23
A237: 40 | B237: 2015-10-14 | D237: Gruh Finance | E237: Accu | F237: 264.00 | H237: 311 | I237: 311.00 | J237: Target Achieved | K237: 47.00 | L237: 17.80% | M237: Successful | N237: 2016-08-22
A238: 41 | B238: 2015-11-10 | D238: Pidilitind | E238: Buy | F238: 549.50 | H238: 630 | I238: 630.00 | J238: Target Achieved | K238: 80.50 | L238: 14.65% | M238: Successful | N238: 2016-02-19
A239: 42 | B239: 2015-12-04 | D239: Zensar Technology | E239: Accu | F239: 1027.50 | H239: 1315 | I239: 1250.00 | J239: Target Achieved | K239: =H239-F239 -> 287.50 | L239: 27.98% | M239: Successful | N239: 2018-05-24
A240: 43 | B240: 2015-12-29 | D240: Vinati Organics Ltd | E240: Accu | F240: 465.00 | H240: 540 | I240: 540.00 | J240: Target Achieved | K240: 75.00 | L240: =K240/F240 -> 16.13% | M240: Successful | N240: 2016-06-09
A241: 44 | B241: 2016-01-11 | D241: GSFC | E241: Buy | F241: 81.00 | H241: 110 | I241: 110.00 | J241: Target Achieved | K241: 29.00 | L241: 35.80% | M241: Successful | N241: 2017-01-10
... 106 more rows

Sheet Sheet2 (hidden)
A1: SYMBOL | B1: SERIES | C1: OPEN | D1: HIGH | E1: LOW | F1: CLOSE | G1: LAST | H1: PREVCLOSE | I1: TOTTRDQTY | J1: TOTTRDVAL | K1: TIMESTAMP | L1: TOTALTRADES | M1: ISIN | N1: ISIN
A2: 20MICRONS | B2: EQ | C2: 41.9 | D2: 41.9 | E2: 40 | F2: 41.7 | G2: 41.8 | H2: 39.7 | I2: 78026 | J2: 3213824.65 | K2: 2019-05-27 | L2: 613 | M2: INE144J01027
A3: 21STCENMGM | B3: EQ | C3: 18.85 | D3: 18.85 | E3: 18.85 | F3: 18.85 | G3: 18.85 | H3: 18.5 | I3: 500 | J3: 9425 | K3: 2019-05-27 | L3: 4 | M3: INE253B01015
A4: 3IINFOTECH | B4: EQ | C4: 3.55 | D4: 3.7 | E4: 3.55 | F4: 3.65 | G4: 3.7 | H4: 3.55 | I4: 1632852 | J4: 5962173.6 | K4: 2019-05-27 | L4: 614 | M4: INE748C01020
A5: 3MINDIA | B5: EQ | C5: 23999 | D5: 24254.95 | E5: 23858.75 | F5: 23937.5 | G5: 23875 | H5: 23836.1 | I5: 2059 | J5: 49543341.8 | K5: 2019-05-27 | L5: 720 | M5: INE470A01017
A6: 3PLAND | B6: BE | C6: 10.85 | D6: 10.85 | E6: 10.85 | F6: 10.85 | G6: 10.85 | H6: 10.85 | I6: 300 | J6: 3255 | K6: 2019-05-27 | L6: 2 | M6: INE105C01023
A7: 5PAISA | B7: EQ | C7: 360 | D7: 386.8 | E7: 339.55 | F7: 369.6 | G7: 376 | H7: 351.65 | I7: 41124 | J7: 15071422.8 | K7: 2019-05-27 | L7: 1505 | M7: INE618L01018
A8: 63MOONS | B8: EQ | C8: 150.8 | D8: 150.8 | E8: 143.25 | F8: 150.8 | G8: 150.8 | H8: 143.65 | I8: 619240 | J8: 92497872.05 | K8: 2019-05-27 | L8: 4376 | M8: INE111B01023
A9: 8KMILES | B9: EQ | C9: 107.4 | D9: 107.4 | E9: 103.05 | F9: 103.5 | G9: 103.25 | H9: 105.45 | I9: 121452 | J9: 12705525.35 | K9: 2019-05-27 | L9: 1534 | M9: INE650K01021
A10: A2ZINFRA | B10: EQ | C10: 17.7 | D10: 18.25 | E10: 17.35 | F10: 18 | G10: 17.95 | H10: 17.35 | I10: 458989 | J10: 8236102.3 | K10: 2019-05-27 | L10: 921 | M10: INE619I01012
A11: AARTIDRUGS | B11: EQ | C11: 566.1 | D11: 610.95 | E11: 566.1 | F11: 591.5 | G11: 592 | H11: 566 | I11: 16220 | J11: 9418967.75 | K11: 2019-05-27 | L11: 1167 | M11: INE767A01016
A12: AARTIIND | B12: EQ | C12: 1800 | D12: 1880 | E12: 1800 | F12: 1868.05 | G12: 1868 | H12: 1798.55 | I12: 162910 | J12: 303009700.4 | K12: 2019-05-27 | L12: 16452 | M12: INE769A01020
A13: AARVEEDEN | B13: EQ | C13: 22.8 | D13: 24.8 | E13: 22.75 | F13: 24.25 | G13: 24.2 | H13: 23.25 | I13: 8057 | J13: 192397.9 | K13: 2019-05-27 | L13: 126 | M13: INE273D01019
A14: AAVAS | B14: EQ | C14: 1429.4 | D14: 1506.1 | E14: 1414.3 | F14: 1427.85 | G14: 1425 | H14: 1430.6 | I14: 57756 | J14: 84651934.1 | K14: 2019-05-27 | L14: 10418 | M14: INE216P01012
A15: ABAN | B15: BE | C15: 49.2 | D15: 50.75 | E15: 47.6 | F15: 49.9 | G15: 49.65 | H15: 49.2 | I15: 53523 | J15: 2666040.25 | K15: 2019-05-27 | L15: 721 | M15: INE421A01028
A16: ABB | B16: EQ | C16: 1478 | D16: 1619.95 | E16: 1478 | F16: 1613.3 | G16: 1618.1 | H16: 1496.95 | I16: 327524 | J16: 517795885.6 | K16: 2019-05-27 | L16: 20534 | M16: INE117A01022
A17: ABBOTINDIA | B17: EQ | C17: 7999.85 | D17: 8098 | E17: 7927.4 | F17: 8000.95 | G17: 8010 | H17: 7909.15 | I17: 11783 | J17: 94305504.6 | K17: 2019-05-27 | L17: 1596 | M17: INE358A01014
A18: ABCAPITAL | B18: EQ | C18: 98.35 | D18: 103.7 | E18: 98.35 | F18: 102.75 | G18: 102.85 | H18: 97.6 | I18: 4333501 | J18: 442873417.8 | K18: 2019-05-27 | L18: 47113 | M18: INE674K01013
A19: ABFRL | B19: EQ | C19: 203 | D19: 211 | E19: 202.95 | F19: 209.5 | G19: 209.95 | H19: 202.6 | I19: 453173 | J19: 94442201.35 | K19: 2019-05-27 | L19: 8241 | M19: INE647O01011
A20: ABMINTLTD | B20: BE | C20: 13.45 | D20: 13.45 | E20: 13.45 | F20: 13.45 | G20: 13.45 | H20: 13.45 | I20: 295 | J20: 3967.75 | K20: 2019-05-27 | L20: 3 | M20: INE251C01017
A21: ABSLNN50ET | B21: EQ | C21: 276.25 | D21: 277.15 | E21: 276.25 | F21: 277.15 | G21: 277.15 | H21: 273.57 | I21: 297 | J21: 82145.8 | K21: 2019-05-27 | L21: 7 | M21: INF209KB1B87
A22: ACC | B22: EQ | C22: 1706 | D22: 1765.2 | E22: 1700 | F22: 1759.8 | G22: 1758.9 | H22: 1704.9 | I22: 960403 | J22: 1673588582 | K22: 2019-05-27 | L22: 39895 | M22: INE012A01025
A23: ACCELYA | B23: EQ | C23: 910 | D23: 910 | E23: 893 | F23: 895.7 | G23: 896.5 | H23: 904 | I23: 7394 | J23: 6637343.95 | K23: 2019-05-27 | L23: 715 | M23: INE793A01012
A24: ACE | B24: EQ | C24: 107.85 | D24: 115 | E24: 107.85 | F24: 113.55 | G24: 113.05 | H24: 109.45 | I24: 755059 | J24: 84948677.05 | K24: 2019-05-27 | L24: 10350 | M24: INE731H01025
A25: ADANIENT | B25: EQ | C25: 159.1 | D25: 160.7 | E25: 155.15 | F25: 157.2 | G25: 157 | H25: 156.4 | I25: 9664810 | J25: 1524194070 | K25: 2019-05-27 | L25: 50796 | M25: INE423A01024
A26: ADANIGAS | B26: EQ | C26: 137 | D26: 147.45 | E26: 136.5 | F26: 143.25 | G26: 143 | H26: 136 | I26: 2739690 | J26: 393333177.9 | K26: 2019-05-27 | L26: 22385 | M26: INE399L01023
A27: ADANIGREEN | B27: EQ | C27: 42.55 | D27: 44 | E27: 42.3 | F27: 43.15 | G27: 43.25 | H27: 42.3 | I27: 728280 | J27: 31469543.35 | K27: 2019-05-27 | L27: 3251 | M27: INE364U01010
A28: ADANIPORTS | B28: EQ | C28: 409.25 | D28: 417.3 | E28: 405.6 | F28: 412.4 | G28: 412.8 | H28: 410.25 | I28: 5088602 | J28: 2100167393 | K28: 2019-05-27 | L28: 56812 | M28: INE742F01042
A29: ADANIPOWER | B29: EQ | C29: 47.4 | D29: 49.7 | E29: 46.55 | F29: 49.1 | G29: 49.15 | H29: 46.8 | I29: 22998049 | J29: 1116588970 | K29: 2019-05-27 | L29: 34026 | M29: INE814H01011
A30: ADANITRANS | B30: EQ | C30: 228.5 | D30: 229 | E30: 221.15 | F30: 222.6 | G30: 223 | H30: 227.5 | I30: 88593 | J30: 19968786 | K30: 2019-05-27 | L30: 2900 | M30: INE931S01010
A31: ADFFOODS | B31: EQ | C31: 266.8 | D31: 271.9 | E31: 263.5 | F31: 266 | G31: 267.5 | H31: 266.8 | I31: 62553 | J31: 16661195.75 | K31: 2019-05-27 | L31: 1797 | M31: INE982B01019
A32: ADHUNIK | B32: BE | C32: 2.3 | D32: 2.35 | E32: 2.15 | F32: 2.25 | G32: 2.25 | H32: 2.25 | I32: 54110 | J32: 122831.25 | K32: 2019-05-27 | L32: 31 | M32: INE400H01019
A33: ADHUNIKIND | B33: EQ | C33: 78.85 | D33: 82.95 | E33: 78.3 | F33: 82.05 | G33: 82.35 | H33: 78.45 | I33: 86423 | J33: 6967638.15 | K33: 2019-05-27 | L33: 718 | M33: INE452L01012
A34: ADLABS | B34: EQ | C34: 7.5 | D34: 7.8 | E34: 7.45 | F34: 7.75 | G34: 7.7 | H34: 7.45 | I34: 143254 | J34: 1095348.95 | K34: 2019-05-27 | L34: 340 | M34: INE172N01012
A35: ADORWELD | B35: EQ | C35: 344 | D35: 377.7 | E35: 341 | F35: 368.55 | G35: 369 | H35: 344.45 | I35: 63163 | J35: 23132553.9 | K35: 2019-05-27 | L35: 2797 | M35: INE045A01017
A36: ADROITINFO | B36: BE | C36: 14.1 | D36: 14.5 | E36: 14.1 | F36: 14.1 | G36: 14.1 | H36: 14.8 | I36: 666 | J36: 9452.6 | K36: 2019-05-27 | L36: 10 | M36: INE737B01033
A37: ADSL | B37: EQ | C37: 15.05 | D37: 15.85 | E37: 15.05 | F37: 15.85 | G37: 15.85 | H37: 15.1 | I37: 23399 | J37: 368495.05 | K37: 2019-05-27 | L37: 81 | M37: INE102I01027
A38: ADVANIHOTR | B38: EQ | C38: 61.85 | D38: 63.05 | E38: 61.7 | F38: 62.55 | G38: 62 | H38: 61.05 | I38: 4351 | J38: 271585.05 | K38: 2019-05-27 | L38: 132 | M38: INE199C01026
A39: ADVENZYMES | B39: EQ | C39: 202 | D39: 213.5 | E39: 196.05 | F39: 211.5 | G39: 209.25 | H39: 200.85 | I39: 494361 | J39: 102711101.7 | K39: 2019-05-27 | L39: 6260 | M39: INE837H01020
A40: AEGISCHEM | B40: EQ | C40: 214.75 | D40: 217.5 | E40: 212.85 | F40: 216.9 | G40: 216 | H40: 213.15 | I40: 78529 | J40: 16966153.9 | K40: 2019-05-27 | L40: 2349 | M40: INE208C01025
A41: AGARIND | B41: EQ | C41: 163.85 | D41: 169.9 | E41: 162 | F41: 163.55 | G41: 166 | H41: 162.25 | I41: 2598 | J41: 430174.2 | K41: 2019-05-27 | L41: 69 | M41: INE204E01012
A42: AGCNET | B42: EQ | C42: 116.4 | D42: 117.7 | E42: 110 | F42: 115 | G42: 114.8 | H42: 107.25 | I42: 6168 | J42: 710115.5 | K42: 2019-05-27 | L42: 104 | M42: INE676A01019
A43: AGLSL | B43: EQ | C43: 56.95 | D43: 57 | E43: 54.7 | F43: 56.55 | G43: 56 | H43: 54.9 | I43: 1165 | J43: 65052.85 | K43: 2019-05-27 | L43: 40 | M43: INE517U01013
A44: AGRITECH | B44: EQ | C44: 63.6 | D44: 69.45 | E44: 62.2 | F44: 67.25 | G44: 67.45 | H44: 63.05 | I44: 55736 | J44: 3725263.35 | K44: 2019-05-27 | L44: 768 | M44: INE449G01018
A45: AGROPHOS | B45: BE | C45: 70.2 | D45: 73.8 | E45: 70.2 | F45: 73.5 | G45: 73.5 | H45: 73.7 | I45: 30625 | J45: 2259135.3 | K45: 2019-05-27 | L45: 29 | M45: INE740V01019
A46: AHLEAST | B46: EQ | C46: 225 | D46: 229.6 | E46: 214 | F46: 215.3 | G46: 220 | H46: 219.55 | I46: 3304 | J46: 732290.1 | K46: 2019-05-27 | L46: 128 | M46: INE926K01017
A47: AHLUCONT | B47: EQ | C47: 354.1 | D47: 378.4 | E47: 350 | F47: 366 | G47: 364 | H47: 349.45 | I47: 28191 | J47: 10427575.05 | K47: 2019-05-27 | L47: 1005 | M47: INE758C01029
A48: AHLWEST | B48: EQ | C48: 333.2 | D48: 350 | E48: 333.15 | F48: 340 | G48: 340 | H48: 335.75 | I48: 1755 | J48: 599292.5 | K48: 2019-05-27 | L48: 123 | M48: INE915K01010
A49: AIAENG | B49: EQ | C49: 1755.4 | D49: 1824.8 | E49: 1741 | F49: 1793.25 | G49: 1770 | H49: 1755.35 | I49: 116761 | J49: 209761070.5 | K49: 2019-05-27 | L49: 7320 | M49: INE212H01026
A50: AIFL | B50: BE | C50: 7.2 | D50: 7.25 | E50: 7.2 | F50: 7.2 | G50: 7.2 | H50: 7.55 | I50: 34358 | J50: 247613.05 | K50: 2019-05-27 | L50: 97 | M50: INE428O01016
A51: AIONJSW | B51: EQ | C51: 22 | D51: 22.2 | E51: 21.8 | F51: 21.95 | G51: 21.9 | H51: 21.95 | I51: 55710 | J51: 1225342.1 | K51: 2019-05-27 | L51: 172 | M51: INE743C01021
A52: AIRAN | B52: EQ | C52: 31.4 | D52: 32.5 | E52: 31.3 | F52: 32.45 | G52: 32.5 | H52: 31.45 | I52: 10945 | J52: 349813.65 | K52: 2019-05-27 | L52: 17 | M52: INE645W01026
A53: AJANTPHARM | B53: EQ | C53: 1048.85 | D53: 1057.05 | E53: 1035.2 | F53: 1051.6 | G53: 1047 | H53: 1039.25 | I53: 221439 | J53: 231780121.8 | K53: 2019-05-27 | L53: 8578 | M53: INE031B01049
A54: AJMERA | B54: EQ | C54: 174.7 | D54: 197.3 | E54: 174.05 | F54: 184.4 | G54: 184.95 | H54: 173.65 | I54: 222616 | J54: 41209847.3 | K54: 2019-05-27 | L54: 4516 | M54: INE298G01027
A55: AKSHARCHEM | B55: EQ | C55: 248 | D55: 270 | E55: 248 | F55: 268.2 | G55: 266 | H55: 248.65 | I55: 10674 | J55: 2771253.3 | K55: 2019-05-27 | L55: 424 | M55: INE542B01011
A56: AKSHOPTFBR | B56: EQ | C56: 15.5 | D56: 15.8 | E56: 14.3 | F56: 14.6 | G56: 14.7 | H56: 17.7 | I56: 3602300 | J56: 54353506.35 | K56: 2019-05-27 | L56: 7770 | M56: INE523B01011
A57: AKZOINDIA | B57: EQ | C57: 1737.95 | D57: 1749 | E57: 1690 | F57: 1726.1 | G57: 1723 | H57: 1711.15 | I57: 5135 | J57: 8913994.6 | K57: 2019-05-27 | L57: 641 | M57: INE133A01011
A58: ALANKIT | B58: EQ | C58: 36.9 | D58: 36.9 | E58: 35.1 | F58: 35.4 | G58: 35.5 | H58: 36.65 | I58: 685936 | J58: 24481659.95 | K58: 2019-05-27 | L58: 2385 | M58: INE914E01040
A59: ALBERTDAVD | B59: EQ | C59: 425 | D59: 433.4 | E59: 404.5 | F59: 427.55 | G59: 429.95 | H59: 394.1 | I59: 18219 | J59: 7706394.3 | K59: 2019-05-27 | L59: 643 | M59: INE155C01010
A60: ALBK | B60: EQ | C60: 47.25 | D60: 48.65 | E60: 46.85 | F60: 47.75 | G60: 47.75 | H60: 47.4 | I60: 4735420 | J60: 226409938.3 | K60: 2019-05-27 | L60: 10445 | M60: INE428A01015
A61: ALCHEM | B61: BE | C61: 1.85 | D61: 1.85 | E61: 1.8 | F61: 1.8 | G61: 1.8 | H61: 1.85 | I61: 137 | J61: 251.65 | K61: 2019-05-27 | L61: 8 | M61: INE964B01033
A62: ALEMBICLTD | B62: EQ | C62: 41.3 | D62: 44.05 | E62: 41.3 | F62: 43.55 | G62: 43.6 | H62: 41.75 | I62: 218690 | J62: 9405513.8 | K62: 2019-05-27 | L62: 1284 | M62: INE426A01027
A63: ALICON | B63: EQ | C63: 583.95 | D63: 607.05 | E63: 582.05 | F63: 595.2 | G63: 595.2 | H63: 595.6 | I63: 1986 | J63: 1190771.7 | K63: 2019-05-27 | L63: 61 | M63: INE062D01024
A64: ALKALI | B64: EQ | C64: 49.9 | D64: 52 | E64: 49.55 | F64: 50.25 | G64: 51 | H64: 49.9 | I64: 13682 | J64: 701390.95 | K64: 2019-05-27 | L64: 175 | M64: INE773I01017
A65: ALKEM | B65: EQ | C65: 1710 | D65: 1732 | E65: 1705.65 | F65: 1725.4 | G65: 1720 | H65: 1711 | I65: 9556 | J65: 16456541.6 | K65: 2019-05-27 | L65: 2955 | M65: INE540L01014
A66: ALKYLAMINE | B66: EQ | C66: 790.45 | D66: 806.05 | E66: 789.75 | F66: 797.7 | G66: 795 | H66: 794.6 | I66: 6223 | J66: 4937336.35 | K66: 2019-05-27 | L66: 361 | M66: INE150B01021
A67: ALLCARGO | B67: EQ | C67: 110.9 | D67: 117.2 | E67: 110.15 | F67: 114.4 | G67: 114.5 | H67: 109.8 | I67: 536715 | J67: 61411212 | K67: 2019-05-27 | L67: 3896 | M67: INE418H01029
A68: ALLSEC | B68: BE | C68: 319.9 | D68: 322.9 | E68: 317.25 | F68: 319.95 | G68: 320 | H68: 317.6 | I68: 6362 | J68: 2034990.3 | K68: 2019-05-27 | L68: 67 | M68: INE835G01018
A69: ALMONDZ | B69: EQ | C69: 18.45 | D69: 20.6 | E69: 18.45 | F69: 19.45 | G69: 19.45 | H69: 18.7 | I69: 2965 | J69: 56883.5 | K69: 2019-05-27 | L69: 28 | M69: INE326B01027
A70: ALOKTEXT | B70: BE | C70: 3.85 | D70: 4.05 | E70: 3.8 | F70: 3.85 | G70: 3.9 | H70: 3.95 | I70: 1717828 | J70: 6736200.85 | K70: 2019-05-27 | L70: 933 | M70: INE270A01011
A71: ALPA | B71: EQ | C71: 24.5 | D71: 26 | E71: 24.5 | F71: 25.35 | G71: 25.45 | H71: 24.7 | I71: 22530 | J71: 577161.4 | K71: 2019-05-27 | L71: 213 | M71: INE385I01010
A72: ALPHAGEO | B72: EQ | C72: 469.9 | D72: 489.25 | E72: 468 | F72: 482.5 | G72: 481 | H72: 466.7 | I72: 7989 | J72: 3851948.7 | K72: 2019-05-27 | L72: 646 | M72: INE137C01018
A73: ALPSINDUS | B73: BE | C73: 1 | D73: 1.05 | E73: 1 | F73: 1 | G73: 1 | H73: 1.05 | I73: 26721 | J73: 26728.95 | K73: 2019-05-27 | L73: 136 | M73: INE093B01015
A74: AMARAJABAT | B74: EQ | C74: 635.8 | D74: 648.8 | E74: 633.55 | F74: 640.9 | G74: 642 | H74: 638.6 | I74: 773510 | J74: 497135073.4 | K74: 2019-05-27 | L74: 20785 | M74: INE885A01032
A75: AMBER | B75: EQ | C75: 802.25 | D75: 873.7 | E75: 802.25 | F75: 825.95 | G75: 829.75 | H75: 739.15 | I75: 184337 | J75: 153594901.7 | K75: 2019-05-27 | L75: 12027 | M75: INE371P01015
A76: AMBIKCO | B76: EQ | C76: 1128.5 | D76: 1131 | E76: 1110.8 | F76: 1128.25 | G76: 1130 | H76: 1128.4 | I76: 2487 | J76: 2806311.55 | K76: 2019-05-27 | L76: 237 | M76: INE540G01014
A77: AMBUJACEM | B77: EQ | C77: 233 | D77: 239.9 | E77: 231.15 | F77: 239.15 | G77: 238.9 | H77: 231.65 | I77: 2276077 | J77: 539786305 | K77: 2019-05-27 | L77: 26701 | M77: INE079A01024
A78: AMDIND | B78: EQ | C78: 18.9 | D78: 19.6 | E78: 18.35 | F78: 19.35 | G78: 19.35 | H78: 17.95 | I78: 8814 | J78: 167537.35 | K78: 2019-05-27 | L78: 51 | M78: INE005I01014
A79: AMJLAND | B79: EQ | C79: 19.7 | D79: 19.95 | E79: 19.35 | F79: 19.4 | G79: 19.6 | H79: 19.35 | I79: 12657 | J79: 246156.25 | K79: 2019-05-27 | L79: 33 | M79: INE606A01024
A80: AMRUTANJAN | B80: EQ | C80: 354 | D80: 358 | E80: 316.95 | F80: 321.75 | G80: 321.85 | H80: 340.35 | I80: 351453 | J80: 116507771 | K80: 2019-05-27 | L80: 10962 | M80: INE098F01031
A81: ANANTRAJ | B81: EQ | C81: 34.2 | D81: 35.75 | E81: 34.2 | F81: 35.3 | G81: 35.4 | H81: 34.05 | I81: 870552 | J81: 30539623.7 | K81: 2019-05-27 | L81: 2084 | M81: INE242C01024
A82: ANDHRABANK | B82: EQ | C82: 25.6 | D82: 25.95 | E82: 25.15 | F82: 25.75 | G82: 25.6 | H82: 25.25 | I82: 1529607 | J82: 39369923.7 | K82: 2019-05-27 | L82: 3788 | M82: INE434A01013
A83: ANDHRACEMT | B83: BE | C83: 4.65 | D83: 4.7 | E83: 4.4 | F83: 4.7 | G83: 4.7 | H83: 4.5 | I83: 36478 | J83: 169538.4 | K83: 2019-05-27 | L83: 75 | M83: INE666E01012
A84: ANDHRSUGAR | B84: EQ | C84: 384.1 | D84: 416.8 | E84: 384.1 | F84: 412.25 | G84: 414.45 | H84: 385.1 | I84: 162300 | J84: 66065243.1 | K84: 2019-05-27 | L84: 5167 | M84: INE715B01013
A85: ANIKINDS | B85: EQ | C85: 13.05 | D85: 13.6 | E85: 12.75 | F85: 13.55 | G85: 13.55 | H85: 13.4 | I85: 3380 | J85: 44858.75 | K85: 2019-05-27 | L85: 34 | M85: INE087B01017
A86: ANKITMETAL | B86: BE | C86: 0.5 | D86: 0.55 | E86: 0.45 | F86: 0.45 | G86: 0.55 | H86: 0.5 | I86: 30822 | J86: 14362.5 | K86: 2019-05-27 | L86: 15 | M86: INE106I01010
A87: ANSALAPI | B87: EQ | C87: 8.25 | D87: 8.6 | E87: 8.25 | F87: 8.45 | G87: 8.4 | H87: 8.35 | I87: 228946 | J87: 1941309.15 | K87: 2019-05-27 | L87: 449 | M87: INE436A01026
A88: ANSALHSG | B88: EQ | C88: 10.05 | D88: 10.25 | E88: 9.85 | F88: 10 | G88: 10 | H88: 10 | I88: 337582 | J88: 3378765.9 | K88: 2019-05-27 | L88: 612 | M88: INE880B01015
A89: ANTGRAPHIC | B89: BE | C89: 0.8 | D89: 0.8 | E89: 0.75 | F89: 0.8 | G89: 0.8 | H89: 0.8 | I89: 64910 | J89: 50723 | K89: 2019-05-27 | L89: 27 | M89: INE414B01021
A90: ANUP | B90: EQ | C90: 518 | D90: 521.1 | E90: 497 | F90: 506.1 | G90: 506.9 | H90: 517.6 | I90: 18419 | J90: 9423222.55 | K90: 2019-05-27 | L90: 724 | M90: INE294Z01018
A91: APARINDS | B91: EQ | C91: 652.5 | D91: 689.05 | E91: 645.4 | F91: 663.3 | G91: 653 | H91: 648.35 | I91: 7092 | J91: 4726522.05 | K91: 2019-05-27 | L91: 705 | M91: INE372A01015
A92: APCL | B92: EQ | C92: 173.95 | D92: 178.7 | E92: 166.5 | F92: 174.85 | G92: 178.4 | H92: 154 | I92: 33766 | J92: 5859089.75 | K92: 2019-05-27 | L92: 1191 | M92: INE071F01012
A93: APCOTEXIND | B93: EQ | C93: 512 | D93: 524 | E93: 512 | F93: 521.65 | G93: 524 | H93: 510.85 | I93: 17409 | J93: 9043067.2 | K93: 2019-05-27 | L93: 673 | M93: INE116A01024
A94: APEX | B94: EQ | C94: 262 | D94: 313.8 | E94: 260.2 | F94: 307.1 | G94: 313.8 | H94: 261.5 | I94: 512395 | J94: 150116162.2 | K94: 2019-05-27 | L94: 10807 | M94: INE346W01013
A95: APLAPOLLO | B95: EQ | C95: 1660 | D95: 1670.2 | E95: 1628 | F95: 1648.95 | G95: 1650 | H95: 1638.8 | I95: 14057 | J95: 23195215.4 | K95: 2019-05-27 | L95: 1392 | M95: INE702C01019
A96: APLLTD | B96: EQ | C96: 524 | D96: 524.5 | E96: 517.7 | F96: 519.25 | G96: 519.5 | H96: 519.7 | I96: 21002 | J96: 10926823.9 | K96: 2019-05-27 | L96: 1425 | M96: INE901L01018
A97: APOLLO | B97: EQ | C97: 140.2 | D97: 141.7 | E97: 137.05 | F97: 139.1 | G97: 139.1 | H97: 140.1 | I97: 26156 | J97: 3640396.6 | K97: 2019-05-27 | L97: 791 | M97: INE713T01010
A98: APOLLOHOSP | B98: EQ | C98: 1177.5 | D98: 1212.9 | E98: 1175.15 | F98: 1198.8 | G98: 1204.55 | H98: 1170.5 | I98: 294036 | J98: 352673347.6 | K98: 2019-05-27 | L98: 16919 | M98: INE437A01024
A99: APOLLOTYRE | B99: EQ | C99: 195 | D99: 200.9 | E99: 194.5 | F99: 199.1 | G99: 198.35 | H99: 194.6 | I99: 3074229 | J99: 610648965.8 | K99: 2019-05-27 | L99: 23583 | M99: INE438A01022
A100: APOLSINHOT | B100: EQ | C100: 947.9 | D100: 977.7 | E100: 935.05 | F100: 973.15 | G100: 965 | H100: 947.9 | I100: 5844 | J100: 5564427.35 | K100: 2019-05-27 | L100: 203 | M100: INE451F01024
A101: APTECHT | B101: EQ | C101: 147.95 | D101: 158.7 | E101: 147.65 | F101: 156.05 | G101: 155.7 | H101: 147.35 | I101: 223339 | J101: 34360633.7 | K101: 2019-05-27 | L101: 3419 | M101: INE266F01018
A102: ARCHIDPLY | B102: EQ | C102: 36.7 | D102: 44.4 | E102: 32.6 | F102: 38.4 | G102: 38.6 | H102: 37.05 | I102: 197770 | J102: 7816000.35 | K102: 2019-05-27 | L102: 2087 | M102: INE877I01016
A103: ARCHIES | B103: EQ | C103: 22.55 | D103: 23.5 | E103: 21.8 | F103: 23.2 | G103: 23.2 | H103: 22.55 | I103: 44150 | J103: 1004427.85 | K103: 2019-05-27 | L103: 407 | M103: INE731A01020
A104: ARCOTECH | B104: BE | C104: 4.05 | D104: 4.35 | E104: 4.05 | F104: 4.35 | G104: 4.35 | H104: 4.15 | I104: 90072 | J104: 384761.8 | K104: 2019-05-27 | L104: 100 | M104: INE574I01035
A105: ARIES | B105: EQ | C105: 75.05 | D105: 79.45 | E105: 75.05 | F105: 78.45 | G105: 78.45 | H105: 76.35 | I105: 48317 | J105: 3789430.65 | K105: 2019-05-27 | L105: 860 | M105: INE298I01015
A106: ARIHANT | B106: EQ | C106: 27.4 | D106: 28.15 | E106: 26.2 | F106: 26.8 | G106: 26.7 | H106: 27.35 | I106: 11869 | J106: 326884 | K106: 2019-05-27 | L106: 31 | M106: INE413D01011
A107: ARIHANTSUP | B107: BE | C107: 57 | D107: 58.9 | E107: 56 | F107: 57.85 | G107: 58.7 | H107: 57.9 | I107: 19192 | J107: 1096191 | K107: 2019-05-27 | L107: 146 | M107: INE643K01018
A108: ARMANFIN | B108: EQ | C108: 385 | D108: 395 | E108: 385 | F108: 394.2 | G108: 395 | H108: 382.9 | I108: 4291 | J108: 1680271.05 | K108: 2019-05-27 | L108: 134 | M108: INE109C01017
A109: AROGRANITE | B109: EQ | C109: 49.65 | D109: 51.9 | E109: 49.65 | F109: 51 | G109: 51.25 | H109: 49.6 | I109: 15483 | J109: 789823.1 | K109: 2019-05-27 | L109: 194 | M109: INE210C01013
A110: ARROWGREEN | B110: EQ | C110: 62.55 | D110: 64.45 | E110: 60.05 | F110: 61.85 | G110: 62 | H110: 62.25 | I110: 6476 | J110: 403344.3 | K110: 2019-05-27 | L110: 162 | M110: INE570D01018
A111: ARROWTEX | B111: EQ | C111: 17.35 | D111: 17.5 | E111: 16.7 | F111: 17.45 | G111: 17.45 | H111: 17.35 | I111: 3559 | J111: 60681.6 | K111: 2019-05-27 | L111: 57 | M111: INE933J01015
A112: ARSHIYA | B112: EQ | C112: 31.65 | D112: 33.4 | E112: 30.65 | F112: 31.65 | G112: 31.9 | H112: 31.25 | I112: 69549 | J112: 2230728.55 | K112: 2019-05-27 | L112: 643 | M112: INE968D01022
A113: ARSSINFRA | B113: BE | C113: 42.9 | D113: 43.9 | E113: 40.8 | F113: 43.3 | G113: 43.8 | H113: 42.9 | I113: 18717 | J113: 777954.4 | K113: 2019-05-27 | L113: 66 | M113: INE267I01010
A114: ARVIND | B114: EQ | C114: 78.1 | D114: 79 | E114: 76.35 | F114: 78.5 | G114: 78.3 | H114: 77.95 | I114: 2008555 | J114: 156429585.2 | K114: 2019-05-27 | L114: 11232 | M114: INE034A01011
A115: ARVINDFASN | B115: EQ | C115: 800 | D115: 860 | E115: 800 | F115: 826.3 | G115: 831.3 | H115: 837.4 | I115: 37427 | J115: 30843216.6 | K115: 2019-05-27 | L115: 3321 | M115: INE955V01021
A116: ARVSMART | B116: EQ | C116: 117 | D116: 122.25 | E116: 117 | F116: 118.7 | G116: 118.9 | H116: 117 | I116: 33993 | J116: 4073847.55 | K116: 2019-05-27 | L116: 550 | M116: INE034S01021
A117: ASAHIINDIA | B117: EQ | C117: 221.75 | D117: 242.1 | E117: 221.5 | F117: 240.75 | G117: 242 | H117: 221.75 | I117: 93480 | J117: 21969126.15 | K117: 2019-05-27 | L117: 2241 | M117: INE439A01020
A118: ASAHISONG | B118: EQ | C118: 148.85 | D118: 174.9 | E118: 148.85 | F118: 164.3 | G118: 162.1 | H118: 148.6 | I118: 16728 | J118: 2722789.3 | K118: 2019-05-27 | L118: 583 | M118: INE228I01012
A119: ASAL | B119: EQ | C119: 54.7 | D119: 55 | E119: 48.8 | F119: 53.55 | G119: 53.5 | H119: 51.75 | I119: 6243 | J119: 335366.85 | K119: 2019-05-27 | L119: 96 | M119: INE900C01027
A120: ASHAPURMIN | B120: BE | C120: 22.3 | D120: 22.5 | E120: 21.35 | F120: 22.45 | G120: 22.5 | H120: 21.45 | I120: 24629 | J120: 549168.75 | K120: 2019-05-27 | L120: 109 | M120: INE348A01023
A121: ASHIANA | B121: EQ | C121: 110 | D121: 115 | E121: 110 | F121: 112.5 | G121: 112.3 | H121: 108.15 | I121: 38544 | J121: 4383548.3 | K121: 2019-05-27 | L121: 979 | M121: INE365D01021
A122: ASHIMASYN | B122: EQ | C122: 10.1 | D122: 11.35 | E122: 10.1 | F122: 11.35 | G122: 11.35 | H122: 10.35 | I122: 63086 | J122: 692318.45 | K122: 2019-05-27 | L122: 205 | M122: INE440A01010
A123: ASHOKA | B123: EQ | C123: 129.6 | D123: 146.9 | E123: 129.5 | F123: 145.05 | G123: 145.95 | H123: 127.95 | I123: 1600481 | J123: 225809235.2 | K123: 2019-05-27 | L123: 21980 | M123: INE442H01029
A124: ASHOKLEY | B124: EQ | C124: 91.7 | D124: 91.75 | E124: 89.55 | F124: 91.15 | G124: 91.1 | H124: 93.8 | I124: 37249413 | J124: 3380181600 | K124: 2019-05-27 | L124: 104145 | M124: INE208A01029
A125: ASIANHOTNR | B125: EQ | C125: 130 | D125: 135 | E125: 128 | F125: 130 | G125: 130 | H125: 131 | I125: 1867 | J125: 246459.7 | K125: 2019-05-27 | L125: 89 | M125: INE363A01022
A126: ASIANPAINT | B126: EQ | C126: 1386.9 | D126: 1390.7 | E126: 1362.7 | F126: 1366.85 | G126: 1369.9 | H126: 1384.5 | I126: 782730 | J126: 1071868859 | K126: 2019-05-27 | L126: 36837 | M126: INE021A01026
A127: ASIANTILES | B127: EQ | C127: 250.1 | D127: 252 | E127: 241.55 | F127: 249.7 | G127: 249.3 | H127: 249.8 | I127: 215908 | J127: 53164491.15 | K127: 2019-05-27 | L127: 2002 | M127: INE022I01019
A128: ASPINWALL | B128: EQ | C128: 143.95 | D128: 157 | E128: 143.95 | F128: 154.8 | G128: 155 | H128: 153 | I128: 3859 | J128: 590801.3 | K128: 2019-05-27 | L128: 63 | M128: INE991I01015
A129: ASSAMCO | B129: BE | C129: 1.95 | D129: 1.95 | E129: 1.85 | F129: 1.85 | G129: 1.85 | H129: 1.9 | I129: 292978 | J129: 546434.3 | K129: 2019-05-27 | L129: 100 | M129: INE442A01024
A130: ASTEC | B130: EQ | C130: 464.95 | D130: 465 | E130: 448 | F130: 455.85 | G130: 450 | H130: 455.1 | I130: 6580 | J130: 3016050 | K130: 2019-05-27 | L130: 443 | M130: INE563J01010
A131: ASTERDM | B131: EQ | C131: 135 | D131: 138.4 | E131: 134.5 | F131: 137.75 | G131: 137 | H131: 135 | I131: 12067 | J131: 1654101.8 | K131: 2019-05-27 | L131: 620 | M131: INE914M01019
A132: ASTRAL | B132: EQ | C132: 1275 | D132: 1285.9 | E132: 1230.05 | F132: 1279.85 | G132: 1279 | H132: 1234 | I132: 125063 | J132: 158013550.6 | K132: 2019-05-27 | L132: 4817 | M132: INE006I01046
A133: ASTRAMICRO | B133: EQ | C133: 87.5 | D133: 93 | E133: 87.05 | F133: 92.6 | G133: 92.95 | H133: 86.9 | I133: 381795 | J133: 34963341.25 | K133: 2019-05-27 | L133: 2182 | M133: INE386C01029
A134: ASTRAZEN | B134: EQ | C134: 2155 | D134: 2173.4 | E134: 1990 | F134: 2010.35 | G134: 2000 | H134: 2204.95 | I134: 44168 | J134: 91271019.5 | K134: 2019-05-27 | L134: 4705 | M134: INE203A01020
A135: ASTRON | B135: EQ | C135: 106 | D135: 111.6 | E135: 106 | F135: 108.95 | G135: 108.1 | H135: 108.35 | I135: 423318 | J135: 46511417.25 | K135: 2019-05-27 | L135: 2530 | M135: INE646X01014
A136: ATFL | B136: EQ | C136: 539.8 | D136: 552 | E136: 535.05 | F136: 537.25 | G136: 535.1 | H136: 543.6 | I136: 3590 | J136: 1947129.6 | K136: 2019-05-27 | L136: 444 | M136: INE209A01019
A137: ATLANTA | B137: EQ | C137: 14.9 | D137: 15.55 | E137: 14.55 | F137: 15.05 | G137: 15 | H137: 14.85 | I137: 74989 | J137: 1133990.7 | K137: 2019-05-27 | L137: 869 | M137: INE285H01022
A138: ATLASCYCLE | B138: BE | C138: 52.5 | D138: 52.5 | E138: 52 | F138: 52.3 | G138: 52.3 | H138: 52.35 | I138: 1445 | J138: 75693.85 | K138: 2019-05-27 | L138: 40 | M138: INE446A01025
A139: ATNINTER | B139: BE | C139: 0.15 | D139: 0.15 | E139: 0.15 | F139: 0.15 | G139: 0.15 | H139: 0.2 | I139: 748 | J139: 112.2 | K139: 2019-05-27 | L139: 19 | M139: INE803A01027
A140: ATUL | B140: EQ | C140: 3762 | D140: 3818.6 | E140: 3741.3 | F140: 3759.05 | G140: 3756.1 | H140: 3751.45 | I140: 5247 | J140: 19817215.1 | K140: 2019-05-27 | L140: 945 | M140: INE100A01010
A141: ATULAUTO | B141: EQ | C141: 315 | D141: 324.4 | E141: 305.55 | F141: 311.25 | G141: 312.1 | H141: 311.9 | I141: 31219 | J141: 9748226.2 | K141: 2019-05-27 | L141: 1261 | M141: INE951D01028
A142: AUBANK | B142: EQ | C142: 682.2 | D142: 691.5 | E142: 670.8 | F142: 677.4 | G142: 675.05 | H142: 681.9 | I142: 136148 | J142: 92273548.6 | K142: 2019-05-27 | L142: 7263 | M142: INE949L01017
A143: AURIONPRO | B143: EQ | C143: 131 | D143: 131 | E143: 121.15 | F143: 124.6 | G143: 123.8 | H143: 123.9 | I143: 9407 | J143: 1160633.05 | K143: 2019-05-27 | L143: 290 | M143: INE132H01018
A144: AUROPHARMA | B144: EQ | C144: 682.4 | D144: 684.85 | E144: 672.05 | F144: 681.7 | G144: 679.9 | H144: 680.65 | I144: 1587132 | J144: 1077323734 | K144: 2019-05-27 | L144: 37777 | M144: INE406A01037
A145: AUSOMENT | B145: EQ | C145: 38.45 | D145: 38.8 | E145: 37.25 | F145: 38.8 | G145: 38.8 | H145: 35.3 | I145: 4533 | J145: 175712.6 | K145: 2019-05-27 | L145: 32 | M145: INE218C01016
A146: AUTOAXLES | B146: EQ | C146: 1174 | D146: 1224.45 | E146: 1159.15 | F146: 1195.85 | G146: 1190 | H146: 1153.75 | I146: 18870 | J146: 22642707.8 | K146: 2019-05-27 | L146: 1418 | M146: INE449A01011
A147: AUTOIND | B147: EQ | C147: 49.5 | D147: 50.2 | E147: 48.05 | F147: 49.05 | G147: 49 | H147: 49.3 | I147: 12556 | J147: 619078.85 | K147: 2019-05-27 | L147: 143 | M147: INE718H01014
A148: AUTOLITIND | B148: EQ | C148: 32 | D148: 34.6 | E148: 32 | F148: 34.35 | G148: 34.15 | H148: 32.35 | I148: 18141 | J148: 608490.3 | K148: 2019-05-27 | L148: 117 | M148: INE448A01013
A149: AVADHSUGAR | B149: EQ | C149: 633.9 | D149: 730 | E149: 626.6 | F149: 717.35 | G149: 710 | H149: 616.2 | I149: 888189 | J149: 608886228 | K149: 2019-05-27 | L149: 33302 | M149: INE349W01017
A150: AVANTIFEED | B150: EQ | C150: 344.8 | D150: 409 | E150: 344.8 | F150: 400.65 | G150: 409 | H150: 341.45 | I150: 2524775 | J150: 961732748.1 | K150: 2019-05-27 | L150: 46339 | M150: INE871C01038
A151: AVTNPL | B151: EQ | C151: 23.05 | D151: 24 | E151: 23 | F151: 23.7 | G151: 23.95 | H151: 22.95 | I151: 41257 | J151: 971735.5 | K151: 2019-05-27 | L151: 191 | M151: INE488D01021
A152: AXISBANK | B152: EQ | C152: 794 | D152: 816.4 | E152: 787.2 | F152: 813.9 | G152: 814 | H152: 793.2 | I152: 9128216 | J152: 7340603751 | K152: 2019-05-27 | L152: 120198 | M152: INE238A01034
A153: AXISCADES | B153: EQ | C153: 59.9 | D153: 62 | E153: 58.65 | F153: 59.05 | G153: 59.3 | H153: 59.2 | I153: 283300 | J153: 16895724.35 | K153: 2019-05-27 | L153: 1355 | M153: INE555B01013
A154: AXISGOLD | B154: EQ | C154: 2780 | D154: 2818 | E154: 2775 | F154: 2798 | G154: 2798 | H154: 2780 | I154: 37 | J154: 103264.5 | K154: 2019-05-27 | L154: 25 | M154: INF846K01347
A155: AXISNIFTY | B155: EQ | C155: 1207.55 | D155: 1220.4 | E155: 1207.55 | F155: 1216.1 | G155: 1216.1 | H155: 1214.76 | I155: 181 | J155: 219430.72 | K155: 2019-05-27 | L155: 38 | M155: INF846K01ZL0
A156: AYMSYNTEX | B156: EQ | C156: 37.1 | D156: 37.1 | E156: 34.55 | F156: 35.65 | G156: 35.6 | H156: 35.65 | I156: 16703 | J156: 594199.6 | K156: 2019-05-27 | L156: 88 | M156: INE193B01039
A157: BAFNAPHARM | B157: EQ | C157: 8.3 | D157: 8.3 | E157: 7.95 | F157: 8.2 | G157: 8.25 | H157: 8.05 | I157: 4123 | J157: 33543.05 | K157: 2019-05-27 | L157: 33 | M157: INE878I01014
A158: BAGFILMS | B158: EQ | C158: 4.3 | D158: 4.5 | E158: 4.2 | F158: 4.4 | G158: 4.4 | H158: 4.3 | I158: 166749 | J158: 726135.6 | K158: 2019-05-27 | L158: 208 | M158: INE116D01028
A159: BAJAJ-AUTO | B159: EQ | C159: 3085.1 | D159: 3090 | E159: 3031 | F159: 3066.9 | G159: 3066 | H159: 3077.9 | I159: 341393 | J159: 1044302469 | K159: 2019-05-27 | L159: 20492 | M159: INE917I01010
A160: BAJAJCON | B160: EQ | C160: 337 | D160: 338 | E160: 334.55 | F160: 335.55 | G160: 335.05 | H160: 336.25 | I160: 34805 | J160: 11688828.4 | K160: 2019-05-27 | L160: 1276 | M160: INE933K01021
A161: BAJAJELEC | B161: EQ | C161: 550.4 | D161: 553.7 | E161: 536.3 | F161: 537.85 | G161: 538 | H161: 549.65 | I161: 110950 | J161: 60307068.7 | K161: 2019-05-27 | L161: 4941 | M161: INE193E01025
A162: BAJAJFINSV | B162: EQ | C162: 8150 | D162: 8250 | E162: 8112 | F162: 8213.05 | G162: 8210 | H162: 8151.7 | I162: 169859 | J162: 1392633101 | K162: 2019-05-27 | L162: 15616 | M162: INE918I01018
A163: BAJAJHIND | B163: EQ | C163: 9.3 | D163: 9.95 | E163: 9.3 | F163: 9.65 | G163: 9.7 | H163: 9.2 | I163: 4082627 | J163: 39472706.8 | K163: 2019-05-27 | L163: 4379 | M163: INE306A01021
A164: BAJAJHLDNG | B164: EQ | C164: 3424.7 | D164: 3500 | E164: 3420 | F164: 3473.85 | G164: 3460 | H164: 3399.5 | I164: 43027 | J164: 148590816.6 | K164: 2019-05-27 | L164: 4197 | M164: INE118A01012
A165: BAJFINANCE | B165: EQ | C165: 3480 | D165: 3484.95 | E165: 3440 | F165: 3449 | G165: 3455 | H165: 3467.9 | I165: 932000 | J165: 3224078895 | K165: 2019-05-27 | L165: 45033 | M165: INE296A01024
A166: BALAJITELE | B166: EQ | C166: 74.5 | D166: 76.7 | E166: 73.2 | F166: 76.05 | G166: 76.25 | H166: 73.3 | I166: 62225 | J166: 4702988.15 | K166: 2019-05-27 | L166: 711 | M166: INE794B01026
A167: BALAMINES | B167: EQ | C167: 414.15 | D167: 433.1 | E167: 408.9 | F167: 413.05 | G167: 413.1 | H167: 412.35 | I167: 116512 | J167: 49118665.6 | K167: 2019-05-27 | L167: 2765 | M167: INE050E01027
A168: BALAXI | B168: BE | C168: 97 | D168: 104.8 | E168: 96.65 | F168: 97 | G168: 96.65 | H168: 101.7 | I168: 14727 | J168: 1426162.25 | K168: 2019-05-27 | L168: 74 | M168: INE618N01014
A169: BALKRISHNA | B169: EQ | C169: 35 | D169: 38 | E169: 32 | F169: 35.15 | G169: 34.5 | H169: 33.3 | I169: 125379 | J169: 4446250.1 | K169: 2019-05-27 | L169: 716 | M169: INE875R01011
A170: BALKRISIND | B170: EQ | C170: 808.8 | D170: 845 | E170: 803.45 | F170: 840.05 | G170: 838.5 | H170: 798.2 | I170: 1541371 | J170: 1271595235 | K170: 2019-05-27 | L170: 34664 | M170: INE787D01026
A171: BALLARPUR | B171: EQ | C171: 2.5 | D171: 2.6 | E171: 2.45 | F171: 2.6 | G171: 2.55 | H171: 2.5 | I171: 2590314 | J171: 6592134.25 | K171: 2019-05-27 | L171: 751 | M171: INE294A01037
A172: BALMLAWRIE | B172: EQ | C172: 184 | D172: 190.8 | E172: 184 | F172: 186.7 | G172: 187.8 | H172: 182.25 | I172: 160300 | J172: 30025686 | K172: 2019-05-27 | L172: 3487 | M172: INE164A01016
A173: BALPHARMA | B173: EQ | C173: 63.1 | D173: 70 | E173: 63 | F173: 67.35 | G173: 66.75 | H173: 63.1 | I173: 28723 | J173: 1931600.85 | K173: 2019-05-27 | L173: 624 | M173: INE083D01012
A174: BALRAMCHIN | B174: EQ | C174: 156 | D174: 169 | E174: 156 | F174: 157.3 | G174: 157.5 | H174: 153.1 | I174: 3370981 | J174: 536679084.5 | K174: 2019-05-27 | L174: 30058 | M174: INE119A01028
A175: BANARBEADS | B175: EQ | C175: 53.9 | D175: 53.9 | E175: 50.45 | F175: 52.3 | G175: 52.35 | H175: 51.6 | I175: 2409 | J175: 125731.8 | K175: 2019-05-27 | L175: 79 | M175: INE655B01011
A176: BANARISUG | B176: EQ | C176: 1424 | D176: 1424 | E176: 1376 | F176: 1385.1 | G176: 1377 | H176: 1373.95 | I176: 491 | J176: 687419.25 | K176: 2019-05-27 | L176: 99 | M176: INE459A01010
A177: BANCOINDIA | B177: EQ | C177: 141.9 | D177: 153.25 | E177: 141.9 | F177: 151.85 | G177: 152.95 | H177: 141.4 | I177: 58963 | J177: 8780987.95 | K177: 2019-05-27 | L177: 1105 | M177: INE213C01025
A178: BANDHANBNK | B178: EQ | C178: 596.95 | D178: 604.85 | E178: 596.1 | F178: 599.8 | G178: 599.4 | H178: 596.3 | I178: 2528465 | J178: 1517196047 | K178: 2019-05-27 | L178: 26640 | M178: INE545U01014
A179: BANG | B179: EQ | C179: 44.3 | D179: 46 | E179: 44.3 | F179: 45.2 | G179: 44.8 | H179: 45.55 | I179: 11067 | J179: 499627.45 | K179: 2019-05-27 | L179: 439 | M179: INE863I01016
A180: BANKBARODA | B180: EQ | C180: 137.3 | D180: 141.7 | E180: 136.4 | F180: 140.95 | G180: 140.5 | H180: 137.35 | I180: 28842316 | J180: 4038942755 | K180: 2019-05-27 | L180: 98833 | M180: INE028A01039
A181: BANKBEES | B181: EQ | C181: 3168.7 | D181: 3220 | E181: 3154.88 | F181: 3216.12 | G181: 3218.45 | H181: 3173.08 | I181: 3147 | J181: 10067373.99 | K181: 2019-05-27 | L181: 617 | M181: INF732E01078
A182: BANKINDIA | B182: EQ | C182: 96.6 | D182: 99.45 | E182: 96.25 | F182: 98.4 | G182: 98.4 | H182: 96.7 | I182: 11227667 | J182: 1099791550 | K182: 2019-05-27 | L182: 30193 | M182: INE084A01016
A183: BANSWRAS | B183: EQ | C183: 74.9 | D183: 80 | E183: 73.2 | F183: 76.35 | G183: 77.35 | H183: 72.75 | I183: 13154 | J183: 1021079.15 | K183: 2019-05-27 | L183: 181 | M183: INE629D01012
A184: BARTRONICS | B184: EQ | C184: 6 | D184: 6.15 | E184: 5.8 | F184: 6 | G184: 6 | H184: 6.05 | I184: 10472 | J184: 63168 | K184: 2019-05-27 | L184: 100 | M184: INE855F01034
A185: BASF | B185: EQ | C185: 1330 | D185: 1370 | E185: 1330 | F185: 1356.55 | G185: 1359 | H185: 1323.2 | I185: 3732 | J185: 5044586.2 | K185: 2019-05-27 | L185: 717 | M185: INE373A01013
A186: BASML | B186: EQ | C186: 181 | D186: 191 | E186: 181 | F186: 185.05 | G186: 185 | H186: 187.25 | I186: 1028 | J186: 190679.75 | K186: 2019-05-27 | L186: 35 | M186: INE186H01014
A187: BATAINDIA | B187: EQ | C187: 1366.3 | D187: 1373.7 | E187: 1311.6 | F187: 1338.05 | G187: 1345.8 | H187: 1339.75 | I187: 2491189 | J187: 3352503786 | K187: 2019-05-27 | L187: 84772 | M187: INE176A01028
A188: BAYERCROP | B188: EQ | C188: 4070 | D188: 4090 | E188: 4058.2 | F188: 4074.65 | G188: 4075 | H188: 4077.55 | I188: 2917 | J188: 11888498.65 | K188: 2019-05-27 | L188: 559 | M188: INE462A01022
A189: BBL | B189: EQ | C189: 1009.65 | D189: 1130 | E189: 1009.65 | F189: 1126.9 | G189: 1120 | H189: 1002.45 | I189: 40984 | J189: 44691756.35 | K189: 2019-05-27 | L189: 3881 | M189: INE464A01028
A190: BBTC | B190: EQ | C190: 1145 | D190: 1186 | E190: 1142 | F190: 1146.45 | G190: 1146 | H190: 1135.9 | I190: 397828 | J190: 463464731.9 | K190: 2019-05-27 | L190: 17200 | M190: INE050A01025
A191: BCG | B191: BE | C191: 5.8 | D191: 5.95 | E191: 5.5 | F191: 5.6 | G191: 5.6 | H191: 5.75 | I191: 426075 | J191: 2395381.3 | K191: 2019-05-27 | L191: 347 | M191: INE425B01027
A192: BDL | B192: EQ | C192: 312 | D192: 333 | E192: 306.95 | F192: 329.75 | G192: 329.9 | H192: 308.6 | I192: 194393 | J192: 63332137.9 | K192: 2019-05-27 | L192: 6130 | M192: INE171Z01018
A193: BEARDSELL | B193: EQ | C193: 14.8 | D193: 15.6 | E193: 14.5 | F193: 14.95 | G193: 15.5 | H193: 15.05 | I193: 695 | J193: 10321.75 | K193: 2019-05-27 | L193: 24 | M193: INE520H01022
A194: BEDMUTHA | B194: EQ | C194: 16.3 | D194: 17.95 | E194: 14.4 | F194: 16.25 | G194: 16 | H194: 15.5 | I194: 17169 | J194: 282750.8 | K194: 2019-05-27 | L194: 116 | M194: INE844K01012
A195: BEL | B195: EQ | C195: 111.5 | D195: 117.75 | E195: 109.45 | F195: 113 | G195: 112.85 | H195: 111.8 | I195: 22766311 | J195: 2600460332 | K195: 2019-05-27 | L195: 89018 | M195: INE263A01024
A196: BEML | B196: EQ | C196: 958 | D196: 1019.4 | E196: 950 | F196: 1004.1 | G196: 1006.8 | H196: 975.65 | I196: 3270867 | J196: 3268367108 | K196: 2019-05-27 | L196: 65796 | M196: INE258A01016
A197: BEPL | B197: EQ | C197: 78.8 | D197: 81.2 | E197: 75.95 | F197: 76.7 | G197: 76.3 | H197: 78.55 | I197: 800514 | J197: 62722756 | K197: 2019-05-27 | L197: 6675 | M197: INE922A01025
A198: BERGEPAINT | B198: EQ | C198: 310 | D198: 316 | E198: 308 | F198: 309.6 | G198: 309.65 | H198: 310.5 | I198: 992087 | J198: 310576873.1 | K198: 2019-05-27 | L198: 6586 | M198: INE463A01038
A199: BFINVEST | B199: EQ | C199: 252.5 | D199: 264.6 | E199: 251.75 | F199: 260.75 | G199: 260.45 | H199: 253.65 | I199: 136157 | J199: 35231965.5 | K199: 2019-05-27 | L199: 3375 | M199: INE878K01010
A200: BFUTILITIE | B200: EQ | C200: 210.5 | D200: 220.75 | E200: 207.05 | F200: 218.2 | G200: 217 | H200: 210.5 | I200: 1304887 | J200: 280906654.6 | K200: 2019-05-27 | L200: 26010 | M200: INE243D01012
... 1447 more rows

Sheet Sheet1 (hidden)

Sheet Sheet3 (hidden)

Sheet Sheet4 (hidden)
